Organisation Code,Organisation Label,Effective Date,Organisational Unit,Service Division Label,Category Internal Name,Purpose,Detailed Expenditure Code,Payment Date,Transaction Number,Irrecoverable VAT Amount,Amount,Capital Or Revenue,Beneficiary Name,Procurement Card
Http://opendatacommunities.org/id/metropolitan-district-council/leeds,Leeds City Council,30/09/2022,Children and Families,Social Care ,Supplies and Services,Operational Furniture And Equipment,203,01/07/2022,2208-00001,0.00,65.00,R,A & E Appliances Ltd,Yes
Http://opendatacommunities.org/id/metropolitan-district-council/leeds,Leeds City Council,30/09/2022,Children and Families,Social Care,Supplies and Services,Consultancy Services,259,17/08/2022,2208-00002,0.00,6310.60,R,A & F Lloyd Training Limited,No
Http://opendatacommunities.org/id/metropolitan-district-council/leeds,Leeds City Council,30/09/2022,Adults and Health,Services For Older People Under 65 P/Dis,Agency Payments,Sheltered Accommodation,569,17/08/2022,2208-00003,0.00,5400.00,R,A & V TRANSITIONAL HOMES,No
Http://opendatacommunities.org/id/metropolitan-district-council/leeds,Leeds City Council,30/09/2022,Children and Families,Social Care,Agency Payments,Services Rendered By Other Organisations,511,03/08/2022,2208-00004,0.00,217.23,R,REDACTED PERSONAL DATA,No
Http://opendatacommunities.org/id/metropolitan-district-council/leeds,Leeds City Council,30/09/2022,Children and Families,Social Care,Agency Payments,Services Rendered By Other Organisations,511,05/08/2022,2208-00005,0.00,186.42,R,REDACTED PERSONAL DATA,No
Http://opendatacommunities.org/id/metropolitan-district-council/leeds,Leeds City Council,30/09/2022,Children and Families,Social Care,Agency Payments,Services Rendered By Other Organisations,511,05/08/2022,2208-00006,0.00,233.02,R,REDACTED PERSONAL DATA,No
Http://opendatacommunities.org/id/metropolitan-district-council/leeds,Leeds City Council,30/09/2022,Resources,Leeds Building Services,Supplies and Services,Other Hired And Contracted Services,265,04/08/2022,2208-00007,0.00,1942.00,R,A Coole Electrical Ltd,No
Http://opendatacommunities.org/id/metropolitan-district-council/leeds,Leeds City Council,30/09/2022,Resources,Leeds Building Services,Supplies and Services,Other Hired And Contracted Services,265,04/08/2022,2208-00008,0.00,3555.00,R,A Coole Electrical Ltd,No
Http://opendatacommunities.org/id/metropolitan-district-council/leeds,Leeds City Council,30/09/2022,Resources,Leeds Building Services,Supplies and Services,Other Hired And Contracted Services,265,12/08/2022,2208-00009,0.00,14038.00,R,A Coole Electrical Ltd,No
Http://opendatacommunities.org/id/metropolitan-district-council/leeds,Leeds City Council,30/09/2022,Resources,Leeds Building Services,Supplies and Services,Other Hired And Contracted Services,265,12/08/2022,2208-00010,0.00,13870.00,R,A Coole Electrical Ltd,No
Http://opendatacommunities.org/id/metropolitan-district-council/leeds,Leeds City Council,30/09/2022,Resources,Leeds Building Services,Supplies and Services,Other Hired And Contracted Services,265,12/08/2022,2208-00011,0.00,14173.00,R,A Coole Electrical Ltd,No
Http://opendatacommunities.org/id/metropolitan-district-council/leeds,Leeds City Council,30/09/2022,Resources,Leeds Building Services,Supplies and Services,Other Hired And Contracted Services,265,12/08/2022,2208-00012,0.00,3500.00,R,A Coole Electrical Ltd,No
Http://opendatacommunities.org/id/metropolitan-district-council/leeds,Leeds City Council,30/09/2022,Resources,Leeds Building Services,Supplies and Services,Other Hired And Contracted Services,265,19/08/2022,2208-00013,0.00,11190.00,R,A Coole Electrical Ltd,No
Http://opendatacommunities.org/id/metropolitan-district-council/leeds,Leeds City Council,30/09/2022,Resources,Leeds Building Services,Supplies and Services,Other Hired And Contracted Services,265,19/08/2022,2208-00014,0.00,1387.00,R,A Coole Electrical Ltd,No
Http://opendatacommunities.org/id/metropolitan-district-council/leeds,Leeds City Council,30/09/2022,Resources,Leeds Building Services,Supplies and Services,Other Hired And Contracted Services,265,24/08/2022,2208-00015,0.00,15257.00,R,A Coole Electrical Ltd,No
Http://opendatacommunities.org/id/metropolitan-district-council/leeds,Leeds City Council,30/09/2022,Communities Housing and Environment,Customer Access,Supplies and Services,Bought In Professional Services,277,03/08/2022,2208-00016,0.00,18.00,R,A D Dumitru,No
Http://opendatacommunities.org/id/metropolitan-district-council/leeds,Leeds City Council,30/09/2022,Communities Housing and Environment,Customer Access,Supplies and Services,Bought In Professional Services,277,10/08/2022,2208-00017,0.00,18.00,R,A D Dumitru,No
Http://opendatacommunities.org/id/metropolitan-district-council/leeds,Leeds City Council,30/09/2022,Communities Housing and Environment,Customer Access,Supplies and Services,Bought In Professional Services,277,17/08/2022,2208-00018,0.00,18.00,R,A D Dumitru,No
Http://opendatacommunities.org/id/metropolitan-district-council/leeds,Leeds City Council,30/09/2022,Children and Families,Social Care,Agency Payments,Services Rendered By Voluntary Sector,505,03/08/2022,2208-00019,0.00,1208.69,R,REDACTED PERSONAL DATA,No
Http://opendatacommunities.org/id/metropolitan-district-council/leeds,Leeds City Council,30/09/2022,Children and Families,Social Care,Agency Payments,Services Rendered By Voluntary Sector,505,05/08/2022,2208-00020,0.00,2274.32,R,REDACTED PERSONAL DATA,No
Http://opendatacommunities.org/id/metropolitan-district-council/leeds,Leeds City Council,30/09/2022,Children and Families,Social Care,Agency Payments,Services Rendered By Other Organisations,511,05/08/2022,2208-00021,0.00,374.40,R,REDACTED PERSONAL DATA,No
Http://opendatacommunities.org/id/metropolitan-district-council/leeds,Leeds City Council,30/09/2022,Children and Families,Social Care,Agency Payments,Services Rendered By Other Organisations,511,05/08/2022,2208-00022,0.00,63.18,R,REDACTED PERSONAL DATA,No
Http://opendatacommunities.org/id/metropolitan-district-council/leeds,Leeds City Council,30/09/2022,Children and Families,Social Care,Agency Payments,Contact,548,22/08/2022,2208-00023,0.00,18.80,R,REDACTED PERSONAL DATA,No
Http://opendatacommunities.org/id/metropolitan-district-council/leeds,Leeds City Council,30/09/2022,City Development,Recreation,External Income,Sporting & Other Recreational Fees,928,19/08/2022,2208-00024,0.00,26.95,R,REDACTED PERSONAL DATA,No
Http://opendatacommunities.org/id/metropolitan-district-council/leeds,Leeds City Council,30/09/2022,Children and Families,Social Care,Agency Payments,Services Rendered By Other Organisations,511,05/08/2022,2208-00025,0.00,857.53,R,REDACTED PERSONAL DATA,No
Http://opendatacommunities.org/id/metropolitan-district-council/leeds,Leeds City Council,30/09/2022,Children and Families,Social Care,Agency Payments,Services Rendered By Other Organisations,511,05/08/2022,2208-00026,0.00,117.00,R,REDACTED PERSONAL DATA,No
Http://opendatacommunities.org/id/metropolitan-district-council/leeds,Leeds City Council,30/09/2022,Adults and Health,Other Generic Services,Agency Payments,Fees To Carers,563,05/08/2022,2208-00027,0.00,125.31,R,REDACTED PERSONAL DATA,No
Http://opendatacommunities.org/id/metropolitan-district-council/leeds,Leeds City Council,30/09/2022,Adults and Health,Other Generic Services,Agency Payments,Fees To Carers,563,15/08/2022,2208-00028,0.00,460.80,R,REDACTED PERSONAL DATA,No
Http://opendatacommunities.org/id/metropolitan-district-council/leeds,Leeds City Council,30/09/2022,Adults and Health,Other Generic Services,Agency Payments,Fees To Carers,563,15/08/2022,2208-00029,0.00,50.40,R,REDACTED PERSONAL DATA,No
Http://opendatacommunities.org/id/metropolitan-district-council/leeds,Leeds City Council,30/09/2022,Adults and Health,Other Generic Services,Agency Payments,Fees To Carers,563,19/08/2022,2208-00030,0.00,41.77,R,REDACTED PERSONAL DATA,No
Http://opendatacommunities.org/id/metropolitan-district-council/leeds,Leeds City Council,30/09/2022,Adults and Health,Other Generic Services,Agency Payments,Fees To Carers,563,26/08/2022,2208-00031,0.00,41.77,R,REDACTED PERSONAL DATA,No
Http://opendatacommunities.org/id/metropolitan-district-council/leeds,Leeds City Council,30/09/2022,Resources,Leeds Building Services,Supplies and Services,Operational Materials,205,12/08/2022,2208-00032,0.00,2850.00,R,A J H  Pump Supply & Repair Ltd,No
Http://opendatacommunities.org/id/metropolitan-district-council/leeds,Leeds City Council,30/09/2022,Resources,Leeds Building Services,Supplies and Services,Operational Materials,205,19/08/2022,2208-00033,0.00,220.00,R,A J H  Pump Supply & Repair Ltd,No
Http://opendatacommunities.org/id/metropolitan-district-council/leeds,Leeds City Council,30/09/2022,Resources,Leeds Building Services,Supplies and Services,Operational Materials,205,26/08/2022,2208-00034,0.00,2250.00,R,A J H  Pump Supply & Repair Ltd,No
Http://opendatacommunities.org/id/metropolitan-district-council/leeds,Leeds City Council,30/09/2022,City Development,Libraries Arts & Heritage,Supplies and Services,Resaleable Materials,204,11/08/2022,2208-00035,0.00,1259.96,R,A J PROMOTIONS,No
Http://opendatacommunities.org/id/metropolitan-district-council/leeds,Leeds City Council,30/09/2022,City Development,Libraries Arts & Heritage,Supplies and Services,Resaleable Materials,204,12/08/2022,2208-00036,0.00,145.00,R,A J PROMOTIONS,No
Http://opendatacommunities.org/id/metropolitan-district-council/leeds,Leeds City Council,30/09/2022,Communities Housing and Environment,Parks and Countryside,Supplies and Services,Resaleable Materials,204,12/08/2022,2208-00037,0.00,1145.25,R,A J PROMOTIONS,No
Http://opendatacommunities.org/id/metropolitan-district-council/leeds,Leeds City Council,30/09/2022,Communities Housing and Environment,Customer Access,Supplies and Services,Resaleable Materials,204,17/08/2022,2208-00038,0.00,74.82,R,A J PROMOTIONS,No
Http://opendatacommunities.org/id/metropolitan-district-council/leeds,Leeds City Council,30/09/2022,Communities Housing and Environment,Parks and Countryside,Supplies and Services,Resaleable Materials,204,17/08/2022,2208-00039,0.00,1470.50,R,A J PROMOTIONS,No
Http://opendatacommunities.org/id/metropolitan-district-council/leeds,Leeds City Council,30/09/2022,City Development,Libraries Arts & Heritage,Supplies and Services,Resaleable Materials,204,24/08/2022,2208-00040,0.00,909.61,R,A J PROMOTIONS,No
Http://opendatacommunities.org/id/metropolitan-district-council/leeds,Leeds City Council,30/09/2022,Communities Housing and Environment,Parks and Countryside,Supplies and Services,Resaleable Materials,204,26/08/2022,2208-00041,0.00,811.60,R,A J PROMOTIONS,No
Http://opendatacommunities.org/id/metropolitan-district-council/leeds,Leeds City Council,30/09/2022,Children and Families,Social Care,Employees,Agency Staff,8,08/08/2022,2208-00042,0.00,740.00,R,A Little Something Extra Ltd,No
Http://opendatacommunities.org/id/metropolitan-district-council/leeds,Leeds City Council,30/09/2022,Children and Families,Social Care,Employees,Agency Staff,8,08/08/2022,2208-00043,0.00,518.00,R,A Little Something Extra Ltd,No
Http://opendatacommunities.org/id/metropolitan-district-council/leeds,Leeds City Council,30/09/2022,Children and Families,Social Care,Employees,Agency Staff,8,08/08/2022,2208-00044,0.00,740.00,R,A Little Something Extra Ltd,No
Http://opendatacommunities.org/id/metropolitan-district-council/leeds,Leeds City Council,30/09/2022,Communities Housing and Environment,Parks and Countryside,Supplies and Services,Other Hired And Contracted Services,265,05/08/2022,2208-00045,0.00,250.00,R,A M Jones Limited,No
Http://opendatacommunities.org/id/metropolitan-district-council/leeds,Leeds City Council,30/09/2022,Strategic Landlord,HRA Housing Leeds,Capital,OTHER COSTS,7,16/08/2022,2208-00046,0.00,94.17,C,REDACTED PERSONAL DATA,No
Http://opendatacommunities.org/id/metropolitan-district-council/leeds,Leeds City Council,30/09/2022,Communities Housing and Environment,Customer Access,Supplies and Services,Bought In Professional Services,277,03/08/2022,2208-00047,0.00,126.00,R,A MOHAMMED,No
Http://opendatacommunities.org/id/metropolitan-district-council/leeds,Leeds City Council,30/09/2022,Communities Housing and Environment,Customer Access,Supplies and Services,Bought In Professional Services,277,03/08/2022,2208-00048,0.00,126.00,R,A MOHAMMED,No
Http://opendatacommunities.org/id/metropolitan-district-council/leeds,Leeds City Council,30/09/2022,Communities Housing and Environment,Customer Access,Supplies and Services,Bought In Professional Services,277,03/08/2022,2208-00049,0.00,126.00,R,A MOHAMMED,No
Http://opendatacommunities.org/id/metropolitan-district-council/leeds,Leeds City Council,30/09/2022,Communities Housing and Environment,Customer Access,Supplies and Services,Bought In Professional Services,277,03/08/2022,2208-00050,0.00,126.00,R,A MOHAMMED,No
Http://opendatacommunities.org/id/metropolitan-district-council/leeds,Leeds City Council,30/09/2022,Communities Housing and Environment,Customer Access,Supplies and Services,Bought In Professional Services,277,03/08/2022,2208-00051,0.00,54.00,R,A MOHAMMED,No
Http://opendatacommunities.org/id/metropolitan-district-council/leeds,Leeds City Council,30/09/2022,Communities Housing and Environment,Customer Access,Supplies and Services,Bought In Professional Services,277,03/08/2022,2208-00052,0.00,18.00,R,A MOHAMMED,No
Http://opendatacommunities.org/id/metropolitan-district-council/leeds,Leeds City Council,30/09/2022,Communities Housing and Environment,Customer Access,Supplies and Services,Bought In Professional Services,277,03/08/2022,2208-00053,0.00,18.00,R,A MOHAMMED,No
Http://opendatacommunities.org/id/metropolitan-district-council/leeds,Leeds City Council,30/09/2022,Communities Housing and Environment,Customer Access,Supplies and Services,Bought In Professional Services,277,10/08/2022,2208-00054,0.00,126.00,R,A MOHAMMED,No
Http://opendatacommunities.org/id/metropolitan-district-council/leeds,Leeds City Council,30/09/2022,Communities Housing and Environment,Customer Access,Supplies and Services,Bought In Professional Services,277,10/08/2022,2208-00055,0.00,126.00,R,A MOHAMMED,No
Http://opendatacommunities.org/id/metropolitan-district-council/leeds,Leeds City Council,30/09/2022,Communities Housing and Environment,Customer Access,Supplies and Services,Bought In Professional Services,277,10/08/2022,2208-00056,0.00,126.00,R,A MOHAMMED,No
Http://opendatacommunities.org/id/metropolitan-district-council/leeds,Leeds City Council,30/09/2022,Communities Housing and Environment,Customer Access,Supplies and Services,Bought In Professional Services,277,10/08/2022,2208-00057,0.00,81.00,R,A MOHAMMED,No
Http://opendatacommunities.org/id/metropolitan-district-council/leeds,Leeds City Council,30/09/2022,Communities Housing and Environment,Customer Access,Supplies and Services,Bought In Professional Services,277,10/08/2022,2208-00058,0.00,126.00,R,A MOHAMMED,No
Http://opendatacommunities.org/id/metropolitan-district-council/leeds,Leeds City Council,30/09/2022,Communities Housing and Environment,Customer Access,Supplies and Services,Bought In Professional Services,277,10/08/2022,2208-00059,0.00,54.00,R,A MOHAMMED,No
Http://opendatacommunities.org/id/metropolitan-district-council/leeds,Leeds City Council,30/09/2022,Communities Housing and Environment,Customer Access,Supplies and Services,Bought In Professional Services,277,10/08/2022,2208-00060,0.00,18.00,R,A MOHAMMED,No
Http://opendatacommunities.org/id/metropolitan-district-council/leeds,Leeds City Council,30/09/2022,Communities Housing and Environment,Customer Access,Supplies and Services,Bought In Professional Services,277,10/08/2022,2208-00061,0.00,18.00,R,A MOHAMMED,No
Http://opendatacommunities.org/id/metropolitan-district-council/leeds,Leeds City Council,30/09/2022,Communities Housing and Environment,Customer Access,Supplies and Services,Bought In Professional Services,277,17/08/2022,2208-00062,0.00,126.00,R,A MOHAMMED,No
Http://opendatacommunities.org/id/metropolitan-district-council/leeds,Leeds City Council,30/09/2022,Communities Housing and Environment,Customer Access,Supplies and Services,Bought In Professional Services,277,17/08/2022,2208-00063,0.00,126.00,R,A MOHAMMED,No
Http://opendatacommunities.org/id/metropolitan-district-council/leeds,Leeds City Council,30/09/2022,Communities Housing and Environment,Customer Access,Supplies and Services,Bought In Professional Services,277,17/08/2022,2208-00064,0.00,126.00,R,A MOHAMMED,No
Http://opendatacommunities.org/id/metropolitan-district-council/leeds,Leeds City Council,30/09/2022,Communities Housing and Environment,Customer Access,Supplies and Services,Bought In Professional Services,277,17/08/2022,2208-00065,0.00,126.00,R,A MOHAMMED,No
Http://opendatacommunities.org/id/metropolitan-district-council/leeds,Leeds City Council,30/09/2022,Communities Housing and Environment,Customer Access,Supplies and Services,Bought In Professional Services,277,17/08/2022,2208-00066,0.00,126.00,R,A MOHAMMED,No
Http://opendatacommunities.org/id/metropolitan-district-council/leeds,Leeds City Council,30/09/2022,Communities Housing and Environment,Customer Access,Supplies and Services,Bought In Professional Services,277,24/08/2022,2208-00067,0.00,180.00,R,A MOHAMMED,No
Http://opendatacommunities.org/id/metropolitan-district-council/leeds,Leeds City Council,30/09/2022,Communities Housing and Environment,Customer Access,Supplies and Services,Bought In Professional Services,277,24/08/2022,2208-00068,0.00,126.00,R,A MOHAMMED,No
Http://opendatacommunities.org/id/metropolitan-district-council/leeds,Leeds City Council,30/09/2022,Communities Housing and Environment,Customer Access,Supplies and Services,Bought In Professional Services,277,24/08/2022,2208-00069,0.00,18.00,R,A MOHAMMED,No
Http://opendatacommunities.org/id/metropolitan-district-council/leeds,Leeds City Council,30/09/2022,Communities Housing and Environment,Customer Access,Supplies and Services,Bought In Professional Services,277,24/08/2022,2208-00070,0.00,126.00,R,A MOHAMMED,No
Http://opendatacommunities.org/id/metropolitan-district-council/leeds,Leeds City Council,30/09/2022,Communities Housing and Environment,Customer Access,Supplies and Services,Bought In Professional Services,277,24/08/2022,2208-00071,0.00,126.00,R,A MOHAMMED,No
Http://opendatacommunities.org/id/metropolitan-district-council/leeds,Leeds City Council,30/09/2022,Communities Housing and Environment,Customer Access,Supplies and Services,Bought In Professional Services,277,24/08/2022,2208-00072,0.00,18.00,R,A MOHAMMED,No
Http://opendatacommunities.org/id/metropolitan-district-council/leeds,Leeds City Council,30/09/2022,Communities Housing and Environment,Customer Access,Supplies and Services,Bought In Professional Services,277,24/08/2022,2208-00073,0.00,126.00,R,A MOHAMMED,No
Http://opendatacommunities.org/id/metropolitan-district-council/leeds,Leeds City Council,30/09/2022,Children and Families,Social Care,Agency Payments,Services Rendered By Other Organisations,511,05/08/2022,2208-00074,0.00,1981.20,R,REDACTED PERSONAL DATA,No
Http://opendatacommunities.org/id/metropolitan-district-council/leeds,Leeds City Council,30/09/2022,Children and Families,Social Care,Agency Payments,Services Rendered By Other Organisations,511,05/08/2022,2208-00075,0.00,468.00,R,REDACTED PERSONAL DATA,No
Http://opendatacommunities.org/id/metropolitan-district-council/leeds,Leeds City Council,30/09/2022,Children and Families,Social Care,Agency Payments,Services Rendered By Other Organisations,511,05/08/2022,2208-00076,0.00,1205.10,R,REDACTED PERSONAL DATA,No
Http://opendatacommunities.org/id/metropolitan-district-council/leeds,Leeds City Council,30/09/2022,Communities Housing and Environment,Customer Access,Supplies and Services,Bought In Professional Services,277,03/08/2022,2208-00077,0.00,126.00,R,A NAMAKI,No
Http://opendatacommunities.org/id/metropolitan-district-council/leeds,Leeds City Council,30/09/2022,Communities Housing and Environment,Customer Access,Supplies and Services,Bought In Professional Services,277,03/08/2022,2208-00078,0.00,126.00,R,A NAMAKI,No
Http://opendatacommunities.org/id/metropolitan-district-council/leeds,Leeds City Council,30/09/2022,Communities Housing and Environment,Customer Access,Supplies and Services,Bought In Professional Services,277,03/08/2022,2208-00079,0.00,126.00,R,A NAMAKI,No
Http://opendatacommunities.org/id/metropolitan-district-council/leeds,Leeds City Council,30/09/2022,Communities Housing and Environment,Customer Access,Supplies and Services,Bought In Professional Services,277,03/08/2022,2208-00080,0.00,126.00,R,A NAMAKI,No
Http://opendatacommunities.org/id/metropolitan-district-council/leeds,Leeds City Council,30/09/2022,Communities Housing and Environment,Customer Access,Supplies and Services,Bought In Professional Services,277,10/08/2022,2208-00081,0.00,126.00,R,A NAMAKI,No
Http://opendatacommunities.org/id/metropolitan-district-council/leeds,Leeds City Council,30/09/2022,Communities Housing and Environment,Customer Access,Supplies and Services,Bought In Professional Services,277,10/08/2022,2208-00082,0.00,126.00,R,A NAMAKI,No
Http://opendatacommunities.org/id/metropolitan-district-council/leeds,Leeds City Council,30/09/2022,Communities Housing and Environment,Customer Access,Supplies and Services,Bought In Professional Services,277,10/08/2022,2208-00083,0.00,126.00,R,A NAMAKI,No
Http://opendatacommunities.org/id/metropolitan-district-council/leeds,Leeds City Council,30/09/2022,Communities Housing and Environment,Customer Access,Supplies and Services,Bought In Professional Services,277,10/08/2022,2208-00084,0.00,126.00,R,A NAMAKI,No
Http://opendatacommunities.org/id/metropolitan-district-council/leeds,Leeds City Council,30/09/2022,Communities Housing and Environment,Customer Access,Supplies and Services,Bought In Professional Services,277,10/08/2022,2208-00085,0.00,126.00,R,A NAMAKI,No
Http://opendatacommunities.org/id/metropolitan-district-council/leeds,Leeds City Council,30/09/2022,Communities Housing and Environment,Customer Access,Supplies and Services,Bought In Professional Services,277,10/08/2022,2208-00086,0.00,126.00,R,A NAMAKI,No
Http://opendatacommunities.org/id/metropolitan-district-council/leeds,Leeds City Council,30/09/2022,Communities Housing and Environment,Customer Access,Supplies and Services,Bought In Professional Services,277,10/08/2022,2208-00087,0.00,126.00,R,A NAMAKI,No
Http://opendatacommunities.org/id/metropolitan-district-council/leeds,Leeds City Council,30/09/2022,Communities Housing and Environment,Customer Access,Supplies and Services,Bought In Professional Services,277,17/08/2022,2208-00088,0.00,126.00,R,A NAMAKI,No
Http://opendatacommunities.org/id/metropolitan-district-council/leeds,Leeds City Council,30/09/2022,Communities Housing and Environment,Customer Access,Supplies and Services,Bought In Professional Services,277,17/08/2022,2208-00089,0.00,126.00,R,A NAMAKI,No
Http://opendatacommunities.org/id/metropolitan-district-council/leeds,Leeds City Council,30/09/2022,Communities Housing and Environment,Customer Access,Supplies and Services,Bought In Professional Services,277,17/08/2022,2208-00090,0.00,126.00,R,A NAMAKI,No
Http://opendatacommunities.org/id/metropolitan-district-council/leeds,Leeds City Council,30/09/2022,Communities Housing and Environment,Customer Access,Supplies and Services,Bought In Professional Services,277,17/08/2022,2208-00091,0.00,126.00,R,A NAMAKI,No
Http://opendatacommunities.org/id/metropolitan-district-council/leeds,Leeds City Council,30/09/2022,Communities Housing and Environment,Customer Access,Supplies and Services,Bought In Professional Services,277,24/08/2022,2208-00092,0.00,126.00,R,A NAMAKI,No
Http://opendatacommunities.org/id/metropolitan-district-council/leeds,Leeds City Council,30/09/2022,Communities Housing and Environment,Customer Access,Supplies and Services,Bought In Professional Services,277,24/08/2022,2208-00093,0.00,126.00,R,A NAMAKI,No
Http://opendatacommunities.org/id/metropolitan-district-council/leeds,Leeds City Council,30/09/2022,Communities Housing and Environment,Customer Access,Supplies and Services,Bought In Professional Services,277,24/08/2022,2208-00094,0.00,126.00,R,A NAMAKI,No
Http://opendatacommunities.org/id/metropolitan-district-council/leeds,Leeds City Council,30/09/2022,Communities Housing and Environment,Customer Access,Supplies and Services,Bought In Professional Services,277,24/08/2022,2208-00095,0.00,126.00,R,A NAMAKI,No
Http://opendatacommunities.org/id/metropolitan-district-council/leeds,Leeds City Council,30/09/2022,Children and Families,Social Care,Agency Payments,Services Rendered By Other Organisations,511,05/08/2022,2208-00096,0.00,372.84,R,REDACTED PERSONAL DATA,No
Http://opendatacommunities.org/id/metropolitan-district-council/leeds,Leeds City Council,30/09/2022,Strategic Landlord,HRA Housing Leeds,Capital,OTHER COSTS,7,08/08/2022,2208-00097,0.00,80.00,C,REDACTED PERSONAL DATA,No
Http://opendatacommunities.org/id/metropolitan-district-council/leeds,Leeds City Council,30/09/2022,Strategic Landlord,HRA Housing Leeds,Capital,OTHER COSTS,7,23/08/2022,2208-00098,0.00,217.02,C,REDACTED PERSONAL DATA,No
Http://opendatacommunities.org/id/metropolitan-district-council/leeds,Leeds City Council,30/09/2022,Children and Families,Social Care,External Income,Sponsorship,979,30/08/2022,2208-00099,0.00,350.00,R,A Robling,No
Http://opendatacommunities.org/id/metropolitan-district-council/leeds,Leeds City Council,30/09/2022,Resources,Commercial Services,Supplies and Services,Other Hired And Contracted Services,265,08/08/2022,2208-00100,0.00,281.60,R,REDACTED PERSONAL DATA,No
Http://opendatacommunities.org/id/metropolitan-district-council/leeds,Leeds City Council,30/09/2022,Strategic Landlord,Housing Management,Supplies and Services,Compensation Claims,200,11/08/2022,2208-00101,0.00,200.00,R,REDACTED PERSONAL DATA,No
Http://opendatacommunities.org/id/metropolitan-district-council/leeds,Leeds City Council,30/09/2022,Children and Families,Social Care,Agency Payments,Placement Support,550,01/08/2022,2208-00102,0.00,742.50,R,A Strevett-Smith,No
Http://opendatacommunities.org/id/metropolitan-district-council/leeds,Leeds City Council,30/09/2022,Children and Families,Social Care,Agency Payments,Placement Support,550,19/08/2022,2208-00103,0.00,1039.50,R,A Strevett-Smith,No
Http://opendatacommunities.org/id/metropolitan-district-council/leeds,Leeds City Council,30/09/2022,Communities Housing and Environment,Waste Management,Employees,Training & Development,70,05/08/2022,2208-00104,0.00,191.68,R,A T Nerac Ltd,No
Http://opendatacommunities.org/id/metropolitan-district-council/leeds,Leeds City Council,30/09/2022,Communities Housing and Environment,Waste Management,Employees,Training & Development,70,12/08/2022,2208-00105,0.00,191.68,R,A T Nerac Ltd,No
Http://opendatacommunities.org/id/metropolitan-district-council/leeds,Leeds City Council,30/09/2022,Communities Housing and Environment,Waste Management,Employees,Training & Development,70,24/08/2022,2208-00106,0.00,386.50,R,A T Nerac Ltd,No
Http://opendatacommunities.org/id/metropolitan-district-council/leeds,Leeds City Council,30/09/2022,Children and Families,Social Care,Agency Payments,Independent Fostering Agencies,509,04/08/2022,2208-00107,0.00,1368.00,R,A Taxis,No
Http://opendatacommunities.org/id/metropolitan-district-council/leeds,Leeds City Council,30/09/2022,Children and Families,Social Care,Agency Payments,Independent Fostering Agencies,509,24/08/2022,2208-00108,0.00,1080.00,R,A Taxis,No
Http://opendatacommunities.org/id/metropolitan-district-council/leeds,Leeds City Council,30/09/2022,Children and Families,Social Care,Agency Payments,Services Rendered By Other Organisations,511,05/08/2022,2208-00109,0.00,372.84,R,REDACTED PERSONAL DATA,No
Http://opendatacommunities.org/id/metropolitan-district-council/leeds,Leeds City Council,30/09/2022,Children and Families,Social Care,Agency Payments,Services Rendered By Other Organisations,511,05/08/2022,2208-00110,0.00,175.50,R,REDACTED PERSONAL DATA,No
Http://opendatacommunities.org/id/metropolitan-district-council/leeds,Leeds City Council,30/09/2022,Children and Families,Social Care,Agency Payments,Services Rendered By Other Organisations,511,05/08/2022,2208-00111,0.00,186.42,R,REDACTED PERSONAL DATA,No
Http://opendatacommunities.org/id/metropolitan-district-council/leeds,Leeds City Council,30/09/2022,Children and Families,Social Care,Agency Payments,Services Rendered By Other Organisations,511,05/08/2022,2208-00112,0.00,54.60,R,REDACTED PERSONAL DATA,No
Http://opendatacommunities.org/id/metropolitan-district-council/leeds,Leeds City Council,30/09/2022,Children and Families,Social Care,Agency Payments,Independent Fostering Agencies,509,26/08/2022,2208-00113,0.00,72.00,R,A Wilderness Way Ltd,No
Http://opendatacommunities.org/id/metropolitan-district-council/leeds,Leeds City Council,30/09/2022,Children and Families,Social Care,Agency Payments,General External Residential Placements,507,26/08/2022,2208-00114,0.00,60228.66,R,A Wilderness Way Ltd,No
Http://opendatacommunities.org/id/metropolitan-district-council/leeds,Leeds City Council,30/09/2022,Resources,Leeds Building Services,Supplies and Services,Operational Materials,205,04/08/2022,2208-00115,0.00,1095.00,R,A1 STAIR LIFT SERVICES,No
Http://opendatacommunities.org/id/metropolitan-district-council/leeds,Leeds City Council,30/09/2022,Resources,Leeds Building Services,Supplies and Services,Operational Materials,205,18/08/2022,2208-00116,0.00,950.00,R,A1 STAIR LIFT SERVICES,No
Http://opendatacommunities.org/id/metropolitan-district-council/leeds,Leeds City Council,30/09/2022,Resources,Leeds Building Services,Supplies and Services,Operational Materials,205,19/08/2022,2208-00117,0.00,1175.00,R,A1 STAIR LIFT SERVICES,No
Http://opendatacommunities.org/id/metropolitan-district-council/leeds,Leeds City Council,30/09/2022,Resources,Leeds Building Services,Supplies and Services,Operational Materials,205,26/08/2022,2208-00118,0.00,1175.00,R,A1 STAIR LIFT SERVICES,No
Http://opendatacommunities.org/id/metropolitan-district-council/leeds,Leeds City Council,30/09/2022,Communities Housing and Environment,Parks and Countryside ,Supplies and Services,Operational Materials,205,06/07/2022,2208-00119,0.00,650.00,R,Aalco (Leeds),Yes
Http://opendatacommunities.org/id/metropolitan-district-council/leeds,Leeds City Council,30/09/2022,Adults and Health,Services For Older People - 65 And Over,Agency Payments,Residential Care Dementia,571,17/08/2022,2208-00120,0.00,2177.12,R,Aaron Court Care Home,No
Http://opendatacommunities.org/id/metropolitan-district-council/leeds,Leeds City Council as Accountable Body,30/09/2022,Social Services Pooled Budgets,Leeds Community Equip Store Pooled Budgt,Supplies and Services,Other Equipment,203,12/08/2022,2208-00121,0.00,1179.00,R,AAT (GB) LTD,No
Http://opendatacommunities.org/id/metropolitan-district-council/leeds,Leeds City Council,30/09/2022,Adults and Health,Other Generic Services,Supplies and Services,Operational Furniture And Equipment,203,12/08/2022,2208-00122,0.00,948.00,R,AAT (GB) LTD,No
Http://opendatacommunities.org/id/metropolitan-district-council/leeds,Leeds City Council as Accountable Body,30/09/2022,Social Services Pooled Budgets,Jcs For People With Learning Disabilitie,Supplies and Services,Other Equipment,203,18/08/2022,2208-00123,0.00,347.00,R,AAT (GB) LTD,No
Http://opendatacommunities.org/id/metropolitan-district-council/leeds,Leeds City Council as Accountable Body,30/09/2022,Social Services Pooled Budgets,Jcs For People With Learning Disabilitie,Supplies and Services,Other Equipment,203,18/08/2022,2208-00124,0.00,355.00,R,AAT (GB) LTD,No
Http://opendatacommunities.org/id/metropolitan-district-council/leeds,Leeds City Council,30/09/2022,Adults and Health,Other Generic Services,Supplies and Services,Operational Furniture And Equipment,203,18/08/2022,2208-00125,0.00,1618.00,R,AAT (GB) LTD,No
Http://opendatacommunities.org/id/metropolitan-district-council/leeds,Leeds City Council as Accountable Body,30/09/2022,Social Services Pooled Budgets,Jcs For People With Learning Disabilitie,Supplies and Services,Other Equipment,203,18/08/2022,2208-00126,0.00,1616.00,R,AAT (GB) LTD,No
Http://opendatacommunities.org/id/metropolitan-district-council/leeds,Leeds City Council as Accountable Body,30/09/2022,Social Services Pooled Budgets,Jcs For People With Learning Disabilitie,Agency Payments,Residential,580,17/08/2022,2208-00127,0.00,11720.20,R,Abbey Care And Education,No
Http://opendatacommunities.org/id/metropolitan-district-council/leeds,Leeds City Council,30/09/2022,Adults and Health,Public Health,Agency Payments,Public Health Commissioned Services,526,05/08/2022,2208-00128,0.00,2081.32,R,Abbey Grange Medical Practice,No
Http://opendatacommunities.org/id/metropolitan-district-council/leeds,Leeds City Council,30/09/2022,Children and Families,Social Care,Agency Payments,Services Rendered By Other Organisations,511,05/08/2022,2208-00129,0.00,53129.70,R,Abbey Multi Academy Trust,No
Http://opendatacommunities.org/id/metropolitan-district-council/leeds,Leeds City Council,30/09/2022,Children and Families,Social Care,Agency Payments,Services Rendered By Other Organisations,511,05/08/2022,2208-00130,0.00,234.00,R,Abbey Multi Academy Trust,No
Http://opendatacommunities.org/id/metropolitan-district-council/leeds,Leeds City Council,30/09/2022,Children and Families,Social Care,Agency Payments,Services Rendered By Other Organisations,511,05/08/2022,2208-00131,0.00,907.27,R,Abbey Multi Academy Trust,No
Http://opendatacommunities.org/id/metropolitan-district-council/leeds,Leeds City Council,30/09/2022,Adults and Health,Services For Adults Under 65 Mental/Dis,Agency Payments,Home Care,568,05/08/2022,2208-00132,0.00,895.60,R,Abbeyfield The Dales Limited,No
Http://opendatacommunities.org/id/metropolitan-district-council/leeds,Leeds City Council,30/09/2022,Adults and Health,Services For Adults Under 65 Mental/Dis,Agency Payments,Home Care,568,05/08/2022,2208-00133,0.00,368.76,R,Abbeyfield The Dales Limited,No
Http://opendatacommunities.org/id/metropolitan-district-council/leeds,Leeds City Council,30/09/2022,Children and Families,Social Care,Agency Payments,Allowances,546,03/08/2022,2208-00134,0.00,607.11,R,REDACTED PERSONAL DATA,No
Http://opendatacommunities.org/id/metropolitan-district-council/leeds,Leeds City Council,30/09/2022,Children and Families,Social Care,Agency Payments,Services Rendered By Other Organisations,511,03/08/2022,2208-00135,0.00,271.23,R,REDACTED PERSONAL DATA,No
Http://opendatacommunities.org/id/metropolitan-district-council/leeds,Leeds City Council,30/09/2022,Children and Families,Social Care,Agency Payments,Services Rendered By Other Organisations,511,05/08/2022,2208-00136,0.00,1631.17,R,REDACTED PERSONAL DATA,No
Http://opendatacommunities.org/id/metropolitan-district-council/leeds,Leeds City Council,30/09/2022,Children and Families,Social Care,Agency Payments,Services Rendered By Other Organisations,511,05/08/2022,2208-00137,0.00,284.70,R,REDACTED PERSONAL DATA,No
Http://opendatacommunities.org/id/metropolitan-district-council/leeds,Leeds City Council,30/09/2022,Children and Families,Social Care,Internal Recharges,Legal Disbursements,411,05/08/2022,2208-00138,0.00,95.00,R,Abbott Toxicology Ltd.,No
Http://opendatacommunities.org/id/metropolitan-district-council/leeds,Leeds City Council,30/09/2022,Children and Families,Social Care,Internal Recharges,Legal Disbursements,411,12/08/2022,2208-00139,0.00,95.00,R,Abbott Toxicology Ltd.,No
Http://opendatacommunities.org/id/metropolitan-district-council/leeds,Leeds City Council,30/09/2022,Communities Housing and Environment,Parks and Countryside,Supplies and Services,Other Hired And Contracted Services,265,11/08/2022,2208-00140,0.00,4150.00,R,Abbotts Memorials,No
Http://opendatacommunities.org/id/metropolitan-district-council/leeds,Leeds City Council,30/09/2022,Communities Housing and Environment,Parks and Countryside,Supplies and Services,Other Hired And Contracted Services,265,11/08/2022,2208-00141,0.00,1200.00,R,Abbotts Memorials,No
Http://opendatacommunities.org/id/metropolitan-district-council/leeds,Leeds City Council,30/09/2022,Communities Housing and Environment,Parks and Countryside,Supplies and Services,Other Hired And Contracted Services,265,11/08/2022,2208-00142,0.00,1050.00,R,Abbotts Memorials,No
Http://opendatacommunities.org/id/metropolitan-district-council/leeds,Leeds City Council,30/09/2022,Communities Housing and Environment,Parks and Countryside,Supplies and Services,Other Hired And Contracted Services,265,11/08/2022,2208-00143,0.00,1800.00,R,Abbotts Memorials,No
Http://opendatacommunities.org/id/metropolitan-district-council/leeds,Leeds City Council,30/09/2022,Communities Housing and Environment,Parks and Countryside,Supplies and Services,Other Hired And Contracted Services,265,12/08/2022,2208-00144,0.00,1800.00,R,Abbotts Memorials,No
Http://opendatacommunities.org/id/metropolitan-district-council/leeds,Leeds City Council,30/09/2022,Children and Families,Social Care,Agency Payments,General External Residential Placements,507,11/08/2022,2208-00145,0.00,15942.99,R,ABC Care and Educationd LTD,No
Http://opendatacommunities.org/id/metropolitan-district-council/leeds,Leeds City Council,30/09/2022,Children and Families,Social Care,Agency Payments,Services Rendered By Other Organisations,511,03/08/2022,2208-00146,0.00,8321.58,R,ABC NURSERY AT LUFC,No
Http://opendatacommunities.org/id/metropolitan-district-council/leeds,Leeds City Council,30/09/2022,Children and Families,Social Care,Agency Payments,Services Rendered By Other Organisations,511,05/08/2022,2208-00147,0.00,7449.52,R,ABC NURSERY AT LUFC,No
Http://opendatacommunities.org/id/metropolitan-district-council/leeds,Leeds City Council,30/09/2022,Children and Families,Social Care,Agency Payments,Services Rendered By Other Organisations,511,05/08/2022,2208-00148,0.00,702.00,R,ABC NURSERY AT LUFC,No
Http://opendatacommunities.org/id/metropolitan-district-council/leeds,Leeds City Council,30/09/2022,Children and Families,Social Care,Agency Payments,Services Rendered By Other Organisations,511,05/08/2022,2208-00149,0.00,2626.65,R,ABC NURSERY AT LUFC,No
Http://opendatacommunities.org/id/metropolitan-district-council/leeds,Leeds City Council,30/09/2022,Children and Families,Social Care,Agency Payments,Services Rendered By Other Organisations,511,03/08/2022,2208-00150,0.00,1303.38,R,Abc@D'S Childcare,No
Http://opendatacommunities.org/id/metropolitan-district-council/leeds,Leeds City Council,30/09/2022,Children and Families,Social Care,Agency Payments,Services Rendered By Other Organisations,511,05/08/2022,2208-00151,0.00,7270.38,R,Abc@D'S Childcare,No
Http://opendatacommunities.org/id/metropolitan-district-council/leeds,Leeds City Council,30/09/2022,Children and Families,Social Care,Agency Payments,Services Rendered By Other Organisations,511,05/08/2022,2208-00152,0.00,1454.70,R,Abc@D'S Childcare,No
Http://opendatacommunities.org/id/metropolitan-district-council/leeds,Leeds City Council,30/09/2022,Communities Housing and Environment,Customer Access,Supplies and Services,Bought In Professional Services,277,03/08/2022,2208-00153,0.00,13.50,R,Abdiqafar Abdullahi,No
Http://opendatacommunities.org/id/metropolitan-district-council/leeds,Leeds City Council,30/09/2022,Communities Housing and Environment,Customer Access,Supplies and Services,Bought In Professional Services,277,17/08/2022,2208-00154,0.00,19.50,R,Abdiqafar Abdullahi,No
Http://opendatacommunities.org/id/metropolitan-district-council/leeds,Leeds City Council,30/09/2022,Communities Housing and Environment,Customer Access,Supplies and Services,Bought In Professional Services,277,17/08/2022,2208-00155,0.00,13.50,R,Abdiqafar Abdullahi,No
Http://opendatacommunities.org/id/metropolitan-district-council/leeds,Leeds City Council,30/09/2022,Communities Housing and Environment,Customer Access,Supplies and Services,Bought In Professional Services,277,17/08/2022,2208-00156,0.00,22.20,R,Abdiqafar Abdullahi,No
Http://opendatacommunities.org/id/metropolitan-district-council/leeds,Leeds City Council,30/09/2022,Communities Housing and Environment,Customer Access,Supplies and Services,Bought In Professional Services,277,17/08/2022,2208-00157,0.00,13.50,R,Abdiqafar Abdullahi,No
Http://opendatacommunities.org/id/metropolitan-district-council/leeds,Leeds City Council,30/09/2022,Communities Housing and Environment,Customer Access,Supplies and Services,Bought In Professional Services,277,24/08/2022,2208-00158,0.00,13.50,R,Abdiqafar Abdullahi,No
Http://opendatacommunities.org/id/metropolitan-district-council/leeds,Leeds City Council,30/09/2022,Communities Housing and Environment,Customer Access,Supplies and Services,Bought In Professional Services,277,24/08/2022,2208-00159,0.00,13.50,R,Abdiqafar Abdullahi,No
Http://opendatacommunities.org/id/metropolitan-district-council/leeds,Leeds City Council,30/09/2022,Children and Families,Social Care,Appropriations,Leaving Care Allowances,634,19/08/2022,2208-00160,0.00,39.99,R,REDACTED PERSONAL DATA,No
Http://opendatacommunities.org/id/metropolitan-district-council/leeds,Leeds City Council,30/09/2022,Communities Housing and Environment,Customer Access,Supplies and Services,Bought In Professional Services,277,03/08/2022,2208-00161,0.00,18.00,R,Abdulahad Denha,No
Http://opendatacommunities.org/id/metropolitan-district-council/leeds,Leeds City Council,30/09/2022,Communities Housing and Environment,Customer Access,Supplies and Services,Bought In Professional Services,277,03/08/2022,2208-00162,0.00,40.50,R,Abdulahad Denha,No
Http://opendatacommunities.org/id/metropolitan-district-council/leeds,Leeds City Council,30/09/2022,Communities Housing and Environment,Customer Access,Supplies and Services,Bought In Professional Services,277,03/08/2022,2208-00163,0.00,18.00,R,Abdulahad Denha,No
Http://opendatacommunities.org/id/metropolitan-district-council/leeds,Leeds City Council,30/09/2022,Communities Housing and Environment,Customer Access,Supplies and Services,Bought In Professional Services,277,24/08/2022,2208-00164,0.00,18.00,R,Abdulahad Denha,No
Http://opendatacommunities.org/id/metropolitan-district-council/leeds,Leeds City Council,30/09/2022,City Development,Libraries Arts & Heritage,Supplies and Services,Bought In Professional Services,277,04/08/2022,2208-00165,0.00,400.00,R,Abdullah Adekola,No
Http://opendatacommunities.org/id/metropolitan-district-council/leeds,Leeds City Council,30/09/2022,Communities Housing and Environment,Customer Access,Supplies and Services,Bought In Professional Services,277,03/08/2022,2208-00166,0.00,27.00,R,Abdulrahim Dastyar,No
Http://opendatacommunities.org/id/metropolitan-district-council/leeds,Leeds City Council,30/09/2022,Communities Housing and Environment,Customer Access,Supplies and Services,Bought In Professional Services,277,10/08/2022,2208-00167,0.00,18.00,R,Abdulrahim Dastyar,No
Http://opendatacommunities.org/id/metropolitan-district-council/leeds,Leeds City Council,30/09/2022,Communities Housing and Environment,Customer Access,Supplies and Services,Bought In Professional Services,277,10/08/2022,2208-00168,0.00,9.00,R,Abdulrahim Dastyar,No
Http://opendatacommunities.org/id/metropolitan-district-council/leeds,Leeds City Council,30/09/2022,Communities Housing and Environment,Customer Access,Supplies and Services,Bought In Professional Services,277,10/08/2022,2208-00169,0.00,13.50,R,Abdulrahim Dastyar,No
Http://opendatacommunities.org/id/metropolitan-district-council/leeds,Leeds City Council,30/09/2022,Communities Housing and Environment,Customer Access,Supplies and Services,Bought In Professional Services,277,10/08/2022,2208-00170,0.00,13.50,R,Abdulrahim Dastyar,No
Http://opendatacommunities.org/id/metropolitan-district-council/leeds,Leeds City Council,30/09/2022,Communities Housing and Environment,Customer Access,Supplies and Services,Bought In Professional Services,277,10/08/2022,2208-00171,0.00,18.00,R,Abdulrahim Dastyar,No
Http://opendatacommunities.org/id/metropolitan-district-council/leeds,Leeds City Council,30/09/2022,Communities Housing and Environment,Customer Access,Supplies and Services,Bought In Professional Services,277,10/08/2022,2208-00172,0.00,9.00,R,Abdulrahim Dastyar,No
Http://opendatacommunities.org/id/metropolitan-district-council/leeds,Leeds City Council,30/09/2022,Communities Housing and Environment,Customer Access,Supplies and Services,Bought In Professional Services,277,24/08/2022,2208-00173,0.00,18.00,R,Abdulrahim Dastyar,No
Http://opendatacommunities.org/id/metropolitan-district-council/leeds,Leeds City Council,30/09/2022,Communities Housing and Environment,Customer Access,Supplies and Services,Bought In Professional Services,277,24/08/2022,2208-00174,0.00,18.00,R,Abdulrahim Dastyar,No
Http://opendatacommunities.org/id/metropolitan-district-council/leeds,Leeds City Council,30/09/2022,Children and Families,Social Care,Agency Payments,Placement Support,550,01/08/2022,2208-00175,0.00,1000.00,R,Aberford Childcare Services,No
Http://opendatacommunities.org/id/metropolitan-district-council/leeds,Leeds City Council,30/09/2022,Children and Families,Social Care,Agency Payments,Placement Support,550,19/08/2022,2208-00176,0.00,1800.00,R,Aberford Childcare Services,No
Http://opendatacommunities.org/id/metropolitan-district-council/leeds,Leeds City Council,30/09/2022,Adults and Health,Services For Older People - 65 And Over,Agency Payments,Nursing Home,570,17/08/2022,2208-00177,0.00,37721.89,R,Aberford Hall,No
Http://opendatacommunities.org/id/metropolitan-district-council/leeds,Leeds City Council,30/09/2022,Adults and Health,Services For Older People - 65 And Over,Agency Payments,Nursing Care Dementia,574,17/08/2022,2208-00178,0.00,1982.00,R,Aberford Hall,No
Http://opendatacommunities.org/id/metropolitan-district-council/leeds,Leeds City Council,30/09/2022,Adults and Health,Services For Older People Under 65 P/Dis,Agency Payments,Nursing Home,570,17/08/2022,2208-00179,0.00,2285.80,R,Aberford Hall,No
Http://opendatacommunities.org/id/metropolitan-district-council/leeds,Leeds City Council,30/09/2022,Resources,Leeds Building Services,Supplies and Services,Operational Materials,205,05/08/2022,2208-00180,0.00,391.85,R,ABI GARAGE DOORS LTD,No
Http://opendatacommunities.org/id/metropolitan-district-council/leeds,Leeds City Council,30/09/2022,Resources,Leeds Building Services,Supplies and Services,Operational Materials,205,05/08/2022,2208-00181,0.00,437.20,R,ABI GARAGE DOORS LTD,No
Http://opendatacommunities.org/id/metropolitan-district-council/leeds,Leeds City Council,30/09/2022,Resources,Leeds Building Services,Supplies and Services,Operational Materials,205,05/08/2022,2208-00182,0.00,437.20,R,ABI GARAGE DOORS LTD,No
Http://opendatacommunities.org/id/metropolitan-district-council/leeds,Leeds City Council,30/09/2022,Resources,Leeds Building Services,Supplies and Services,Operational Materials,205,05/08/2022,2208-00183,0.00,437.20,R,ABI GARAGE DOORS LTD,No
Http://opendatacommunities.org/id/metropolitan-district-council/leeds,Leeds City Council,30/09/2022,Resources,Leeds Building Services,Supplies and Services,Operational Materials,205,05/08/2022,2208-00184,0.00,526.82,R,ABI GARAGE DOORS LTD,No
Http://opendatacommunities.org/id/metropolitan-district-council/leeds,Leeds City Council,30/09/2022,Resources,Leeds Building Services,Supplies and Services,Operational Materials,205,17/08/2022,2208-00185,0.00,363.22,R,ABI GARAGE DOORS LTD,No
Http://opendatacommunities.org/id/metropolitan-district-council/leeds,Leeds City Council,30/09/2022,Resources,Leeds Building Services,Supplies and Services,Operational Materials,205,17/08/2022,2208-00186,0.00,404.65,R,ABI GARAGE DOORS LTD,No
Http://opendatacommunities.org/id/metropolitan-district-council/leeds,Leeds City Council,30/09/2022,Resources,Leeds Building Services,Supplies and Services,Operational Materials,205,17/08/2022,2208-00187,0.00,388.32,R,ABI GARAGE DOORS LTD,No
Http://opendatacommunities.org/id/metropolitan-district-council/leeds,Leeds City Council,30/09/2022,Resources,Leeds Building Services,Supplies and Services,Operational Materials,205,17/08/2022,2208-00188,0.00,3127.04,R,ABI GARAGE DOORS LTD,No
Http://opendatacommunities.org/id/metropolitan-district-council/leeds,Leeds City Council,30/09/2022,Communities Housing and Environment,Customer Access,Supplies and Services,Bought In Professional Services,277,03/08/2022,2208-00189,0.00,19.20,R,Abida Begum,No
Http://opendatacommunities.org/id/metropolitan-district-council/leeds,Leeds City Council,30/09/2022,Children and Families,Social Care,Agency Payments,Placement Support,550,03/08/2022,2208-00190,0.00,30.00,R,REDACTED PERSONAL DATA,No
Http://opendatacommunities.org/id/metropolitan-district-council/leeds,Leeds City Council,30/09/2022,Children and Families,Social Care,Appropriations,Leaving Care Allowances,634,08/08/2022,2208-00191,0.00,60.00,R,REDACTED PERSONAL DATA,No
Http://opendatacommunities.org/id/metropolitan-district-council/leeds,Leeds City Council,30/09/2022,Children and Families,Social Care,Appropriations,Leaving Care Allowances,634,18/08/2022,2208-00192,0.00,10.00,R,REDACTED PERSONAL DATA,No
Http://opendatacommunities.org/id/metropolitan-district-council/leeds,Leeds City Council,30/09/2022,Children and Families,Social Care,Agency Payments,General External Residential Placements,507,30/08/2022,2208-00193,0.00,17692.01,R,Absolute Children's Services Ltd,No
Http://opendatacommunities.org/id/metropolitan-district-council/leeds,Leeds City Council,30/09/2022,Adults and Health,Services For Adults Under 65 Mental/Dis,Agency Payments,Fees - Level 4,520,22/08/2022,2208-00194,0.00,1503.60,R,Abubaker Denja Mohammed,No
Http://opendatacommunities.org/id/metropolitan-district-council/leeds,Leeds City Council,30/09/2022,Children and Families,Social Care,Agency Payments,Services Rendered By Other Organisations,511,03/08/2022,2208-00195,0.00,10777.95,R,Academies Enterprise Trust (AET),No
Http://opendatacommunities.org/id/metropolitan-district-council/leeds,Leeds City Council,30/09/2022,Children and Families,Social Care,Agency Payments,Services Rendered By Other Organisations,511,05/08/2022,2208-00196,0.00,53559.90,R,Academies Enterprise Trust (AET),No
Http://opendatacommunities.org/id/metropolitan-district-council/leeds,Leeds City Council,30/09/2022,Children and Families,Social Care,Agency Payments,Services Rendered By Other Organisations,511,05/08/2022,2208-00197,0.00,585.00,R,Academies Enterprise Trust (AET),No
Http://opendatacommunities.org/id/metropolitan-district-council/leeds,Leeds City Council,30/09/2022,Children and Families,Social Care,Agency Payments,Services Rendered By Other Organisations,511,05/08/2022,2208-00198,0.00,3996.00,R,Academies Enterprise Trust (AET),No
Http://opendatacommunities.org/id/metropolitan-district-council/leeds,Leeds City Council,30/09/2022,Resources,Finance ,Employees,Training & Development,70,06/07/2022,2208-00199,0.00,255.00,R,Acas,Yes
Http://opendatacommunities.org/id/metropolitan-district-council/leeds,Leeds City Council,30/09/2022,Resources,Human Resources ,Supplies and Services,Memberships,226,05/07/2022,2208-00200,0.00,70.00,R,Access Association,Yes
Http://opendatacommunities.org/id/metropolitan-district-council/leeds,Leeds City Council,30/09/2022,Strategic Landlord,Housing Management,Supplies and Services,Operational Furniture And Equipment,203,01/08/2022,2208-00201,0.00,97.00,R,ACCESS LOCKSMITHS (LEEDS) LIMITED,No
Http://opendatacommunities.org/id/metropolitan-district-council/leeds,Leeds City Council,30/09/2022,Strategic Landlord,Property and Contracts,Premises,General Maintenance,104,12/08/2022,2208-00202,0.00,89.90,R,ACCESS LOCKSMITHS (LEEDS) LIMITED,No
Http://opendatacommunities.org/id/metropolitan-district-council/leeds,Leeds City Council,30/09/2022,Strategic Landlord,Property and Contracts,Premises,General Maintenance,104,12/08/2022,2208-00203,0.00,50.00,R,ACCESS LOCKSMITHS (LEEDS) LIMITED,No
Http://opendatacommunities.org/id/metropolitan-district-council/leeds,Leeds City Council,30/09/2022,Strategic Landlord,Property and Contracts,Premises,General Maintenance,104,12/08/2022,2208-00204,0.00,28.65,R,ACCESS LOCKSMITHS (LEEDS) LIMITED,No
Http://opendatacommunities.org/id/metropolitan-district-council/leeds,Leeds City Council,30/09/2022,Resources,Leeds Building Services,Supplies and Services,Operational Materials,205,12/08/2022,2208-00205,0.00,124.14,R,ACCESS LOCKSMITHS (LEEDS) LIMITED,No
Http://opendatacommunities.org/id/metropolitan-district-council/leeds,Leeds City Council,30/09/2022,Resources,Leeds Building Services,Supplies and Services,Operational Materials,205,12/08/2022,2208-00206,0.00,17.87,R,ACCESS LOCKSMITHS (LEEDS) LIMITED,No
Http://opendatacommunities.org/id/metropolitan-district-council/leeds,Leeds City Council,30/09/2022,Resources,Leeds Building Services,Supplies and Services,Operational Materials,205,12/08/2022,2208-00207,0.00,57.53,R,ACCESS LOCKSMITHS (LEEDS) LIMITED,No
Http://opendatacommunities.org/id/metropolitan-district-council/leeds,Leeds City Council,30/09/2022,Resources,Leeds Building Services,Supplies and Services,Operational Materials,205,17/08/2022,2208-00208,0.00,7.00,R,ACCESS LOCKSMITHS (LEEDS) LIMITED,No
Http://opendatacommunities.org/id/metropolitan-district-council/leeds,Leeds City Council,30/09/2022,Resources,Leeds Building Services,Premises,Cleaning Maintenance & Toiletries,127,17/08/2022,2208-00209,0.00,58.48,R,ACCESS LOCKSMITHS (LEEDS) LIMITED,No
Http://opendatacommunities.org/id/metropolitan-district-council/leeds,Leeds City Council,30/09/2022,Resources,Leeds Building Services,Premises,Cleaning Maintenance & Toiletries,127,17/08/2022,2208-00210,0.00,40.68,R,ACCESS LOCKSMITHS (LEEDS) LIMITED,No
Http://opendatacommunities.org/id/metropolitan-district-council/leeds,Leeds City Council,30/09/2022,Resources,Leeds Building Services,Premises,Cleaning Maintenance & Toiletries,127,17/08/2022,2208-00211,0.00,105.39,R,ACCESS LOCKSMITHS (LEEDS) LIMITED,No
Http://opendatacommunities.org/id/metropolitan-district-council/leeds,Leeds City Council,30/09/2022,Resources,Leeds Building Services,Supplies and Services,Operational Materials,205,17/08/2022,2208-00212,0.00,415.55,R,ACCESS LOCKSMITHS (LEEDS) LIMITED,No
Http://opendatacommunities.org/id/metropolitan-district-council/leeds,Leeds City Council,30/09/2022,Resources,Leeds Building Services,Supplies and Services,Operational Materials,205,17/08/2022,2208-00213,0.00,21.17,R,ACCESS LOCKSMITHS (LEEDS) LIMITED,No
Http://opendatacommunities.org/id/metropolitan-district-council/leeds,Leeds City Council,30/09/2022,Resources,Leeds Building Services,Supplies and Services,Operational Materials,205,17/08/2022,2208-00214,0.00,48.28,R,ACCESS LOCKSMITHS (LEEDS) LIMITED,No
Http://opendatacommunities.org/id/metropolitan-district-council/leeds,Leeds City Council,30/09/2022,Resources,Leeds Building Services,Supplies and Services,Operational Materials,205,17/08/2022,2208-00215,0.00,11.20,R,ACCESS LOCKSMITHS (LEEDS) LIMITED,No
Http://opendatacommunities.org/id/metropolitan-district-council/leeds,Leeds City Council,30/09/2022,Resources,Leeds Building Services,Supplies and Services,Operational Materials,205,17/08/2022,2208-00216,0.00,55.70,R,ACCESS LOCKSMITHS (LEEDS) LIMITED,No
Http://opendatacommunities.org/id/metropolitan-district-council/leeds,Leeds City Council,30/09/2022,Resources,Leeds Building Services,Supplies and Services,Operational Materials,205,17/08/2022,2208-00217,0.00,48.54,R,ACCESS LOCKSMITHS (LEEDS) LIMITED,No
Http://opendatacommunities.org/id/metropolitan-district-council/leeds,Leeds City Council,30/09/2022,Resources,Leeds Building Services,Supplies and Services,Operational Materials,205,17/08/2022,2208-00218,0.00,48.54,R,ACCESS LOCKSMITHS (LEEDS) LIMITED,No
Http://opendatacommunities.org/id/metropolitan-district-council/leeds,Leeds City Council,30/09/2022,Resources,Leeds Building Services,Supplies and Services,Operational Materials,205,17/08/2022,2208-00219,0.00,48.54,R,ACCESS LOCKSMITHS (LEEDS) LIMITED,No
Http://opendatacommunities.org/id/metropolitan-district-council/leeds,Leeds City Council,30/09/2022,Resources,Leeds Building Services,Supplies and Services,Operational Materials,205,17/08/2022,2208-00220,0.00,21.50,R,ACCESS LOCKSMITHS (LEEDS) LIMITED,No
Http://opendatacommunities.org/id/metropolitan-district-council/leeds,Leeds City Council,30/09/2022,Resources,Leeds Building Services,Supplies and Services,Operational Materials,205,17/08/2022,2208-00221,0.00,2856.00,R,ACCESS LOCKSMITHS (LEEDS) LIMITED,No
Http://opendatacommunities.org/id/metropolitan-district-council/leeds,Leeds City Council,30/09/2022,Resources,Leeds Building Services,Supplies and Services,Operational Materials,205,17/08/2022,2208-00222,0.00,331.90,R,ACCESS LOCKSMITHS (LEEDS) LIMITED,No
Http://opendatacommunities.org/id/metropolitan-district-council/leeds,Leeds City Council,30/09/2022,Resources,Leeds Building Services,Supplies and Services,Operational Materials,205,17/08/2022,2208-00223,0.00,171.04,R,ACCESS LOCKSMITHS (LEEDS) LIMITED,No
Http://opendatacommunities.org/id/metropolitan-district-council/leeds,Leeds City Council,30/09/2022,Resources,Leeds Building Services,Supplies and Services,Operational Materials,205,17/08/2022,2208-00224,0.00,171.04,R,ACCESS LOCKSMITHS (LEEDS) LIMITED,No
Http://opendatacommunities.org/id/metropolitan-district-council/leeds,Leeds City Council,30/09/2022,Resources,Leeds Building Services,Supplies and Services,Operational Materials,205,17/08/2022,2208-00225,0.00,3.50,R,ACCESS LOCKSMITHS (LEEDS) LIMITED,No
Http://opendatacommunities.org/id/metropolitan-district-council/leeds,Leeds City Council,30/09/2022,Strategic Landlord,Housing Management,Supplies and Services,Resaleable Materials,204,18/08/2022,2208-00226,0.00,201.56,R,ACCESS LOCKSMITHS (LEEDS) LIMITED,No
Http://opendatacommunities.org/id/metropolitan-district-council/leeds,Leeds City Council,30/09/2022,Resources,Leeds Building Services,Supplies and Services,Operational Materials,205,19/08/2022,2208-00227,0.00,160.75,R,ACCESS LOCKSMITHS (LEEDS) LIMITED,No
Http://opendatacommunities.org/id/metropolitan-district-council/leeds,Leeds City Council,30/09/2022,Resources,Leeds Building Services,Supplies and Services,Operational Materials,205,19/08/2022,2208-00228,0.00,89.02,R,ACCESS LOCKSMITHS (LEEDS) LIMITED,No
Http://opendatacommunities.org/id/metropolitan-district-council/leeds,Leeds City Council,30/09/2022,Strategic Landlord,Housing Management,Supplies and Services,Grant Related Expenditure,298,23/08/2022,2208-00229,0.00,37.20,R,ACCESS LOCKSMITHS (LEEDS) LIMITED,No
Http://opendatacommunities.org/id/metropolitan-district-council/leeds,Leeds City Council,30/09/2022,Resources,Commercial Services,Supplies and Services,Operational Materials,205,26/08/2022,2208-00230,0.00,440.00,R,ACCESS LOCKSMITHS (LEEDS) LIMITED,No
Http://opendatacommunities.org/id/metropolitan-district-council/leeds,Leeds City Council,30/09/2022,Communities Housing and Environment,Communities,Supplies and Services,Office Furniture & Equipment,201,26/08/2022,2208-00231,0.00,32.40,R,ACCESS LOCKSMITHS (LEEDS) LIMITED,No
Http://opendatacommunities.org/id/metropolitan-district-council/leeds,Leeds City Council,30/09/2022,Resources,Leeds Building Services,Supplies and Services,Operational Materials,205,26/08/2022,2208-00232,0.00,18.52,R,ACCESS LOCKSMITHS (LEEDS) LIMITED,No
Http://opendatacommunities.org/id/metropolitan-district-council/leeds,Leeds City Council,30/09/2022,Resources,Leeds Building Services,Supplies and Services,Operational Materials,205,26/08/2022,2208-00233,0.00,124.32,R,ACCESS LOCKSMITHS (LEEDS) LIMITED,No
Http://opendatacommunities.org/id/metropolitan-district-council/leeds,Leeds City Council,30/09/2022,Resources,Leeds Building Services,Supplies and Services,Operational Materials,205,26/08/2022,2208-00234,0.00,28.15,R,ACCESS LOCKSMITHS (LEEDS) LIMITED,No
Http://opendatacommunities.org/id/metropolitan-district-council/leeds,Leeds City Council,30/09/2022,Strategic Landlord,Housing Management,Supplies and Services,Resaleable Materials,204,30/08/2022,2208-00235,0.00,18.00,R,ACCESS LOCKSMITHS (LEEDS) LIMITED,No
Http://opendatacommunities.org/id/metropolitan-district-council/leeds,Leeds City Council,30/09/2022,Strategic Landlord,Housing Management,Premises,General Maintenance,104,31/08/2022,2208-00236,0.00,55.88,R,ACCESS LOCKSMITHS (LEEDS) LIMITED,No
Http://opendatacommunities.org/id/metropolitan-district-council/leeds,Leeds City Council,30/09/2022,Strategic Landlord,Housing Management,Premises,General Maintenance,104,31/08/2022,2208-00237,0.00,65.00,R,ACCESS LOCKSMITHS (LEEDS) LIMITED,No
Http://opendatacommunities.org/id/metropolitan-district-council/leeds,Leeds City Council,30/09/2022,Strategic Landlord,Housing Management,Premises,General Maintenance,104,31/08/2022,2208-00238,0.00,154.00,R,ACCESS LOCKSMITHS (LEEDS) LIMITED,No
Http://opendatacommunities.org/id/metropolitan-district-council/leeds,Leeds City Council,30/09/2022,Strategic Landlord,Housing Management,Premises,General Maintenance,104,31/08/2022,2208-00239,0.00,92.00,R,ACCESS LOCKSMITHS (LEEDS) LIMITED,No
Http://opendatacommunities.org/id/metropolitan-district-council/leeds,Leeds City Council,30/09/2022,Strategic Landlord,HRA Housing Leeds,Capital,OTHER COSTS,7,31/08/2022,2208-00240,0.00,49.60,C,ACCESS LOCKSMITHS (LEEDS) LIMITED,No
Http://opendatacommunities.org/id/metropolitan-district-council/leeds,Leeds City Council,30/09/2022,Strategic Landlord,Property and Contracts,Premises,General Maintenance,104,31/08/2022,2208-00241,0.00,224.34,R,ACCESS LOCKSMITHS (LEEDS) LIMITED,No
Http://opendatacommunities.org/id/metropolitan-district-council/leeds,Leeds City Council,30/09/2022,Resources,Leeds Building Services,Supplies and Services,Operational Materials,205,31/08/2022,2208-00242,0.00,126.03,R,ACCESS LOCKSMITHS (LEEDS) LIMITED,No
Http://opendatacommunities.org/id/metropolitan-district-council/leeds,Leeds City Council,30/09/2022,Resources,Leeds Building Services,Supplies and Services,Operational Materials,205,31/08/2022,2208-00243,0.00,118.74,R,ACCESS LOCKSMITHS (LEEDS) LIMITED,No
Http://opendatacommunities.org/id/metropolitan-district-council/leeds,Leeds City Council,30/09/2022,Resources,Leeds Building Services,Supplies and Services,Operational Materials,205,31/08/2022,2208-00244,0.00,192.12,R,ACCESS LOCKSMITHS (LEEDS) LIMITED,No
Http://opendatacommunities.org/id/metropolitan-district-council/leeds,Leeds City Council,30/09/2022,Resources,Technology,Supplies and Services,Computer Software & Equipment,214,24/08/2022,2208-00245,0.00,950.00,R,Access Uk Ltd,No
Http://opendatacommunities.org/id/metropolitan-district-council/leeds,Leeds City Council,30/09/2022,City Development,Libraries Arts & Heritage,Supplies and Services,Bought In Professional Services,277,19/08/2022,2208-00246,0.00,2800.00,R,Accessible By Design Ltd,No
Http://opendatacommunities.org/id/metropolitan-district-council/leeds,Leeds City Council,30/09/2022,Insurance,Insurance,Supplies and Services,Insurance Claims,248,18/08/2022,2208-00247,0.00,4000.00,R,Accountant General Of The Senior Courts,No
Http://opendatacommunities.org/id/metropolitan-district-council/leeds,Leeds City Council,30/09/2022,City Development,Recreation,Transport,External Hire -Occasional,304,31/08/2022,2208-00248,0.00,128.65,R,ACE CONTAINER SERVICES LIMITED,No
Http://opendatacommunities.org/id/metropolitan-district-council/leeds,Leeds City Council,30/09/2022,City Development,Libraries Arts & Heritage,Supplies and Services,Advertising,211,08/08/2022,2208-00249,0.00,257.00,R,Aceville Publications Limited,No
Http://opendatacommunities.org/id/metropolitan-district-council/leeds,Leeds City Council,30/09/2022,Children and Families,Learning,Agency Payments,SEN Placements,566,01/08/2022,2208-00250,0.00,74668.67,R,Acorn Care & Education Ltd (Sales),No
Http://opendatacommunities.org/id/metropolitan-district-council/leeds,Leeds City Council,30/09/2022,Children and Families,Learning,Agency Payments,SEN Placements,566,11/08/2022,2208-00251,0.00,19762.67,R,Acorn Care & Education Ltd (Sales),No
Http://opendatacommunities.org/id/metropolitan-district-council/leeds,Leeds City Council,30/09/2022,Children and Families,Social Care,Agency Payments,General External Residential Placements,507,18/08/2022,2208-00252,0.00,20229.87,R,Acorn Care & Education Ltd (Sales),No
Http://opendatacommunities.org/id/metropolitan-district-council/leeds,Leeds City Council,30/09/2022,Children and Families,Social Care,Agency Payments,General External Residential Placements,507,18/08/2022,2208-00253,0.00,23946.27,R,Acorn Care & Education Ltd (Sales),No
Http://opendatacommunities.org/id/metropolitan-district-council/leeds,Leeds City Council,30/09/2022,Children and Families,Social Care,Agency Payments,General External Residential Placements,507,18/08/2022,2208-00254,0.00,16692.86,R,Acorn Care & Education Ltd (Sales),No
Http://opendatacommunities.org/id/metropolitan-district-council/leeds,Leeds City Council,30/09/2022,Children and Families,Social Care,Agency Payments,General External Residential Placements,507,18/08/2022,2208-00255,0.00,17110.24,R,Acorn Care & Education Ltd (Sales),No
Http://opendatacommunities.org/id/metropolitan-district-council/leeds,Leeds City Council,30/09/2022,Children and Families,Social Care,Agency Payments,General External Residential Placements,507,23/08/2022,2208-00256,0.00,9831.61,R,Acorn Care & Education Ltd (Sales),No
Http://opendatacommunities.org/id/metropolitan-district-council/leeds,Leeds City Council,30/09/2022,Children and Families,Social Care,Agency Payments,General External Residential Placements,507,23/08/2022,2208-00257,0.00,18434.27,R,Acorn Care & Education Ltd (Sales),No
Http://opendatacommunities.org/id/metropolitan-district-council/leeds,Leeds City Council,30/09/2022,Adults and Health,Services For Older People Under 65 P/Dis,Agency Payments,Nursing Home,570,17/08/2022,2208-00258,0.00,28204.00,R,Acorn Care Home,No
Http://opendatacommunities.org/id/metropolitan-district-council/leeds,Leeds City Council,30/09/2022,Adults and Health,Other Adult Services,Agency Payments,Residential - Drugs & Alcohol,583,05/08/2022,2208-00259,0.00,357.10,R,Acorn Recovery Projects,No
Http://opendatacommunities.org/id/metropolitan-district-council/leeds,Leeds City Council,30/09/2022,Children and Families,Social Care,Agency Payments,Services Rendered By Other Organisations,511,03/08/2022,2208-00260,0.00,568.14,R,ACORNS NURSERY,No
Http://opendatacommunities.org/id/metropolitan-district-council/leeds,Leeds City Council,30/09/2022,Children and Families,Social Care,Agency Payments,Services Rendered By Other Organisations,511,05/08/2022,2208-00261,0.00,5640.40,R,ACORNS NURSERY,No
Http://opendatacommunities.org/id/metropolitan-district-council/leeds,Leeds City Council,30/09/2022,Children and Families,Social Care,Agency Payments,Services Rendered By Other Organisations,511,05/08/2022,2208-00262,0.00,127.92,R,ACORNS NURSERY,No
Http://opendatacommunities.org/id/metropolitan-district-council/leeds,Leeds City Council,30/09/2022,Adults and Health,Services For Older People - 65 And Over,Agency Payments,Nursing Home,570,17/08/2022,2208-00263,0.00,42172.74,R,Acre Green,No
Http://opendatacommunities.org/id/metropolitan-district-council/leeds,Leeds City Council,30/09/2022,Adults and Health,Services For Older People - 65 And Over,Agency Payments,Residential,580,17/08/2022,2208-00264,0.00,4180.20,R,Acre Green,No
Http://opendatacommunities.org/id/metropolitan-district-council/leeds,Leeds City Council,30/09/2022,Adults and Health,Services For Older People Under 65 P/Dis,Agency Payments,Nursing Home,570,17/08/2022,2208-00265,0.00,2197.20,R,Acre Green,No
Http://opendatacommunities.org/id/metropolitan-district-council/leeds,Leeds City Council,30/09/2022,Adults and Health,Services For Older People Under 65 P/Dis,Agency Payments,Residential,580,17/08/2022,2208-00266,0.00,1892.20,R,Acre Green,No
Http://opendatacommunities.org/id/metropolitan-district-council/leeds,Leeds City Council,30/09/2022,Children and Families,Social Care,Agency Payments,Services Rendered By Other Organisations,511,03/08/2022,2208-00267,0.00,868.92,R,Acre Wood Day Nursery,No
Http://opendatacommunities.org/id/metropolitan-district-council/leeds,Leeds City Council,30/09/2022,Children and Families,Social Care,Agency Payments,Services Rendered By Other Organisations,511,05/08/2022,2208-00268,0.00,4101.24,R,Acre Wood Day Nursery,No
Http://opendatacommunities.org/id/metropolitan-district-council/leeds,Leeds City Council,30/09/2022,Children and Families,Social Care,Agency Payments,Services Rendered By Other Organisations,511,05/08/2022,2208-00269,0.00,117.00,R,Acre Wood Day Nursery,No
Http://opendatacommunities.org/id/metropolitan-district-council/leeds,Leeds City Council,30/09/2022,Children and Families,Social Care,Agency Payments,Services Rendered By Other Organisations,511,05/08/2022,2208-00270,0.00,1825.20,R,Acre Wood Day Nursery,No
Http://opendatacommunities.org/id/metropolitan-district-council/leeds,Leeds City Council as Accountable Body,30/09/2022,Social Services Pooled Budgets,Jcs For People With Learning Disabilitie,Agency Payments,Residential,580,17/08/2022,2208-00271,0.00,10702.60,R,Action For Care Contracts Limited,No
Http://opendatacommunities.org/id/metropolitan-district-council/leeds,Leeds City Council,30/09/2022,Strategic Accounts,Miscellaneous,Supplies and Services,Non-Recurring Grants,227,09/08/2022,2208-00272,0.00,50.00,R,Action For Seacroft,No
Http://opendatacommunities.org/id/metropolitan-district-council/leeds,Leeds City Council,30/09/2022,Children and Families,Social Care,Supplies and Services,General Amenity For Clients/Residents,285,05/08/2022,2208-00273,0.00,345.00,R,ACTIVE HIRE (LEEDS) LTD,No
Http://opendatacommunities.org/id/metropolitan-district-council/leeds,Leeds City Council,30/09/2022,Children and Families,Social Care,Agency Payments,Services Rendered By Other Organisations,511,03/08/2022,2208-00274,0.00,1737.84,R,ACTIVE KIDS YEADON LLP,No
Http://opendatacommunities.org/id/metropolitan-district-council/leeds,Leeds City Council,30/09/2022,Children and Families,Social Care,Agency Payments,Services Rendered By Other Organisations,511,05/08/2022,2208-00275,0.00,6271.36,R,ACTIVE KIDS YEADON LLP,No
Http://opendatacommunities.org/id/metropolitan-district-council/leeds,Leeds City Council,30/09/2022,Children and Families,Social Care,Agency Payments,Services Rendered By Other Organisations,511,05/08/2022,2208-00276,0.00,800.00,R,ACTIVE KIDS YEADON LLP,No
Http://opendatacommunities.org/id/metropolitan-district-council/leeds,Leeds City Council,30/09/2022,Children and Families,Social Care,Agency Payments,Services Rendered By Other Organisations,511,05/08/2022,2208-00277,0.00,127.40,R,ACTIVE KIDS YEADON LLP,No
Http://opendatacommunities.org/id/metropolitan-district-council/leeds,Leeds City Council,30/09/2022,Communities Housing and Environment,Strategic Housing Partnership & Support ,Supplies and Services,Other Hired And Contracted Services,265,12/07/2022,2208-00278,0.00,249.50,R,Active Leeds,Yes
Http://opendatacommunities.org/id/metropolitan-district-council/leeds,Leeds City Council,30/09/2022,Communities Housing and Environment,Strategic Housing Partnership & Support ,Supplies and Services,Other Hired And Contracted Services,265,14/07/2022,2208-00279,0.00,249.50,R,Active Leeds,Yes
Http://opendatacommunities.org/id/metropolitan-district-council/leeds,Leeds City Council,30/09/2022,Children and Families,Social Care ,Supplies and Services,Other Hired And Contracted Services,265,22/07/2022,2208-00280,0.00,4.00,R,Active Leeds,Yes
Http://opendatacommunities.org/id/metropolitan-district-council/leeds,Leeds City Council,30/09/2022,Adults and Health,Services For Adults Under 65 Mental/Dis,Agency Payments,Sheltered Accommodation,569,17/08/2022,2208-00281,0.00,14943.04,R,Active Pathways,No
Http://opendatacommunities.org/id/metropolitan-district-council/leeds,Leeds City Council,30/09/2022,Adults and Health,Services For Older People - 65 And Over,Agency Payments,Sheltered Accommodation,569,17/08/2022,2208-00282,0.00,4154.84,R,Active Pathways,No
Http://opendatacommunities.org/id/metropolitan-district-council/leeds,Leeds City Council as Accountable Body,30/09/2022,Social Services Pooled Budgets,Jcs For People With Learning Disabilitie,Agency Payments,Sheltered Accommodation,569,17/08/2022,2208-00283,0.00,12452.52,R,Active Pathways,No
Http://opendatacommunities.org/id/metropolitan-district-council/leeds,Leeds City Council,30/09/2022,Children and Families,Social Care ,Supplies and Services,Clothing & Uniforms,241,27/06/2022,2208-00284,0.00,28.08,R,Activewear Brands,Yes
Http://opendatacommunities.org/id/metropolitan-district-council/leeds,Leeds City Council,30/09/2022,Children and Families,Social Care ,Supplies and Services,Clothing & Uniforms,241,27/06/2022,2208-00285,0.00,45.37,R,Activewear Brands,Yes
Http://opendatacommunities.org/id/metropolitan-district-council/leeds,Leeds City Council,30/09/2022,Children and Families,Social Care ,Supplies and Services,Clothing & Uniforms,241,27/06/2022,2208-00286,0.00,27.00,R,Activewear Brands,Yes
Http://opendatacommunities.org/id/metropolitan-district-council/leeds,Leeds City Council,30/09/2022,Adults and Health,Social Services Support Services ,Supplies and Services,Operational Materials,205,13/07/2022,2208-00287,0.00,79.81,R,Activities To Share,Yes
Http://opendatacommunities.org/id/metropolitan-district-council/leeds,Leeds City Council,30/09/2022,Communities Housing and Environment,Waste Management,Supplies and Services,Recycling & Reuse Charges,234,05/08/2022,2208-00288,0.00,1003.68,R,Acumen Waste Services Ltd,No
Http://opendatacommunities.org/id/metropolitan-district-council/leeds,Leeds City Council,30/09/2022,Communities Housing and Environment,Waste Management,Supplies and Services,Recycling & Reuse Charges,234,05/08/2022,2208-00289,0.00,923.04,R,Acumen Waste Services Ltd,No
Http://opendatacommunities.org/id/metropolitan-district-council/leeds,Leeds City Council,30/09/2022,Communities Housing and Environment,Waste Management,Supplies and Services,Recycling & Reuse Charges,234,05/08/2022,2208-00290,0.00,974.16,R,Acumen Waste Services Ltd,No
Http://opendatacommunities.org/id/metropolitan-district-council/leeds,Leeds City Council,30/09/2022,Communities Housing and Environment,Waste Management,Supplies and Services,Recycling & Reuse Charges,234,05/08/2022,2208-00291,0.00,989.28,R,Acumen Waste Services Ltd,No
Http://opendatacommunities.org/id/metropolitan-district-council/leeds,Leeds City Council,30/09/2022,Communities Housing and Environment,Waste Management,Supplies and Services,Recycling & Reuse Charges,234,05/08/2022,2208-00292,0.00,1000.08,R,Acumen Waste Services Ltd,No
Http://opendatacommunities.org/id/metropolitan-district-council/leeds,Leeds City Council,30/09/2022,Communities Housing and Environment,Waste Management,Supplies and Services,Recycling & Reuse Charges,234,10/08/2022,2208-00293,0.00,952.56,R,Acumen Waste Services Ltd,No
Http://opendatacommunities.org/id/metropolitan-district-council/leeds,Leeds City Council,30/09/2022,Communities Housing and Environment,Waste Management,Supplies and Services,Recycling & Reuse Charges,234,10/08/2022,2208-00294,0.00,1001.52,R,Acumen Waste Services Ltd,No
Http://opendatacommunities.org/id/metropolitan-district-council/leeds,Leeds City Council,30/09/2022,Communities Housing and Environment,Waste Management,Supplies and Services,Recycling & Reuse Charges,234,10/08/2022,2208-00295,0.00,982.08,R,Acumen Waste Services Ltd,No
Http://opendatacommunities.org/id/metropolitan-district-council/leeds,Leeds City Council,30/09/2022,Communities Housing and Environment,Waste Management,Supplies and Services,Recycling & Reuse Charges,234,11/08/2022,2208-00296,0.00,2965.68,R,Acumen Waste Services Ltd,No
Http://opendatacommunities.org/id/metropolitan-district-council/leeds,Leeds City Council,30/09/2022,Communities Housing and Environment,Waste Management,Supplies and Services,Recycling & Reuse Charges,234,11/08/2022,2208-00297,0.00,1000.08,R,Acumen Waste Services Ltd,No
Http://opendatacommunities.org/id/metropolitan-district-council/leeds,Leeds City Council,30/09/2022,Communities Housing and Environment,Waste Management,Supplies and Services,Recycling & Reuse Charges,234,11/08/2022,2208-00298,0.00,1013.76,R,Acumen Waste Services Ltd,No
Http://opendatacommunities.org/id/metropolitan-district-council/leeds,Leeds City Council,30/09/2022,Communities Housing and Environment,Waste Management,Supplies and Services,Recycling & Reuse Charges,234,12/08/2022,2208-00299,0.00,974.88,R,Acumen Waste Services Ltd,No
Http://opendatacommunities.org/id/metropolitan-district-council/leeds,Leeds City Council,30/09/2022,Communities Housing and Environment,Waste Management,Supplies and Services,Waste Disposal Charges,236,12/08/2022,2208-00300,0.00,870.26,R,Acumen Waste Services Ltd,No
Http://opendatacommunities.org/id/metropolitan-district-council/leeds,Leeds City Council,30/09/2022,Communities Housing and Environment,Waste Management,Supplies and Services,Waste Disposal Charges,236,12/08/2022,2208-00301,0.00,845.85,R,Acumen Waste Services Ltd,No
Http://opendatacommunities.org/id/metropolitan-district-council/leeds,Leeds City Council,30/09/2022,Communities Housing and Environment,Waste Management,Supplies and Services,Recycling & Reuse Charges,234,12/08/2022,2208-00302,0.00,1019.52,R,Acumen Waste Services Ltd,No
Http://opendatacommunities.org/id/metropolitan-district-council/leeds,Leeds City Council,30/09/2022,Communities Housing and Environment,Waste Management,Supplies and Services,Recycling & Reuse Charges,234,18/08/2022,2208-00303,0.00,1008.72,R,Acumen Waste Services Ltd,No
Http://opendatacommunities.org/id/metropolitan-district-council/leeds,Leeds City Council,30/09/2022,Communities Housing and Environment,Waste Management,Supplies and Services,Recycling & Reuse Charges,234,18/08/2022,2208-00304,0.00,988.56,R,Acumen Waste Services Ltd,No
Http://opendatacommunities.org/id/metropolitan-district-council/leeds,Leeds City Council,30/09/2022,Communities Housing and Environment,Waste Management,Supplies and Services,Recycling & Reuse Charges,234,18/08/2022,2208-00305,0.00,995.76,R,Acumen Waste Services Ltd,No
Http://opendatacommunities.org/id/metropolitan-district-council/leeds,Leeds City Council,30/09/2022,Communities Housing and Environment,Waste Management,Supplies and Services,Recycling & Reuse Charges,234,18/08/2022,2208-00306,0.00,992.16,R,Acumen Waste Services Ltd,No
Http://opendatacommunities.org/id/metropolitan-district-council/leeds,Leeds City Council,30/09/2022,Communities Housing and Environment,Waste Management,Supplies and Services,Recycling & Reuse Charges,234,25/08/2022,2208-00307,0.00,984.96,R,Acumen Waste Services Ltd,No
Http://opendatacommunities.org/id/metropolitan-district-council/leeds,Leeds City Council,30/09/2022,Communities Housing and Environment,Waste Management,Supplies and Services,Recycling & Reuse Charges,234,25/08/2022,2208-00308,0.00,1017.36,R,Acumen Waste Services Ltd,No
Http://opendatacommunities.org/id/metropolitan-district-council/leeds,Leeds City Council,30/09/2022,Communities Housing and Environment,Waste Management,Supplies and Services,Recycling & Reuse Charges,234,25/08/2022,2208-00309,0.00,1015.20,R,Acumen Waste Services Ltd,No
Http://opendatacommunities.org/id/metropolitan-district-council/leeds,Leeds City Council,30/09/2022,Communities Housing and Environment,Waste Management,Supplies and Services,Waste Disposal Charges,236,25/08/2022,2208-00310,0.00,736.65,R,Acumen Waste Services Ltd,No
Http://opendatacommunities.org/id/metropolitan-district-council/leeds,Leeds City Council,30/09/2022,Communities Housing and Environment,Waste Management,Supplies and Services,Recycling & Reuse Charges,234,26/08/2022,2208-00311,0.00,996.48,R,Acumen Waste Services Ltd,No
Http://opendatacommunities.org/id/metropolitan-district-council/leeds,Leeds City Council,30/09/2022,Communities Housing and Environment,Waste Management,Supplies and Services,Recycling & Reuse Charges,234,26/08/2022,2208-00312,0.00,990.72,R,Acumen Waste Services Ltd,No
Http://opendatacommunities.org/id/metropolitan-district-council/leeds,Leeds City Council,30/09/2022,Communities Housing and Environment,Waste Management,Supplies and Services,Recycling & Reuse Charges,234,26/08/2022,2208-00313,0.00,930.96,R,Acumen Waste Services Ltd,No
Http://opendatacommunities.org/id/metropolitan-district-council/leeds,Leeds City Council,30/09/2022,Communities Housing and Environment,Waste Management,Supplies and Services,Recycling & Reuse Charges,234,31/08/2022,2208-00314,0.00,997.92,R,Acumen Waste Services Ltd,No
Http://opendatacommunities.org/id/metropolitan-district-council/leeds,Leeds City Council,30/09/2022,Communities Housing and Environment,Waste Management,Supplies and Services,Waste Disposal Charges,236,31/08/2022,2208-00315,0.00,1095.70,R,Acumen Waste Services Ltd,No
Http://opendatacommunities.org/id/metropolitan-district-council/leeds,Leeds City Council,30/09/2022,Communities Housing and Environment,Waste Management,Supplies and Services,Recycling & Reuse Charges,234,31/08/2022,2208-00316,0.00,986.40,R,Acumen Waste Services Ltd,No
Http://opendatacommunities.org/id/metropolitan-district-council/leeds,Leeds City Council,30/09/2022,Communities Housing and Environment,Waste Management,Supplies and Services,Recycling & Reuse Charges,234,31/08/2022,2208-00317,0.00,976.32,R,Acumen Waste Services Ltd,No
Http://opendatacommunities.org/id/metropolitan-district-council/leeds,Leeds City Council,30/09/2022,Resources,Shared Services,Supplies and Services,Other Hired And Contracted Services,265,05/08/2022,2208-00318,0.00,55.00,R,AD3 Envelope Printers Limited,No
Http://opendatacommunities.org/id/metropolitan-district-council/leeds,Leeds City Council,30/09/2022,Children and Families,Social Care,Internal Recharges,Legal Disbursements,411,10/08/2022,2208-00319,0.00,270.00,R,Adam Oates Radiology Services Ltd,No
Http://opendatacommunities.org/id/metropolitan-district-council/leeds,Leeds City Council,30/09/2022,Children and Families,Social Care,Agency Payments,Contact,548,05/08/2022,2208-00320,0.00,10.40,R,REDACTED PERSONAL DATA,No
Http://opendatacommunities.org/id/metropolitan-district-council/leeds,Leeds City Council,30/09/2022,Children and Families,Social Care,Agency Payments,Contact,548,12/08/2022,2208-00321,0.00,10.40,R,REDACTED PERSONAL DATA,No
Http://opendatacommunities.org/id/metropolitan-district-council/leeds,Leeds City Council,30/09/2022,Children and Families,Social Care,Agency Payments,Contact,548,19/08/2022,2208-00322,0.00,10.40,R,REDACTED PERSONAL DATA,No
Http://opendatacommunities.org/id/metropolitan-district-council/leeds,Leeds City Council,30/09/2022,Children and Families,Social Care,Agency Payments,Contact,548,26/08/2022,2208-00323,0.00,10.40,R,REDACTED PERSONAL DATA,No
Http://opendatacommunities.org/id/metropolitan-district-council/leeds,Leeds City Council,30/09/2022,Adults and Health,Social Services Support Services,Employees,Training & Development,70,05/08/2022,2208-00324,0.00,1330.00,R,Adam Rouilly Ltd,No
Http://opendatacommunities.org/id/metropolitan-district-council/leeds,Leeds City Council,30/09/2022,Adults and Health,Services For Older People - 65 And Over,Agency Payments,Residential Care Dementia,571,17/08/2022,2208-00325,0.00,2584.00,R,Adbolton Hall,No
Http://opendatacommunities.org/id/metropolitan-district-council/leeds,Leeds City Council,30/09/2022,Strategic Landlord,Housing Management,Supplies and Services,Grants To Voluntary Organisations,293,23/08/2022,2208-00326,0.00,300.00,R,Addictive Audio,No
Http://opendatacommunities.org/id/metropolitan-district-council/leeds,Leeds City Council,30/09/2022,Adults and Health,Public Health,Agency Payments,Public Health Commissioned Services,526,05/08/2022,2208-00327,0.00,2681.32,R,Addlestone & Partners,No
Http://opendatacommunities.org/id/metropolitan-district-council/leeds,Leeds City Council,30/09/2022,Communities Housing and Environment,Communities,Supplies and Services,'Well Being' Large Grants Projects,230,18/08/2022,2208-00328,0.00,1000.00,R,Adel Artist Group,No
Http://opendatacommunities.org/id/metropolitan-district-council/leeds,Leeds City Council,30/09/2022,Children and Families,Social Care,Agency Payments,Services Rendered By Voluntary Sector,505,03/08/2022,2208-00329,0.00,3375.42,R,ADEL PRE SCHOOL,No
Http://opendatacommunities.org/id/metropolitan-district-council/leeds,Leeds City Council,30/09/2022,Children and Families,Social Care,Agency Payments,Services Rendered By Voluntary Sector,505,05/08/2022,2208-00330,0.00,5816.30,R,ADEL PRE SCHOOL,No
Http://opendatacommunities.org/id/metropolitan-district-council/leeds,Leeds City Council,30/09/2022,Children and Families,Social Care,Agency Payments,Services Rendered By Voluntary Sector,505,05/08/2022,2208-00331,0.00,585.00,R,ADEL PRE SCHOOL,No
Http://opendatacommunities.org/id/metropolitan-district-council/leeds,Leeds City Council,30/09/2022,Children and Families,Social Care,Agency Payments,Services Rendered By Voluntary Sector,505,05/08/2022,2208-00332,0.00,684.84,R,ADEL PRE SCHOOL,No
Http://opendatacommunities.org/id/metropolitan-district-council/leeds,Leeds City Council,30/09/2022,Children and Families,Social Care,Agency Payments,Services Rendered By Voluntary Sector,505,26/08/2022,2208-00333,0.00,750.00,R,ADEL PRE SCHOOL,No
Http://opendatacommunities.org/id/metropolitan-district-council/leeds,Leeds City Council,30/09/2022,Communities Housing and Environment,Car Parking Services,External Income,Penalties Fines & Car Parking Charges,934,18/08/2022,2208-00334,0.00,10.00,R,REDACTED PERSONAL DATA,No
Http://opendatacommunities.org/id/metropolitan-district-council/leeds,Leeds City Council,30/09/2022,City Development,Recreation,Supplies and Services,Bought In Professional Services,277,25/08/2022,2208-00335,0.00,256.00,R,Adele Battersby,No
Http://opendatacommunities.org/id/metropolitan-district-council/leeds,Leeds City Council,30/09/2022,City Development,Recreation,Supplies and Services,Bought In Professional Services,277,26/08/2022,2208-00336,0.00,480.00,R,Adele Battersby,No
Http://opendatacommunities.org/id/metropolitan-district-council/leeds,Leeds City Council,30/09/2022,City Development,Recreation,Supplies and Services,Bought In Professional Services,277,26/08/2022,2208-00337,0.00,40.00,R,Adele Battersby,No
Http://opendatacommunities.org/id/metropolitan-district-council/leeds,Leeds City Council,30/09/2022,Children and Families,Social Care,Agency Payments,Services Rendered By Other Organisations,511,05/08/2022,2208-00338,0.00,2050.62,R,REDACTED PERSONAL DATA,No
Http://opendatacommunities.org/id/metropolitan-district-council/leeds,Leeds City Council,30/09/2022,Children and Families,Social Care,Agency Payments,Services Rendered By Other Organisations,511,05/08/2022,2208-00339,0.00,304.20,R,REDACTED PERSONAL DATA,No
Http://opendatacommunities.org/id/metropolitan-district-council/leeds,Leeds City Council,30/09/2022,Children and Families,Social Care,Internal Recharges,Legal Disbursements,411,12/08/2022,2208-00340,0.00,550.00,R,Adele Jenkins,No
Http://opendatacommunities.org/id/metropolitan-district-council/leeds,Leeds City Council,30/09/2022,Children and Families,Social Care,Internal Recharges,Legal Disbursements,411,24/08/2022,2208-00341,0.00,1050.00,R,Adele Jenkins,No
Http://opendatacommunities.org/id/metropolitan-district-council/leeds,Leeds City Council,30/09/2022,City Development,Libraries Arts & Heritage,Supplies and Services,Other Hired And Contracted Services,265,26/08/2022,2208-00342,0.00,200.00,R,Adele Jones,No
Http://opendatacommunities.org/id/metropolitan-district-council/leeds,Leeds City Council,30/09/2022,City Development,Recreation,External Income,Swimming Bath Charges,923,24/08/2022,2208-00343,0.00,29.00,R,REDACTED PERSONAL DATA,No
Http://opendatacommunities.org/id/metropolitan-district-council/leeds,Leeds City Council,30/09/2022,Children and Families,Social Care,Agency Payments,Contact,548,16/08/2022,2208-00344,0.00,32.00,R,REDACTED PERSONAL DATA,No
Http://opendatacommunities.org/id/metropolitan-district-council/leeds,Leeds City Council,30/09/2022,Adults and Health,Services For Older People - 65 And Over,Agency Payments,Residential Care Dementia,571,18/08/2022,2208-00345,0.00,6493.10,R,ADEN HOUSE,No
Http://opendatacommunities.org/id/metropolitan-district-council/leeds,Leeds City Council,30/09/2022,Resources,Leeds Building Services,Supplies and Services,Operational Materials,205,04/08/2022,2208-00346,0.00,215.99,R,ADI-Gardiner Ltd,No
Http://opendatacommunities.org/id/metropolitan-district-council/leeds,Leeds City Council,30/09/2022,Resources,Leeds Building Services,Supplies and Services,Operational Materials,205,04/08/2022,2208-00347,0.00,3639.66,R,ADI-Gardiner Ltd,No
Http://opendatacommunities.org/id/metropolitan-district-council/leeds,Leeds City Council,30/09/2022,Resources,Leeds Building Services,Supplies and Services,Operational Materials,205,05/08/2022,2208-00348,0.00,12.89,R,ADI-Gardiner Ltd,No
Http://opendatacommunities.org/id/metropolitan-district-council/leeds,Leeds City Council,30/09/2022,Resources,Leeds Building Services,Supplies and Services,Operational Materials,205,05/08/2022,2208-00349,0.00,72.40,R,ADI-Gardiner Ltd,No
Http://opendatacommunities.org/id/metropolitan-district-council/leeds,Leeds City Council,30/09/2022,Resources,Leeds Building Services,Supplies and Services,Operational Materials,205,05/08/2022,2208-00350,0.00,19.99,R,ADI-Gardiner Ltd,No
Http://opendatacommunities.org/id/metropolitan-district-council/leeds,Leeds City Council,30/09/2022,Resources,Leeds Building Services,Supplies and Services,Operational Materials,205,10/08/2022,2208-00351,0.00,1353.00,R,ADI-Gardiner Ltd,No
Http://opendatacommunities.org/id/metropolitan-district-council/leeds,Leeds City Council,30/09/2022,Resources,Leeds Building Services,Supplies and Services,Operational Materials,205,10/08/2022,2208-00352,0.00,36.39,R,ADI-Gardiner Ltd,No
Http://opendatacommunities.org/id/metropolitan-district-council/leeds,Leeds City Council,30/09/2022,Resources,Leeds Building Services,Supplies and Services,Operational Materials,205,10/08/2022,2208-00353,0.00,1172.24,R,ADI-Gardiner Ltd,No
Http://opendatacommunities.org/id/metropolitan-district-council/leeds,Leeds City Council,30/09/2022,City Development,Highways ,Supplies and Services,Computer Software & Equipment,214,13/07/2022,2208-00354,0.00,84.29,R,Adobe Products,Yes
Http://opendatacommunities.org/id/metropolitan-district-council/leeds,Leeds City Council,30/09/2022,Children and Families,Social Care,Agency Payments,Independent Fostering Agencies,509,05/08/2022,2208-00355,0.00,3450.00,R,Adolescent And Childrens Trust,No
Http://opendatacommunities.org/id/metropolitan-district-council/leeds,Leeds City Council,30/09/2022,Children and Families,Social Care,Agency Payments,Independent Fostering Agencies,509,05/08/2022,2208-00356,0.00,3450.00,R,Adolescent And Childrens Trust,No
Http://opendatacommunities.org/id/metropolitan-district-council/leeds,Leeds City Council,30/09/2022,Children and Families,Social Care,Agency Payments,Independent Fostering Agencies,509,05/08/2022,2208-00357,0.00,3450.00,R,Adolescent And Childrens Trust,No
Http://opendatacommunities.org/id/metropolitan-district-council/leeds,Leeds City Council,30/09/2022,Children and Families,Social Care,Agency Payments,Independent Fostering Agencies,509,05/08/2022,2208-00358,0.00,3630.00,R,Adolescent And Childrens Trust,No
Http://opendatacommunities.org/id/metropolitan-district-council/leeds,Leeds City Council,30/09/2022,Children and Families,Social Care,Agency Payments,Independent Fostering Agencies,509,05/08/2022,2208-00359,0.00,3630.00,R,Adolescent And Childrens Trust,No
Http://opendatacommunities.org/id/metropolitan-district-council/leeds,Leeds City Council,30/09/2022,Children and Families,Social Care,Agency Payments,Independent Fostering Agencies,509,05/08/2022,2208-00360,0.00,3630.00,R,Adolescent And Childrens Trust,No
Http://opendatacommunities.org/id/metropolitan-district-council/leeds,Leeds City Council,30/09/2022,Children and Families,Social Care,Agency Payments,Independent Fostering Agencies,509,05/08/2022,2208-00361,0.00,3437.10,R,Adolescent And Childrens Trust,No
Http://opendatacommunities.org/id/metropolitan-district-council/leeds,Leeds City Council,30/09/2022,Children and Families,Social Care,Agency Payments,Independent Fostering Agencies,509,05/08/2022,2208-00362,0.00,3630.00,R,Adolescent And Childrens Trust,No
Http://opendatacommunities.org/id/metropolitan-district-council/leeds,Leeds City Council,30/09/2022,Children and Families,Social Care,Agency Payments,Independent Fostering Agencies,509,05/08/2022,2208-00363,0.00,3450.00,R,Adolescent And Childrens Trust,No
Http://opendatacommunities.org/id/metropolitan-district-council/leeds,Leeds City Council,30/09/2022,Children and Families,Social Care,Agency Payments,Independent Fostering Agencies,509,05/08/2022,2208-00364,0.00,3540.00,R,Adolescent And Childrens Trust,No
Http://opendatacommunities.org/id/metropolitan-district-council/leeds,Leeds City Council,30/09/2022,Children and Families,Social Care,Agency Payments,Independent Fostering Agencies,509,05/08/2022,2208-00365,0.00,3707.10,R,Adolescent And Childrens Trust,No
Http://opendatacommunities.org/id/metropolitan-district-council/leeds,Leeds City Council,30/09/2022,Children and Families,Social Care,Agency Payments,Independent Fostering Agencies,509,05/08/2022,2208-00366,0.00,3540.00,R,Adolescent And Childrens Trust,No
Http://opendatacommunities.org/id/metropolitan-district-council/leeds,Leeds City Council,30/09/2022,Children and Families,Social Care,Agency Payments,Independent Fostering Agencies,509,05/08/2022,2208-00367,0.00,3707.10,R,Adolescent And Childrens Trust,No
Http://opendatacommunities.org/id/metropolitan-district-council/leeds,Leeds City Council,30/09/2022,Children and Families,Social Care,Agency Payments,Independent Fostering Agencies,509,05/08/2022,2208-00368,0.00,3420.00,R,Adolescent And Childrens Trust,No
Http://opendatacommunities.org/id/metropolitan-district-council/leeds,Leeds City Council,30/09/2022,Adults and Health,Services For Adults Under 65 Mental/Dis,Agency Payments,Home Care,568,10/08/2022,2208-00369,0.00,410.25,R,Adopt Healthcare,No
Http://opendatacommunities.org/id/metropolitan-district-council/leeds,Leeds City Council,30/09/2022,Adults and Health,Services For Adults Under 65 Mental/Dis,Agency Payments,Home Care,568,10/08/2022,2208-00370,0.00,189.00,R,Adopt Healthcare,No
Http://opendatacommunities.org/id/metropolitan-district-council/leeds,Leeds City Council,30/09/2022,Adults and Health,Services For Adults Under 65 Mental/Dis,Agency Payments,Home Care,568,10/08/2022,2208-00371,0.00,198.00,R,Adopt Healthcare,No
Http://opendatacommunities.org/id/metropolitan-district-council/leeds,Leeds City Council,30/09/2022,Adults and Health,Services For Adults Under 65 Mental/Dis,Agency Payments,Home Care,568,10/08/2022,2208-00372,0.00,140.25,R,Adopt Healthcare,No
Http://opendatacommunities.org/id/metropolitan-district-council/leeds,Leeds City Council,30/09/2022,Adults and Health,Services For Adults Under 65 Mental/Dis,Agency Payments,Home Care,568,17/08/2022,2208-00373,0.00,410.25,R,Adopt Healthcare,No
Http://opendatacommunities.org/id/metropolitan-district-council/leeds,Leeds City Council,30/09/2022,Adults and Health,Services For Adults Under 65 Mental/Dis,Agency Payments,Home Care,568,17/08/2022,2208-00374,0.00,189.00,R,Adopt Healthcare,No
Http://opendatacommunities.org/id/metropolitan-district-council/leeds,Leeds City Council,30/09/2022,Adults and Health,Services For Adults Under 65 Mental/Dis,Agency Payments,Home Care,568,17/08/2022,2208-00375,0.00,132.00,R,Adopt Healthcare,No
Http://opendatacommunities.org/id/metropolitan-district-council/leeds,Leeds City Council,30/09/2022,Adults and Health,Services For Adults Under 65 Mental/Dis,Agency Payments,Home Care,568,17/08/2022,2208-00376,0.00,148.50,R,Adopt Healthcare,No
Http://opendatacommunities.org/id/metropolitan-district-council/leeds,Leeds City Council,30/09/2022,Adults and Health,Services For Adults Under 65 Mental/Dis,Agency Payments,Home Care,568,24/08/2022,2208-00377,0.00,410.25,R,Adopt Healthcare,No
Http://opendatacommunities.org/id/metropolitan-district-council/leeds,Leeds City Council,30/09/2022,Adults and Health,Services For Adults Under 65 Mental/Dis,Agency Payments,Home Care,568,24/08/2022,2208-00378,0.00,189.00,R,Adopt Healthcare,No
Http://opendatacommunities.org/id/metropolitan-district-council/leeds,Leeds City Council,30/09/2022,Adults and Health,Services For Adults Under 65 Mental/Dis,Agency Payments,Home Care,568,24/08/2022,2208-00379,0.00,165.00,R,Adopt Healthcare,No
Http://opendatacommunities.org/id/metropolitan-district-council/leeds,Leeds City Council,30/09/2022,Adults and Health,Services For Adults Under 65 Mental/Dis,Agency Payments,Home Care,568,24/08/2022,2208-00380,0.00,148.50,R,Adopt Healthcare,No
Http://opendatacommunities.org/id/metropolitan-district-council/leeds,Leeds City Council,30/09/2022,Adults and Health,Services For Adults Under 65 Mental/Dis,Agency Payments,Home Care,568,31/08/2022,2208-00381,0.00,410.25,R,Adopt Healthcare,No
Http://opendatacommunities.org/id/metropolitan-district-council/leeds,Leeds City Council,30/09/2022,Adults and Health,Services For Adults Under 65 Mental/Dis,Agency Payments,Home Care,568,31/08/2022,2208-00382,0.00,189.00,R,Adopt Healthcare,No
Http://opendatacommunities.org/id/metropolitan-district-council/leeds,Leeds City Council,30/09/2022,Adults and Health,Services For Adults Under 65 Mental/Dis,Agency Payments,Home Care,568,31/08/2022,2208-00383,0.00,181.50,R,Adopt Healthcare,No
Http://opendatacommunities.org/id/metropolitan-district-council/leeds,Leeds City Council,30/09/2022,Adults and Health,Services For Adults Under 65 Mental/Dis,Agency Payments,Home Care,568,31/08/2022,2208-00384,0.00,410.25,R,Adopt Healthcare,No
Http://opendatacommunities.org/id/metropolitan-district-council/leeds,Leeds City Council,30/09/2022,Adults and Health,Services For Adults Under 65 Mental/Dis,Agency Payments,Home Care,568,31/08/2022,2208-00385,0.00,189.00,R,Adopt Healthcare,No
Http://opendatacommunities.org/id/metropolitan-district-council/leeds,Leeds City Council,30/09/2022,Adults and Health,Services For Adults Under 65 Mental/Dis,Agency Payments,Home Care,568,31/08/2022,2208-00386,0.00,181.50,R,Adopt Healthcare,No
Http://opendatacommunities.org/id/metropolitan-district-council/leeds,Leeds City Council,30/09/2022,Adults and Health,Services For Adults Under 65 Mental/Dis,Agency Payments,Home Care,568,31/08/2022,2208-00387,0.00,148.50,R,Adopt Healthcare,No
Http://opendatacommunities.org/id/metropolitan-district-council/leeds,Leeds City Council,30/09/2022,Children and Families,Social Care,Agency Payments,Placement Support,550,03/08/2022,2208-00388,0.00,144.90,R,REDACTED PERSONAL DATA,No
Http://opendatacommunities.org/id/metropolitan-district-council/leeds,Leeds City Council as Accountable Body,30/09/2022,Social Services Pooled Budgets,Jcs For People With Learning Disabilitie,Agency Payments,Residential,580,17/08/2022,2208-00389,0.00,2609.36,R,ADRIAN HOUSE,No
Http://opendatacommunities.org/id/metropolitan-district-council/leeds,Leeds City Council,30/09/2022,Communities Housing and Environment,Benefits Wlefare and Poverty,Supplies and Services,Grant Related Expenditure,290,03/08/2022,2208-00390,0.00,50.00,R,REDACTED PERSONAL DATA,No
Http://opendatacommunities.org/id/metropolitan-district-council/leeds,Leeds City Council,30/09/2022,Strategic Landlord,Property and Contracts,Premises,General Maintenance,104,10/08/2022,2208-00391,0.00,551.84,R,ADT Fire And Security Plc,No
Http://opendatacommunities.org/id/metropolitan-district-council/leeds,Leeds City Council,30/09/2022,Resources,Corporate Property Management,Premises,Maintenance Of Buildings,101,26/08/2022,2208-00392,0.00,1665.43,R,ADT Fire And Security Plc,No
Http://opendatacommunities.org/id/metropolitan-district-council/leeds,Leeds City Council,30/09/2022,Communities Housing and Environment,Parks and Countryside,Premises,Premises Security Services,162,26/08/2022,2208-00393,0.00,352.00,R,ADT Fire And Security Plc,No
Http://opendatacommunities.org/id/metropolitan-district-council/leeds,Leeds City Council,30/09/2022,City Development,Libraries Arts & Heritage,Supplies and Services,External Audit Fees,261,09/08/2022,2208-00394,0.00,90.00,R,ADVANCE STOCKS LTD,No
Http://opendatacommunities.org/id/metropolitan-district-council/leeds,Leeds City Council,30/09/2022,City Development,Libraries Arts & Heritage,Supplies and Services,External Audit Fees,261,11/08/2022,2208-00395,0.00,90.00,R,ADVANCE STOCKS LTD,No
Http://opendatacommunities.org/id/metropolitan-district-council/leeds,Leeds City Council,30/09/2022,City Development,Recreation,Supplies and Services,External Audit Fees,261,17/08/2022,2208-00396,0.00,140.00,R,ADVANCE STOCKS LTD,No
Http://opendatacommunities.org/id/metropolitan-district-council/leeds,Leeds City Council,30/09/2022,Children and Families,Social Care,Agency Payments,Placement Support,550,04/08/2022,2208-00397,0.00,546.00,R,ADVANCED CHILD CARE ASSESSMENTS LTD,No
Http://opendatacommunities.org/id/metropolitan-district-council/leeds,Leeds City Council,30/09/2022,Children and Families,Social Care,Internal Recharges,Legal Disbursements,411,26/08/2022,2208-00398,0.00,459.20,R,ADVANCED CHILD CARE ASSESSMENTS LTD,No
Http://opendatacommunities.org/id/metropolitan-district-council/leeds,Leeds City Council,30/09/2022,Adults and Health,Services For Older People - 65 And Over,Agency Payments,Home Care,568,03/08/2022,2208-00399,0.00,23476.79,R,Advanced Medcare Ltd,No
Http://opendatacommunities.org/id/metropolitan-district-council/leeds,Leeds City Council,30/09/2022,Adults and Health,Services For Older People - 65 And Over,Agency Payments,HCAIT Community Support,575,03/08/2022,2208-00400,0.00,725.94,R,Advanced Medcare Ltd,No
Http://opendatacommunities.org/id/metropolitan-district-council/leeds,Leeds City Council,30/09/2022,Adults and Health,Services For Older People - 65 And Over,Agency Payments,HCAIT Other,577,03/08/2022,2208-00401,0.00,1282.96,R,Advanced Medcare Ltd,No
Http://opendatacommunities.org/id/metropolitan-district-council/leeds,Leeds City Council as Accountable Body,30/09/2022,Social Services Pooled Budgets,Jcs For People With Learning Disabilitie,Agency Payments,Home Care,568,03/08/2022,2208-00402,0.00,1283.20,R,Advanced Medcare Ltd,No
Http://opendatacommunities.org/id/metropolitan-district-council/leeds,Leeds City Council,30/09/2022,Adults and Health,Services For Older People - 65 And Over,Agency Payments,Home Care,568,03/08/2022,2208-00403,0.00,25551.16,R,Advanced Medcare Ltd,No
Http://opendatacommunities.org/id/metropolitan-district-council/leeds,Leeds City Council,30/09/2022,Adults and Health,Services For Older People - 65 And Over,Agency Payments,HCAIT Community Support,575,03/08/2022,2208-00404,0.00,819.60,R,Advanced Medcare Ltd,No
Http://opendatacommunities.org/id/metropolitan-district-council/leeds,Leeds City Council,30/09/2022,Adults and Health,Services For Older People - 65 And Over,Agency Payments,HCAIT Other,577,03/08/2022,2208-00405,0.00,1311.36,R,Advanced Medcare Ltd,No
Http://opendatacommunities.org/id/metropolitan-district-council/leeds,Leeds City Council as Accountable Body,30/09/2022,Social Services Pooled Budgets,Jcs For People With Learning Disabilitie,Agency Payments,Home Care,568,03/08/2022,2208-00406,0.00,1311.36,R,Advanced Medcare Ltd,No
Http://opendatacommunities.org/id/metropolitan-district-council/leeds,Leeds City Council,30/09/2022,Adults and Health,Services For Adults Under 65 Learn/Dis,Agency Payments,Home Care,568,03/08/2022,2208-00407,0.00,81.96,R,Advanced Medcare Ltd,No
Http://opendatacommunities.org/id/metropolitan-district-council/leeds,Leeds City Council,30/09/2022,Adults and Health,Services For Older People - 65 And Over,Agency Payments,Home Care,568,03/08/2022,2208-00408,0.00,26908.64,R,Advanced Medcare Ltd,No
Http://opendatacommunities.org/id/metropolitan-district-council/leeds,Leeds City Council,30/09/2022,Adults and Health,Services For Older People - 65 And Over,Agency Payments,HCAIT Community Support,575,03/08/2022,2208-00409,0.00,1147.44,R,Advanced Medcare Ltd,No
Http://opendatacommunities.org/id/metropolitan-district-council/leeds,Leeds City Council,30/09/2022,Adults and Health,Services For Older People - 65 And Over,Agency Payments,HCAIT Other,577,03/08/2022,2208-00410,0.00,1311.36,R,Advanced Medcare Ltd,No
Http://opendatacommunities.org/id/metropolitan-district-council/leeds,Leeds City Council,30/09/2022,Adults and Health,Services For Older People Under 65 P/Dis,Agency Payments,Home Care,568,03/08/2022,2208-00411,0.00,1178.18,R,Advanced Medcare Ltd,No
Http://opendatacommunities.org/id/metropolitan-district-council/leeds,Leeds City Council as Accountable Body,30/09/2022,Social Services Pooled Budgets,Jcs For People With Learning Disabilitie,Agency Payments,Home Care,568,03/08/2022,2208-00412,0.00,1311.36,R,Advanced Medcare Ltd,No
Http://opendatacommunities.org/id/metropolitan-district-council/leeds,Leeds City Council as Accountable Body,30/09/2022,Social Services Pooled Budgets,Jcs For People With Learning Disabilitie,Agency Payments,Home Care,568,12/08/2022,2208-00413,0.00,8979.00,R,Advantage Healthcare Ltd,No
Http://opendatacommunities.org/id/metropolitan-district-council/leeds,Leeds City Council as Accountable Body,30/09/2022,Social Services Pooled Budgets,Jcs For People With Learning Disabilitie,Agency Payments,Home Care,568,12/08/2022,2208-00414,0.00,8592.50,R,Advantage Healthcare Ltd,No
Http://opendatacommunities.org/id/metropolitan-district-council/leeds,Leeds City Council as Accountable Body,30/09/2022,Social Services Pooled Budgets,Jcs For People With Learning Disabilitie,Agency Payments,Home Care,568,12/08/2022,2208-00415,0.00,8212.50,R,Advantage Healthcare Ltd,No
Http://opendatacommunities.org/id/metropolitan-district-council/leeds,Leeds City Council,30/09/2022,Adults and Health,Services For Older People - 65 And Over,Agency Payments,Payments To Voluntary Organisations,561,12/08/2022,2208-00416,0.00,104750.00,R,Advonet,No
Http://opendatacommunities.org/id/metropolitan-district-council/leeds,Leeds City Council,30/09/2022,Adults and Health,Services For Adults Under 65 Mental/Dis,Agency Payments,Fees - Level 4,520,01/08/2022,2208-00417,0.00,210.32,R,AE BIA Assessments Limited,No
Http://opendatacommunities.org/id/metropolitan-district-council/leeds,Leeds City Council,30/09/2022,Adults and Health,Services For Adults Under 65 Mental/Dis,Agency Payments,Fees - Level 4,520,05/08/2022,2208-00418,0.00,240.57,R,AE BIA Assessments Limited,No
Http://opendatacommunities.org/id/metropolitan-district-council/leeds,Leeds City Council,30/09/2022,City Development,Highways,Capital,OTHER COSTS,7,03/08/2022,2208-00419,0.00,77192.39,C,Aecom Limited,No
Http://opendatacommunities.org/id/metropolitan-district-council/leeds,Leeds City Council,30/09/2022,City Development,Highways,Capital,OTHER COSTS,7,03/08/2022,2208-00420,0.00,74065.94,C,Aecom Limited,No
Http://opendatacommunities.org/id/metropolitan-district-council/leeds,Leeds City Council,30/09/2022,City Development,Highways,Capital,OTHER COSTS,7,05/08/2022,2208-00421,0.00,37191.25,C,Aecom Limited,No
Http://opendatacommunities.org/id/metropolitan-district-council/leeds,Leeds City Council,30/09/2022,City Development,Highways,Supplies and Services,Other Hired And Contracted Services,265,11/08/2022,2208-00422,0.00,4800.00,R,Aecom Limited,No
Http://opendatacommunities.org/id/metropolitan-district-council/leeds,Leeds City Council,30/09/2022,City Development,Asset Management,Capital,OTHER COSTS,7,19/08/2022,2208-00423,0.00,14884.79,C,Aecom Limited,No
Http://opendatacommunities.org/id/metropolitan-district-council/leeds,Leeds City Council,30/09/2022,City Development,Highways,Capital,OTHER COSTS,7,22/08/2022,2208-00424,0.00,4415.00,C,Aecom Limited,No
Http://opendatacommunities.org/id/metropolitan-district-council/leeds,Leeds City Council,30/09/2022,City Development,Highways,Capital,CONSTRUCTION,3,22/08/2022,2208-00425,0.00,59641.93,C,Aecom Limited,No
Http://opendatacommunities.org/id/metropolitan-district-council/leeds,Leeds City Council,30/09/2022,City Development,Highways,Capital,OTHER COSTS,7,30/08/2022,2208-00426,0.00,80045.09,C,Aecom Limited,No
Http://opendatacommunities.org/id/metropolitan-district-council/leeds,Leeds City Council,30/09/2022,City Development,Asset Management Services,Supplies and Services,Other Hired And Contracted Services,265,30/08/2022,2208-00427,0.00,20597.08,R,Aecom Limited,No
Http://opendatacommunities.org/id/metropolitan-district-council/leeds,Leeds City Council,30/09/2022,City Development,Highways,Capital,OTHER COSTS,7,31/08/2022,2208-00428,0.00,55658.61,C,Aecom Limited,No
Http://opendatacommunities.org/id/metropolitan-district-council/leeds,Leeds City Council,30/09/2022,City Development,Highways,Capital,OTHER COSTS,7,31/08/2022,2208-00429,0.00,77061.99,C,Aecom Limited,No
Http://opendatacommunities.org/id/metropolitan-district-council/leeds,Leeds City Council,30/09/2022,Adults and Health,Assessment And Care Management,Agency Payments,Home Care,568,10/08/2022,2208-00430,0.00,245.88,R,Aegis Care Solutions Ltd,No
Http://opendatacommunities.org/id/metropolitan-district-council/leeds,Leeds City Council,30/09/2022,Adults and Health,Services For Older People - 65 And Over,Agency Payments,Home Care,568,10/08/2022,2208-00431,0.00,50215.88,R,Aegis Care Solutions Ltd,No
Http://opendatacommunities.org/id/metropolitan-district-council/leeds,Leeds City Council,30/09/2022,Adults and Health,Services For Older People - 65 And Over,Agency Payments,HCAIT Community Support,575,10/08/2022,2208-00432,0.00,10.91,R,Aegis Care Solutions Ltd,No
Http://opendatacommunities.org/id/metropolitan-district-council/leeds,Leeds City Council,30/09/2022,Adults and Health,Services For Older People - 65 And Over,Agency Payments,HCAIT Other,577,10/08/2022,2208-00433,0.00,1912.18,R,Aegis Care Solutions Ltd,No
Http://opendatacommunities.org/id/metropolitan-district-council/leeds,Leeds City Council,30/09/2022,Adults and Health,Services For Older People Under 65 P/Dis,Agency Payments,Home Care,568,10/08/2022,2208-00434,0.00,9208.76,R,Aegis Care Solutions Ltd,No
Http://opendatacommunities.org/id/metropolitan-district-council/leeds,Leeds City Council as Accountable Body,30/09/2022,Social Services Pooled Budgets,Jcs For People With Learning Disabilitie,Agency Payments,Home Care,568,10/08/2022,2208-00435,0.00,3114.48,R,Aegis Care Solutions Ltd,No
Http://opendatacommunities.org/id/metropolitan-district-council/leeds,Leeds City Council,30/09/2022,Adults and Health,Services For Adults Under 65 Mental/Dis,Agency Payments,Home Care,568,31/08/2022,2208-00436,0.00,594.00,R,Aegis Care Solutions Ltd,No
Http://opendatacommunities.org/id/metropolitan-district-council/leeds,Leeds City Council,30/09/2022,Adults and Health,Services For Adults Under 65 Mental/Dis,Agency Payments,Home Care,568,31/08/2022,2208-00437,0.00,783.20,R,Aegis Care Solutions Ltd,No
Http://opendatacommunities.org/id/metropolitan-district-council/leeds,Leeds City Council,30/09/2022,Adults and Health,Services For Adults Under 65 Mental/Dis,Agency Payments,Home Care,568,31/08/2022,2208-00438,0.00,1335.60,R,Aegis Care Solutions Ltd,No
Http://opendatacommunities.org/id/metropolitan-district-council/leeds,Leeds City Council,30/09/2022,Adults and Health,Services For Adults Under 65 Mental/Dis,Agency Payments,Home Care,568,31/08/2022,2208-00439,0.00,4788.00,R,Aegis Care Solutions Ltd,No
Http://opendatacommunities.org/id/metropolitan-district-council/leeds,Leeds City Council,30/09/2022,Adults and Health,Services For Adults Under 65 Mental/Dis,Agency Payments,Home Care,568,31/08/2022,2208-00440,0.00,1437.00,R,Aegis Care Solutions Ltd,No
Http://opendatacommunities.org/id/metropolitan-district-council/leeds,Leeds City Council,30/09/2022,Adults and Health,Services For Adults Under 65 Mental/Dis,Agency Payments,Home Care,568,31/08/2022,2208-00441,0.00,1344.70,R,Aegis Care Solutions Ltd,No
Http://opendatacommunities.org/id/metropolitan-district-council/leeds,Leeds City Council,30/09/2022,Adults and Health,Services For Adults Under 65 Mental/Dis,Agency Payments,Home Care,568,31/08/2022,2208-00442,0.00,1477.50,R,Aegis Care Solutions Ltd,No
Http://opendatacommunities.org/id/metropolitan-district-council/leeds,Leeds City Council,30/09/2022,Adults and Health,Services For Adults Under 65 Mental/Dis,Agency Payments,Home Care,568,31/08/2022,2208-00443,0.00,1707.95,R,Aegis Care Solutions Ltd,No
Http://opendatacommunities.org/id/metropolitan-district-council/leeds,Leeds City Council,30/09/2022,Adults and Health,Services For Adults Under 65 Mental/Dis,Agency Payments,Home Care,568,31/08/2022,2208-00444,0.00,1232.60,R,Aegis Care Solutions Ltd,No
Http://opendatacommunities.org/id/metropolitan-district-council/leeds,Leeds City Council,30/09/2022,Adults and Health,Services For Adults Under 65 Mental/Dis,Agency Payments,Home Care,568,31/08/2022,2208-00445,0.00,249.20,R,Aegis Care Solutions Ltd,No
Http://opendatacommunities.org/id/metropolitan-district-council/leeds,Leeds City Council,30/09/2022,City Development,Libraries Arts & Heritage ,Supplies and Services,Computer Software & Equipment,214,06/07/2022,2208-00446,0.00,282.42,R,Aescripts.Com,Yes
Http://opendatacommunities.org/id/metropolitan-district-council/leeds,Leeds City Council as Accountable Body,30/09/2022,Social Services Pooled Budgets,Jcs For People With Learning Disabilitie,Agency Payments,Day Centre,564,19/08/2022,2208-00447,0.00,13996.86,R,Affinity Trust,No
Http://opendatacommunities.org/id/metropolitan-district-council/leeds,Leeds City Council,30/09/2022,Adults and Health,Assessment And Care Management,Agency Payments,Home Care,568,19/08/2022,2208-00448,0.00,620.90,R,Affinity Trust,No
Http://opendatacommunities.org/id/metropolitan-district-council/leeds,Leeds City Council,30/09/2022,Adults and Health,Services For Older People - 65 And Over,Agency Payments,Home Care,568,19/08/2022,2208-00449,0.00,656.38,R,Affinity Trust,No
Http://opendatacommunities.org/id/metropolitan-district-council/leeds,Leeds City Council as Accountable Body,30/09/2022,Social Services Pooled Budgets,Jcs For People With Learning Disabilitie,Agency Payments,Day Centre,564,19/08/2022,2208-00450,0.00,3299.64,R,Affinity Trust,No
Http://opendatacommunities.org/id/metropolitan-district-council/leeds,Leeds City Council as Accountable Body,30/09/2022,Social Services Pooled Budgets,Jcs For People With Learning Disabilitie,Agency Payments,Home Care,568,19/08/2022,2208-00451,0.00,20999.48,R,Affinity Trust,No
Http://opendatacommunities.org/id/metropolitan-district-council/leeds,Leeds City Council,30/09/2022,Adults and Health,Services For Adults Under 65 Mental/Dis,Agency Payments,Home Care,568,24/08/2022,2208-00452,0.00,141.92,R,Affinity Trust,No
Http://opendatacommunities.org/id/metropolitan-district-council/leeds,Leeds City Council as Accountable Body,30/09/2022,Social Services Pooled Budgets,Jcs For People With Learning Disabilitie,Agency Payments,Sheltered Accommodation,569,17/08/2022,2208-00453,0.00,149650.28,R,Affinity Trust North Divisional Office,No
Http://opendatacommunities.org/id/metropolitan-district-council/leeds,Leeds City Council,30/09/2022,Communities Housing and Environment,Parks and Countryside ,Transport,Hire Of Movable Plant & Machinery,315,19/07/2022,2208-00454,0.00,3800.00,R,Afi Uplift,Yes
Http://opendatacommunities.org/id/metropolitan-district-council/leeds,Leeds City Council,30/09/2022,Adults and Health,Public Health,Agency Payments,Services Rendered By Voluntary Sector,505,19/08/2022,2208-00455,0.00,25000.00,R,Age Uk Leeds,No
Http://opendatacommunities.org/id/metropolitan-district-council/leeds,Leeds City Council,30/09/2022,City Development,Highways,Supplies and Services,Operational Materials,205,04/08/2022,2208-00456,0.00,3174.56,R,AGGREGATE INDUSTRIES UK LTD,No
Http://opendatacommunities.org/id/metropolitan-district-council/leeds,Leeds City Council,30/09/2022,City Development,Highways,Supplies and Services,Operational Materials,205,04/08/2022,2208-00457,0.00,904.50,R,AGGREGATE INDUSTRIES UK LTD,No
Http://opendatacommunities.org/id/metropolitan-district-council/leeds,Leeds City Council,30/09/2022,City Development,Highways,Supplies and Services,Operational Materials,205,05/08/2022,2208-00458,0.00,907.16,R,AGGREGATE INDUSTRIES UK LTD,No
Http://opendatacommunities.org/id/metropolitan-district-council/leeds,Leeds City Council,30/09/2022,City Development,Highways,Supplies and Services,Operational Materials,205,05/08/2022,2208-00459,0.00,2317.67,R,AGGREGATE INDUSTRIES UK LTD,No
Http://opendatacommunities.org/id/metropolitan-district-council/leeds,Leeds City Council,30/09/2022,City Development,Highways,Supplies and Services,Operational Materials,205,05/08/2022,2208-00460,0.00,4007.23,R,AGGREGATE INDUSTRIES UK LTD,No
Http://opendatacommunities.org/id/metropolitan-district-council/leeds,Leeds City Council,30/09/2022,City Development,Highways,Supplies and Services,Operational Materials,205,05/08/2022,2208-00461,0.00,1280.36,R,AGGREGATE INDUSTRIES UK LTD,No
Http://opendatacommunities.org/id/metropolitan-district-council/leeds,Leeds City Council,30/09/2022,City Development,Highways,Supplies and Services,Operational Materials,205,05/08/2022,2208-00462,0.00,656.47,R,AGGREGATE INDUSTRIES UK LTD,No
Http://opendatacommunities.org/id/metropolitan-district-council/leeds,Leeds City Council,30/09/2022,City Development,Highways,Supplies and Services,Operational Materials,205,05/08/2022,2208-00463,0.00,1436.10,R,AGGREGATE INDUSTRIES UK LTD,No
Http://opendatacommunities.org/id/metropolitan-district-council/leeds,Leeds City Council,30/09/2022,City Development,Highways,Supplies and Services,Operational Materials,205,05/08/2022,2208-00464,0.00,3076.81,R,AGGREGATE INDUSTRIES UK LTD,No
Http://opendatacommunities.org/id/metropolitan-district-council/leeds,Leeds City Council,30/09/2022,City Development,Highways,Supplies and Services,Operational Materials,205,05/08/2022,2208-00465,0.00,2226.41,R,AGGREGATE INDUSTRIES UK LTD,No
Http://opendatacommunities.org/id/metropolitan-district-council/leeds,Leeds City Council,30/09/2022,City Development,Highways,Supplies and Services,Operational Materials,205,05/08/2022,2208-00466,0.00,142.08,R,AGGREGATE INDUSTRIES UK LTD,No
Http://opendatacommunities.org/id/metropolitan-district-council/leeds,Leeds City Council,30/09/2022,City Development,Highways,Supplies and Services,Operational Materials,205,05/08/2022,2208-00467,0.00,209.52,R,AGGREGATE INDUSTRIES UK LTD,No
Http://opendatacommunities.org/id/metropolitan-district-council/leeds,Leeds City Council,30/09/2022,City Development,Highways,Supplies and Services,Operational Materials,205,05/08/2022,2208-00468,0.00,139.44,R,AGGREGATE INDUSTRIES UK LTD,No
Http://opendatacommunities.org/id/metropolitan-district-council/leeds,Leeds City Council,30/09/2022,City Development,Highways,Supplies and Services,Operational Materials,205,05/08/2022,2208-00469,0.00,19.92,R,AGGREGATE INDUSTRIES UK LTD,No
Http://opendatacommunities.org/id/metropolitan-district-council/leeds,Leeds City Council,30/09/2022,City Development,Highways,Supplies and Services,Operational Materials,205,05/08/2022,2208-00470,0.00,3163.30,R,AGGREGATE INDUSTRIES UK LTD,No
Http://opendatacommunities.org/id/metropolitan-district-council/leeds,Leeds City Council,30/09/2022,City Development,Highways,Supplies and Services,Operational Materials,205,05/08/2022,2208-00471,0.00,27.12,R,AGGREGATE INDUSTRIES UK LTD,No
Http://opendatacommunities.org/id/metropolitan-district-council/leeds,Leeds City Council,30/09/2022,City Development,Highways,Supplies and Services,Operational Materials,205,05/08/2022,2208-00472,0.00,115.68,R,AGGREGATE INDUSTRIES UK LTD,No
Http://opendatacommunities.org/id/metropolitan-district-council/leeds,Leeds City Council,30/09/2022,City Development,Highways,Supplies and Services,Operational Materials,205,05/08/2022,2208-00473,0.00,904.50,R,AGGREGATE INDUSTRIES UK LTD,No
Http://opendatacommunities.org/id/metropolitan-district-council/leeds,Leeds City Council,30/09/2022,City Development,Highways,Supplies and Services,Operational Materials,205,05/08/2022,2208-00474,0.00,1458.69,R,AGGREGATE INDUSTRIES UK LTD,No
Http://opendatacommunities.org/id/metropolitan-district-council/leeds,Leeds City Council,30/09/2022,City Development,Highways,Supplies and Services,Operational Materials,205,05/08/2022,2208-00475,0.00,3801.90,R,AGGREGATE INDUSTRIES UK LTD,No
Http://opendatacommunities.org/id/metropolitan-district-council/leeds,Leeds City Council,30/09/2022,City Development,Highways,Supplies and Services,Operational Materials,205,05/08/2022,2208-00476,0.00,7400.25,R,AGGREGATE INDUSTRIES UK LTD,No
Http://opendatacommunities.org/id/metropolitan-district-council/leeds,Leeds City Council,30/09/2022,City Development,Highways,Supplies and Services,Operational Materials,205,05/08/2022,2208-00477,0.00,5489.91,R,AGGREGATE INDUSTRIES UK LTD,No
Http://opendatacommunities.org/id/metropolitan-district-council/leeds,Leeds City Council,30/09/2022,City Development,Highways,Supplies and Services,Operational Materials,205,05/08/2022,2208-00478,0.00,771.60,R,AGGREGATE INDUSTRIES UK LTD,No
Http://opendatacommunities.org/id/metropolitan-district-council/leeds,Leeds City Council,30/09/2022,City Development,Highways,Supplies and Services,Operational Materials,205,05/08/2022,2208-00479,0.00,1418.38,R,AGGREGATE INDUSTRIES UK LTD,No
Http://opendatacommunities.org/id/metropolitan-district-council/leeds,Leeds City Council,30/09/2022,City Development,Highways,Supplies and Services,Operational Materials,205,05/08/2022,2208-00480,0.00,878.03,R,AGGREGATE INDUSTRIES UK LTD,No
Http://opendatacommunities.org/id/metropolitan-district-council/leeds,Leeds City Council,30/09/2022,City Development,Highways,Supplies and Services,Operational Materials,205,05/08/2022,2208-00481,0.00,1296.58,R,AGGREGATE INDUSTRIES UK LTD,No
Http://opendatacommunities.org/id/metropolitan-district-council/leeds,Leeds City Council,30/09/2022,City Development,Highways,Supplies and Services,Operational Materials,205,05/08/2022,2208-00482,0.00,1270.36,R,AGGREGATE INDUSTRIES UK LTD,No
Http://opendatacommunities.org/id/metropolitan-district-council/leeds,Leeds City Council,30/09/2022,City Development,Highways,Supplies and Services,Operational Materials,205,05/08/2022,2208-00483,0.00,1265.12,R,AGGREGATE INDUSTRIES UK LTD,No
Http://opendatacommunities.org/id/metropolitan-district-council/leeds,Leeds City Council,30/09/2022,City Development,Highways,Supplies and Services,Operational Materials,205,05/08/2022,2208-00484,0.00,188.80,R,AGGREGATE INDUSTRIES UK LTD,No
Http://opendatacommunities.org/id/metropolitan-district-council/leeds,Leeds City Council,30/09/2022,City Development,Highways,Supplies and Services,Operational Materials,205,05/08/2022,2208-00485,0.00,4467.85,R,AGGREGATE INDUSTRIES UK LTD,No
Http://opendatacommunities.org/id/metropolitan-district-council/leeds,Leeds City Council,30/09/2022,City Development,Highways,Supplies and Services,Operational Materials,205,05/08/2022,2208-00486,0.00,122.16,R,AGGREGATE INDUSTRIES UK LTD,No
Http://opendatacommunities.org/id/metropolitan-district-council/leeds,Leeds City Council,30/09/2022,City Development,Highways,Supplies and Services,Operational Materials,205,05/08/2022,2208-00487,0.00,23.04,R,AGGREGATE INDUSTRIES UK LTD,No
Http://opendatacommunities.org/id/metropolitan-district-council/leeds,Leeds City Council,30/09/2022,City Development,Highways,Supplies and Services,Operational Materials,205,05/08/2022,2208-00488,0.00,24.00,R,AGGREGATE INDUSTRIES UK LTD,No
Http://opendatacommunities.org/id/metropolitan-district-council/leeds,Leeds City Council,30/09/2022,City Development,Highways,Supplies and Services,Operational Materials,205,05/08/2022,2208-00489,0.00,110.64,R,AGGREGATE INDUSTRIES UK LTD,No
Http://opendatacommunities.org/id/metropolitan-district-council/leeds,Leeds City Council,30/09/2022,City Development,Highways,Supplies and Services,Operational Materials,205,05/08/2022,2208-00490,0.00,2339.53,R,AGGREGATE INDUSTRIES UK LTD,No
Http://opendatacommunities.org/id/metropolitan-district-council/leeds,Leeds City Council,30/09/2022,City Development,Highways,Supplies and Services,Operational Materials,205,05/08/2022,2208-00491,0.00,771.60,R,AGGREGATE INDUSTRIES UK LTD,No
Http://opendatacommunities.org/id/metropolitan-district-council/leeds,Leeds City Council,30/09/2022,City Development,Highways,Supplies and Services,Operational Materials,205,05/08/2022,2208-00492,0.00,1339.93,R,AGGREGATE INDUSTRIES UK LTD,No
Http://opendatacommunities.org/id/metropolitan-district-council/leeds,Leeds City Council,30/09/2022,City Development,Highways,Supplies and Services,Operational Materials,205,05/08/2022,2208-00493,0.00,728.16,R,AGGREGATE INDUSTRIES UK LTD,No
Http://opendatacommunities.org/id/metropolitan-district-council/leeds,Leeds City Council,30/09/2022,City Development,Highways,Supplies and Services,Operational Materials,205,05/08/2022,2208-00494,0.00,7946.85,R,AGGREGATE INDUSTRIES UK LTD,No
Http://opendatacommunities.org/id/metropolitan-district-council/leeds,Leeds City Council,30/09/2022,City Development,Highways,Supplies and Services,Operational Materials,205,05/08/2022,2208-00495,0.00,94.40,R,AGGREGATE INDUSTRIES UK LTD,No
Http://opendatacommunities.org/id/metropolitan-district-council/leeds,Leeds City Council,30/09/2022,City Development,Highways,Supplies and Services,Operational Materials,205,05/08/2022,2208-00496,0.00,4589.81,R,AGGREGATE INDUSTRIES UK LTD,No
Http://opendatacommunities.org/id/metropolitan-district-council/leeds,Leeds City Council,30/09/2022,City Development,Highways,Supplies and Services,Operational Materials,205,05/08/2022,2208-00497,0.00,97.60,R,AGGREGATE INDUSTRIES UK LTD,No
Http://opendatacommunities.org/id/metropolitan-district-council/leeds,Leeds City Council,30/09/2022,City Development,Highways,Supplies and Services,Operational Materials,205,05/08/2022,2208-00498,0.00,904.50,R,AGGREGATE INDUSTRIES UK LTD,No
Http://opendatacommunities.org/id/metropolitan-district-council/leeds,Leeds City Council,30/09/2022,City Development,Highways,Supplies and Services,Operational Materials,205,05/08/2022,2208-00499,0.00,11261.40,R,AGGREGATE INDUSTRIES UK LTD,No
Http://opendatacommunities.org/id/metropolitan-district-council/leeds,Leeds City Council,30/09/2022,City Development,Highways,Supplies and Services,Operational Materials,205,05/08/2022,2208-00500,0.00,6283.15,R,AGGREGATE INDUSTRIES UK LTD,No
Http://opendatacommunities.org/id/metropolitan-district-council/leeds,Leeds City Council,30/09/2022,City Development,Highways,Supplies and Services,Operational Materials,205,05/08/2022,2208-00501,0.00,16101.27,R,AGGREGATE INDUSTRIES UK LTD,No
Http://opendatacommunities.org/id/metropolitan-district-council/leeds,Leeds City Council,30/09/2022,City Development,Highways,Supplies and Services,Operational Materials,205,08/08/2022,2208-00502,0.00,59.76,R,AGGREGATE INDUSTRIES UK LTD,No
Http://opendatacommunities.org/id/metropolitan-district-council/leeds,Leeds City Council,30/09/2022,City Development,Highways,Supplies and Services,Operational Materials,205,10/08/2022,2208-00503,0.00,7246.95,R,AGGREGATE INDUSTRIES UK LTD,No
Http://opendatacommunities.org/id/metropolitan-district-council/leeds,Leeds City Council,30/09/2022,City Development,Highways,Supplies and Services,Operational Materials,205,10/08/2022,2208-00504,0.00,96.00,R,AGGREGATE INDUSTRIES UK LTD,No
Http://opendatacommunities.org/id/metropolitan-district-council/leeds,Leeds City Council,30/09/2022,City Development,Highways,Supplies and Services,Operational Materials,205,17/08/2022,2208-00505,0.00,9451.27,R,AGGREGATE INDUSTRIES UK LTD,No
Http://opendatacommunities.org/id/metropolitan-district-council/leeds,Leeds City Council,30/09/2022,City Development,Highways,Supplies and Services,Operational Materials,205,25/08/2022,2208-00506,0.00,1412.10,R,AGGREGATE INDUSTRIES UK LTD,No
Http://opendatacommunities.org/id/metropolitan-district-council/leeds,Leeds City Council,30/09/2022,City Development,Highways,Supplies and Services,Operational Materials,205,25/08/2022,2208-00507,0.00,12049.80,R,AGGREGATE INDUSTRIES UK LTD,No
Http://opendatacommunities.org/id/metropolitan-district-council/leeds,Leeds City Council,30/09/2022,City Development,Highways,Supplies and Services,Operational Materials,205,26/08/2022,2208-00508,0.00,188.38,R,AGGREGATE INDUSTRIES UK LTD,No
Http://opendatacommunities.org/id/metropolitan-district-council/leeds,Leeds City Council,30/09/2022,City Development,Highways,Supplies and Services,Operational Materials,205,31/08/2022,2208-00509,0.00,903.17,R,AGGREGATE INDUSTRIES UK LTD,No
Http://opendatacommunities.org/id/metropolitan-district-council/leeds,Leeds City Council,30/09/2022,City Development,Highways,Supplies and Services,Operational Materials,205,31/08/2022,2208-00510,0.00,2655.63,R,AGGREGATE INDUSTRIES UK LTD,No
Http://opendatacommunities.org/id/metropolitan-district-council/leeds,Leeds City Council,30/09/2022,City Development,Highways,Supplies and Services,Operational Materials,205,31/08/2022,2208-00511,0.00,730.32,R,AGGREGATE INDUSTRIES UK LTD,No
Http://opendatacommunities.org/id/metropolitan-district-council/leeds,Leeds City Council,30/09/2022,City Development,Highways,Supplies and Services,Operational Materials,205,31/08/2022,2208-00512,0.00,4088.82,R,AGGREGATE INDUSTRIES UK LTD,No
Http://opendatacommunities.org/id/metropolitan-district-council/leeds,Leeds City Council,30/09/2022,Communities Housing and Environment,Customer Access,Supplies and Services,Bought In Professional Services,277,10/08/2022,2208-00513,0.00,36.00,R,Agnieszka J Collier,No
Http://opendatacommunities.org/id/metropolitan-district-council/leeds,Leeds City Council,30/09/2022,Communities Housing and Environment,Customer Access,Supplies and Services,Bought In Professional Services,277,10/08/2022,2208-00514,0.00,24.60,R,Agnieszka J Collier,No
Http://opendatacommunities.org/id/metropolitan-district-council/leeds,Leeds City Council,30/09/2022,Communities Housing and Environment,Customer Access,Supplies and Services,Bought In Professional Services,277,10/08/2022,2208-00515,0.00,51.00,R,Agnieszka J Collier,No
Http://opendatacommunities.org/id/metropolitan-district-council/leeds,Leeds City Council,30/09/2022,Communities Housing and Environment,Customer Access,Supplies and Services,Bought In Professional Services,277,10/08/2022,2208-00516,0.00,9.00,R,Agnieszka J Collier,No
Http://opendatacommunities.org/id/metropolitan-district-council/leeds,Leeds City Council,30/09/2022,Communities Housing and Environment,Customer Access,Supplies and Services,Bought In Professional Services,277,17/08/2022,2208-00517,0.00,207.60,R,Agnieszka J Collier,No
Http://opendatacommunities.org/id/metropolitan-district-council/leeds,Leeds City Council,30/09/2022,Communities Housing and Environment,Customer Access,Supplies and Services,Bought In Professional Services,277,17/08/2022,2208-00518,0.00,11.10,R,Agnieszka J Collier,No
Http://opendatacommunities.org/id/metropolitan-district-council/leeds,Leeds City Council,30/09/2022,Communities Housing and Environment,Customer Access,Supplies and Services,Bought In Professional Services,277,17/08/2022,2208-00519,0.00,20.10,R,Agnieszka J Collier,No
Http://opendatacommunities.org/id/metropolitan-district-council/leeds,Leeds City Council,30/09/2022,Communities Housing and Environment,Customer Access,Supplies and Services,Bought In Professional Services,277,17/08/2022,2208-00520,0.00,18.00,R,Agnieszka J Collier,No
Http://opendatacommunities.org/id/metropolitan-district-council/leeds,Leeds City Council,30/09/2022,Communities Housing and Environment,Customer Access,Supplies and Services,Bought In Professional Services,277,17/08/2022,2208-00521,0.00,9.00,R,Agnieszka J Collier,No
Http://opendatacommunities.org/id/metropolitan-district-council/leeds,Leeds City Council,30/09/2022,Communities Housing and Environment,Customer Access,Supplies and Services,Bought In Professional Services,277,17/08/2022,2208-00522,0.00,9.00,R,Agnieszka J Collier,No
Http://opendatacommunities.org/id/metropolitan-district-council/leeds,Leeds City Council,30/09/2022,Communities Housing and Environment,Customer Access,Supplies and Services,Bought In Professional Services,277,17/08/2022,2208-00523,0.00,9.00,R,Agnieszka J Collier,No
Http://opendatacommunities.org/id/metropolitan-district-council/leeds,Leeds City Council,30/09/2022,Communities Housing and Environment,Customer Access,Supplies and Services,Bought In Professional Services,277,24/08/2022,2208-00524,0.00,20.10,R,Agnieszka J Collier,No
Http://opendatacommunities.org/id/metropolitan-district-council/leeds,Leeds City Council,30/09/2022,Communities Housing and Environment,Customer Access,Supplies and Services,Bought In Professional Services,277,24/08/2022,2208-00525,0.00,9.00,R,Agnieszka J Collier,No
Http://opendatacommunities.org/id/metropolitan-district-council/leeds,Leeds City Council,30/09/2022,Communities Housing and Environment,Customer Access,Supplies and Services,Bought In Professional Services,277,24/08/2022,2208-00526,0.00,9.90,R,Agnieszka J Collier,No
Http://opendatacommunities.org/id/metropolitan-district-council/leeds,Leeds City Council,30/09/2022,Communities Housing and Environment,Customer Access,Supplies and Services,Bought In Professional Services,277,17/08/2022,2208-00527,0.00,13.50,R,Ahmed Moustafa Moustafa Mousa,No
Http://opendatacommunities.org/id/metropolitan-district-council/leeds,Leeds City Council,30/09/2022,Communities Housing and Environment,Customer Access,Supplies and Services,Bought In Professional Services,277,24/08/2022,2208-00528,0.00,18.00,R,Ahmed Moustafa Moustafa Mousa,No
Http://opendatacommunities.org/id/metropolitan-district-council/leeds,Leeds City Council,30/09/2022,Communities Housing and Environment,Customer Access,Supplies and Services,Bought In Professional Services,277,24/08/2022,2208-00529,0.00,66.30,R,Ahmed T. Al-Hamdi,No
Http://opendatacommunities.org/id/metropolitan-district-council/leeds,Leeds City Council as Accountable Body,30/09/2022,Social Services Pooled Budgets,Leeds Community Equip Store Pooled Budgt,Supplies and Services,Other Equipment,203,08/08/2022,2208-00530,0.00,3600.00,R,AIDAPT BATHROOMS LTD,No
Http://opendatacommunities.org/id/metropolitan-district-council/leeds,Leeds City Council as Accountable Body,30/09/2022,Social Services Pooled Budgets,Leeds Community Equip Store Pooled Budgt,Supplies and Services,Other Equipment,203,11/08/2022,2208-00531,0.00,450.00,R,AIDAPT BATHROOMS LTD,No
Http://opendatacommunities.org/id/metropolitan-district-council/leeds,Leeds City Council as Accountable Body,30/09/2022,Social Services Pooled Budgets,Leeds Community Equip Store Pooled Budgt,Supplies and Services,Other Equipment,203,11/08/2022,2208-00532,0.00,464.00,R,AIDAPT BATHROOMS LTD,No
Http://opendatacommunities.org/id/metropolitan-district-council/leeds,Leeds City Council as Accountable Body,30/09/2022,Social Services Pooled Budgets,Leeds Community Equip Store Pooled Budgt,Supplies and Services,Other Equipment,203,15/08/2022,2208-00533,0.00,2625.00,R,AIDAPT BATHROOMS LTD,No
Http://opendatacommunities.org/id/metropolitan-district-council/leeds,Leeds City Council,30/09/2022,Children and Families,Social Care,Appropriations,Leaving Care Allowances,634,03/08/2022,2208-00534,0.00,50.00,R,REDACTED PERSONAL DATA,No
Http://opendatacommunities.org/id/metropolitan-district-council/leeds,Leeds City Council,30/09/2022,Children and Families,Social Care,Agency Payments,Section 17,551,25/08/2022,2208-00535,0.00,7.60,R,REDACTED PERSONAL DATA,No
Http://opendatacommunities.org/id/metropolitan-district-council/leeds,Leeds City Council,30/09/2022,Resources,Leeds Building Services,Premises,Cleaning Maintenance & Toiletries,127,01/08/2022,2208-00536,0.00,529.48,R,Air Conditioning Accessories,No
Http://opendatacommunities.org/id/metropolitan-district-council/leeds,Leeds City Council,30/09/2022,Resources,Leeds Building Services,Premises,Cleaning Maintenance & Toiletries,127,04/08/2022,2208-00537,0.00,897.71,R,Air Conditioning Accessories,No
Http://opendatacommunities.org/id/metropolitan-district-council/leeds,Leeds City Council,30/09/2022,Resources,Commercial Services ,Supplies and Services,Operational Materials,205,28/06/2022,2208-00538,0.00,300.00,R,Air Force Pneumatics And,Yes
Http://opendatacommunities.org/id/metropolitan-district-council/leeds,Leeds City Council,30/09/2022,Communities Housing and Environment,Environmental Health,Supplies and Services,Other Hired And Contracted Services,265,04/08/2022,2208-00539,0.00,11.75,R,AIR LIQUIDE UK,No
Http://opendatacommunities.org/id/metropolitan-district-council/leeds,Leeds City Council,30/09/2022,Communities Housing and Environment,Environmental Health,Supplies and Services,Other Hired And Contracted Services,265,04/08/2022,2208-00540,0.00,11.75,R,AIR LIQUIDE UK,No
Http://opendatacommunities.org/id/metropolitan-district-council/leeds,Leeds City Council,30/09/2022,Communities Housing and Environment,Environmental Health,Supplies and Services,Other Hired And Contracted Services,265,04/08/2022,2208-00541,0.00,18.16,R,AIR LIQUIDE UK,No
Http://opendatacommunities.org/id/metropolitan-district-council/leeds,Leeds City Council,30/09/2022,Communities Housing and Environment,Environmental Health,Supplies and Services,Other Hired And Contracted Services,265,04/08/2022,2208-00542,0.00,82.25,R,AIR LIQUIDE UK,No
Http://opendatacommunities.org/id/metropolitan-district-council/leeds,Leeds City Council,30/09/2022,Communities Housing and Environment,Environmental Health,Supplies and Services,Other Hired And Contracted Services,265,11/08/2022,2208-00543,0.00,615.97,R,AIR LIQUIDE UK,No
Http://opendatacommunities.org/id/metropolitan-district-council/leeds,Leeds City Council,30/09/2022,Children and Families,Social Care ,Agency Payments,Placement Support,550,03/07/2022,2208-00544,0.00,-83.33,R,Airbnb * Hm2f2sdbpk,Yes
Http://opendatacommunities.org/id/metropolitan-district-council/leeds,Leeds City Council,30/09/2022,Strategic Landlord,Property and Contracts ,Transport,Public Transport Expenses,310,05/07/2022,2208-00545,0.00,5478.58,R,Airbnb * Hmat88bcmf,Yes
Http://opendatacommunities.org/id/metropolitan-district-council/leeds,Leeds City Council,30/09/2022,City Development,Libraries Arts & Heritage ,Transport,Public Transport Expenses,310,28/06/2022,2208-00546,0.00,270.00,R,Airbnb * Hmc9f2tydr,Yes
Http://opendatacommunities.org/id/metropolitan-district-council/leeds,Leeds City Council,30/09/2022,Children and Families,Social Care ,Agency Payments,Placement Support,550,06/07/2022,2208-00547,0.00,198.60,R,Airbnb * Hmqfj5pywn,Yes
Http://opendatacommunities.org/id/metropolitan-district-council/leeds,Leeds City Council,30/09/2022,Resources,Leeds Building Services ,Employees,Training & Development,70,11/07/2022,2208-00548,0.00,691.67,R,Airborne Environmental C,Yes
Http://opendatacommunities.org/id/metropolitan-district-council/leeds,Leeds City Council,30/09/2022,Adults and Health,Public Health,Supplies and Services,Computer Software & Equipment,214,05/08/2022,2208-00549,0.00,12000.00,R,Aire Logic Ltd,No
Http://opendatacommunities.org/id/metropolitan-district-council/leeds,Leeds City Council,30/09/2022,Adults and Health,Public Health,Agency Payments,Public Health Commissioned Services,526,05/08/2022,2208-00550,0.00,3722.96,R,Aire Valley Surgery,No
Http://opendatacommunities.org/id/metropolitan-district-council/leeds,Leeds City Council,30/09/2022,Resources,Human Resources,Employees,Occupational Health,85,11/08/2022,2208-00551,0.00,70.00,R,Aire Valley Surgery,No
Http://opendatacommunities.org/id/metropolitan-district-council/leeds,Leeds City Council,30/09/2022,Communities Housing and Environment,Parks and Countryside,Supplies and Services,Other Hired And Contracted Services,265,03/08/2022,2208-00552,0.00,700.00,R,Aire Valley Tree Services Ltd,No
Http://opendatacommunities.org/id/metropolitan-district-council/leeds,Leeds City Council,30/09/2022,Communities Housing and Environment,Parks and Countryside,Supplies and Services,Other Hired And Contracted Services,265,04/08/2022,2208-00553,0.00,2002.00,R,Aire Valley Tree Services Ltd,No
Http://opendatacommunities.org/id/metropolitan-district-council/leeds,Leeds City Council,30/09/2022,Communities Housing and Environment,Parks and Countryside,Supplies and Services,Other Hired And Contracted Services,265,04/08/2022,2208-00554,0.00,171.00,R,Aire Valley Tree Services Ltd,No
Http://opendatacommunities.org/id/metropolitan-district-council/leeds,Leeds City Council,30/09/2022,Communities Housing and Environment,Parks and Countryside,Supplies and Services,Other Hired And Contracted Services,265,04/08/2022,2208-00555,0.00,3341.00,R,Aire Valley Tree Services Ltd,No
Http://opendatacommunities.org/id/metropolitan-district-council/leeds,Leeds City Council,30/09/2022,Communities Housing and Environment,Parks and Countryside,Supplies and Services,Other Hired And Contracted Services,265,23/08/2022,2208-00556,0.00,335.00,R,Aire Valley Tree Services Ltd,No
Http://opendatacommunities.org/id/metropolitan-district-council/leeds,Leeds City Council,30/09/2022,Communities Housing and Environment,Parks and Countryside,Supplies and Services,Other Hired And Contracted Services,265,23/08/2022,2208-00557,0.00,3400.00,R,Aire Valley Tree Services Ltd,No
Http://opendatacommunities.org/id/metropolitan-district-council/leeds,Leeds City Council,30/09/2022,Communities Housing and Environment,Parks and Countryside,Supplies and Services,Other Hired And Contracted Services,265,23/08/2022,2208-00558,0.00,120.00,R,Aire Valley Tree Services Ltd,No
Http://opendatacommunities.org/id/metropolitan-district-council/leeds,Leeds City Council,30/09/2022,Communities Housing and Environment,Parks and Countryside,Supplies and Services,Other Hired And Contracted Services,265,25/08/2022,2208-00559,0.00,3220.00,R,Aire Valley Tree Services Ltd,No
Http://opendatacommunities.org/id/metropolitan-district-council/leeds,Leeds City Council,30/09/2022,Adults and Health,Services For Older People - 65 And Over,Agency Payments,Residential Care Dementia,571,17/08/2022,2208-00560,0.00,32100.40,R,Aire View Residential Home,No
Http://opendatacommunities.org/id/metropolitan-district-council/leeds,Leeds City Council,30/09/2022,Adults and Health,Services For Older People - 65 And Over,Agency Payments,Residential,580,17/08/2022,2208-00561,0.00,3735.40,R,Aire View Residential Home,No
Http://opendatacommunities.org/id/metropolitan-district-council/leeds,Leeds City Council,30/09/2022,Strategic Accounts,Miscellaneous,Supplies and Services,Non-Recurring Grants,227,01/08/2022,2208-00562,0.00,593.40,R,Aireborough Civic Society,No
Http://opendatacommunities.org/id/metropolitan-district-council/leeds,Leeds City Council,30/09/2022,Adults and Health,Public Health,Agency Payments,Public Health Commissioned Services,526,05/08/2022,2208-00563,0.00,963.20,R,Aireborough Family Practice,No
Http://opendatacommunities.org/id/metropolitan-district-council/leeds,Leeds City Council,30/09/2022,Strategic Accounts,Miscellaneous,Supplies and Services,Non-Recurring Grants,227,01/08/2022,2208-00564,0.00,200.00,R,Aireborough Judo Club,No
Http://opendatacommunities.org/id/metropolitan-district-council/leeds,Leeds City Council,30/09/2022,City Development,Recreation ,Supplies and Services,Other Hired And Contracted Services,265,12/07/2022,2208-00565,0.00,8.30,R,Aireborough Leisure Centr,Yes
Http://opendatacommunities.org/id/metropolitan-district-council/leeds,Leeds City Council,30/09/2022,City Development,Libraries Arts & Heritage,Supplies and Services,Other Hired And Contracted Services,265,05/08/2022,2208-00566,0.00,1210.00,R,Airedale Academy,No
Http://opendatacommunities.org/id/metropolitan-district-council/leeds,Leeds City Council,30/09/2022,Resources,Commercial Services,Supplies and Services,Operational Materials,205,19/08/2022,2208-00567,0.00,198.00,R,AIREDALE CATERING EQUIPMENT LTD,No
Http://opendatacommunities.org/id/metropolitan-district-council/leeds,Leeds City Council,30/09/2022,Resources,Commercial Services,Premises,Fixtures & Fittings,131,26/08/2022,2208-00568,0.00,16598.00,R,AIREDALE CATERING EQUIPMENT LTD,No
Http://opendatacommunities.org/id/metropolitan-district-council/leeds,Leeds City Council,30/09/2022,Adults and Health,Assessment And Care Management,Agency Payments,Residential,580,17/08/2022,2208-00569,0.00,-1522.46,R,Airedale Residential Home,No
Http://opendatacommunities.org/id/metropolitan-district-council/leeds,Leeds City Council,30/09/2022,Adults and Health,Services For Older People - 65 And Over,Agency Payments,Residential Care Dementia,571,17/08/2022,2208-00570,0.00,11619.39,R,Airedale Residential Home,No
Http://opendatacommunities.org/id/metropolitan-district-council/leeds,Leeds City Council,30/09/2022,Adults and Health,Services For Older People - 65 And Over,Agency Payments,Residential,580,17/08/2022,2208-00571,0.00,16736.08,R,Airedale Residential Home,No
Http://opendatacommunities.org/id/metropolitan-district-council/leeds,Leeds City Council,30/09/2022,Adults and Health,Services For Older People Under 65 P/Dis,Agency Payments,Residential,580,17/08/2022,2208-00572,0.00,2094.92,R,Airedale Residential Home,No
Http://opendatacommunities.org/id/metropolitan-district-council/leeds,Leeds City Council,30/09/2022,Children and Families,Social Care ,Appropriations,Leaving Care Allowances,634,05/07/2022,2208-00573,0.00,23.55,R,Airpay 42337604-Amber Car,Yes
Http://opendatacommunities.org/id/metropolitan-district-council/leeds,Leeds City Council,30/09/2022,Children and Families,Social Care ,Transport,Public Transport Expenses,310,06/07/2022,2208-00574,0.00,17.37,R,Airpay 42349854-Amber Car,Yes
Http://opendatacommunities.org/id/metropolitan-district-council/leeds,Leeds City Council,30/09/2022,Communities Housing and Environment,Customer Access ,Transport,Public Transport Expenses,310,11/07/2022,2208-00575,0.00,18.35,R,Airpay 42430657-Amber Car,Yes
Http://opendatacommunities.org/id/metropolitan-district-council/leeds,Leeds City Council,30/09/2022,Children and Families,Social Care ,Appropriations,Leaving Care Allowances,634,11/07/2022,2208-00576,0.00,10.55,R,Airpay 42430853-Amber Car,Yes
Http://opendatacommunities.org/id/metropolitan-district-council/leeds,Leeds City Council,30/09/2022,Children and Families,Social Care ,Appropriations,Leaving Care Allowances,634,12/07/2022,2208-00577,0.00,9.15,R,Airpay 42437693-Amber Car,Yes
Http://opendatacommunities.org/id/metropolitan-district-council/leeds,Leeds City Council,30/09/2022,Communities Housing and Environment,Communities ,Transport,Public Transport Expenses,310,12/07/2022,2208-00578,0.00,19.75,R,Airpay 42440161-Amber Car,Yes
Http://opendatacommunities.org/id/metropolitan-district-council/leeds,Leeds City Council,30/09/2022,Communities Housing and Environment,Communities ,Transport,Public Transport Expenses,310,12/07/2022,2208-00579,0.00,4.15,R,Airpay 42441042-Amber Car,Yes
Http://opendatacommunities.org/id/metropolitan-district-council/leeds,Leeds City Council,30/09/2022,Adults and Health,Assessment And Care Management ,Transport,Public Transport Expenses,310,12/07/2022,2208-00580,0.00,7.75,R,Airpay 42444446-Amber Car,Yes
Http://opendatacommunities.org/id/metropolitan-district-council/leeds,Leeds City Council,30/09/2022,Children and Families,Social Care ,Appropriations,Leaving Care Allowances,634,12/07/2022,2208-00581,0.00,12.25,R,Airpay 42445646-Amber Car,Yes
Http://opendatacommunities.org/id/metropolitan-district-council/leeds,Leeds City Council,30/09/2022,Children and Families,Social Care ,Transport,Public Transport Expenses,310,20/07/2022,2208-00582,0.00,3.96,R,Airpay 42563852-Amber Car,Yes
Http://opendatacommunities.org/id/metropolitan-district-council/leeds,Leeds City Council,30/09/2022,Adults and Health,Assessment And Care Management ,Transport,Public Transport Expenses,310,20/07/2022,2208-00583,0.00,7.85,R,Airpay 42568594-Amber Car,Yes
Http://opendatacommunities.org/id/metropolitan-district-council/leeds,Leeds City Council,30/09/2022,Adults and Health,Assessment And Care Management ,Transport,Public Transport Expenses,310,25/07/2022,2208-00584,0.00,4.25,R,Airpay 42649741-Amber Car,Yes
Http://opendatacommunities.org/id/metropolitan-district-council/leeds,Leeds City Council,30/09/2022,Communities Housing and Environment,Community Safety,Supplies and Services,Bought In Professional Services,277,17/08/2022,2208-00585,0.00,1044.80,R,AIRWAVE SOLUTIONS LTD,No
Http://opendatacommunities.org/id/metropolitan-district-council/leeds,Leeds City Council,30/09/2022,Adults and Health,Services For Adults Under 65 Mental/Dis,Internal Recharges,Legal Disbursements,411,01/08/2022,2208-00586,0.00,787.50,R,Aisling Campbell,No
Http://opendatacommunities.org/id/metropolitan-district-council/leeds,Leeds City Council,30/09/2022,Adults and Health,Services For Adults Under 65 Mental/Dis,Agency Payments,Fees - Level 4,520,18/08/2022,2208-00587,0.00,175.00,R,AIT Mitra Limited,No
Http://opendatacommunities.org/id/metropolitan-district-council/leeds,Leeds City Council,30/09/2022,Adults and Health,Services For Adults Under 65 Mental/Dis,Agency Payments,Fees - Level 4,520,19/08/2022,2208-00588,0.00,175.00,R,AIT Mitra Limited,No
Http://opendatacommunities.org/id/metropolitan-district-council/leeds,Leeds City Council,30/09/2022,Adults and Health,Services For Adults Under 65 Mental/Dis,Agency Payments,Fees - Level 4,520,30/08/2022,2208-00589,0.00,175.00,R,AIT Mitra Limited,No
Http://opendatacommunities.org/id/metropolitan-district-council/leeds,Leeds City Council,30/09/2022,Adults and Health,Services For Adults Under 65 Mental/Dis,Agency Payments,Fees - Level 4,520,30/08/2022,2208-00590,0.00,175.00,R,AIT Mitra Limited,No
Http://opendatacommunities.org/id/metropolitan-district-council/leeds,Leeds City Council as Accountable Body,30/09/2022,Social Services Pooled Budgets,Jcs For People With Learning Disabilitie,Agency Payments,Residential,580,17/08/2022,2208-00591,0.00,7082.20,R,AITCH care homes,No
Http://opendatacommunities.org/id/metropolitan-district-council/leeds,Leeds City Council,30/09/2022,Resources,Leeds Building Services,Supplies and Services,Operational Materials,205,03/08/2022,2208-00592,0.00,36.36,R,AJM FIXINGS & POWER TOOLS LTD,No
Http://opendatacommunities.org/id/metropolitan-district-council/leeds,Leeds City Council,30/09/2022,Resources,Leeds Building Services,Supplies and Services,Operational Furniture And Equipment,203,03/08/2022,2208-00593,0.00,114.45,R,AJM FIXINGS & POWER TOOLS LTD,No
Http://opendatacommunities.org/id/metropolitan-district-council/leeds,Leeds City Council,30/09/2022,Resources,Leeds Building Services,Supplies and Services,Operational Materials,205,03/08/2022,2208-00594,0.00,59.94,R,AJM FIXINGS & POWER TOOLS LTD,No
Http://opendatacommunities.org/id/metropolitan-district-council/leeds,Leeds City Council,30/09/2022,Resources,Leeds Building Services,Premises,Cleaning Maintenance & Toiletries,127,03/08/2022,2208-00595,0.00,109.40,R,AJM FIXINGS & POWER TOOLS LTD,No
Http://opendatacommunities.org/id/metropolitan-district-council/leeds,Leeds City Council,30/09/2022,Resources,Leeds Building Services,Supplies and Services,Operational Furniture And Equipment,203,03/08/2022,2208-00596,0.00,444.99,R,AJM FIXINGS & POWER TOOLS LTD,No
Http://opendatacommunities.org/id/metropolitan-district-council/leeds,Leeds City Council,30/09/2022,Resources,Leeds Building Services,Supplies and Services,Operational Furniture And Equipment,203,03/08/2022,2208-00597,0.00,259.00,R,AJM FIXINGS & POWER TOOLS LTD,No
Http://opendatacommunities.org/id/metropolitan-district-council/leeds,Leeds City Council,30/09/2022,Resources,Leeds Building Services,Premises,Cleaning Maintenance & Toiletries,127,03/08/2022,2208-00598,0.00,325.00,R,AJM FIXINGS & POWER TOOLS LTD,No
Http://opendatacommunities.org/id/metropolitan-district-council/leeds,Leeds City Council,30/09/2022,Resources,Leeds Building Services,Supplies and Services,Operational Furniture And Equipment,203,03/08/2022,2208-00599,0.00,359.16,R,AJM FIXINGS & POWER TOOLS LTD,No
Http://opendatacommunities.org/id/metropolitan-district-council/leeds,Leeds City Council,30/09/2022,Resources,Leeds Building Services,Supplies and Services,Operational Furniture And Equipment,203,03/08/2022,2208-00600,0.00,259.00,R,AJM FIXINGS & POWER TOOLS LTD,No
Http://opendatacommunities.org/id/metropolitan-district-council/leeds,Leeds City Council,30/09/2022,Resources,Leeds Building Services,Supplies and Services,Operational Furniture And Equipment,203,03/08/2022,2208-00601,0.00,7.48,R,AJM FIXINGS & POWER TOOLS LTD,No
Http://opendatacommunities.org/id/metropolitan-district-council/leeds,Leeds City Council,30/09/2022,Resources,Leeds Building Services,Premises,Cleaning Maintenance & Toiletries,127,04/08/2022,2208-00602,0.00,102.60,R,AJM FIXINGS & POWER TOOLS LTD,No
Http://opendatacommunities.org/id/metropolitan-district-council/leeds,Leeds City Council,30/09/2022,Resources,Leeds Building Services,Supplies and Services,Operational Furniture And Equipment,203,04/08/2022,2208-00603,0.00,263.34,R,AJM FIXINGS & POWER TOOLS LTD,No
Http://opendatacommunities.org/id/metropolitan-district-council/leeds,Leeds City Council,30/09/2022,Resources,Leeds Building Services,Supplies and Services,Operational Furniture And Equipment,203,04/08/2022,2208-00604,0.00,562.00,R,AJM FIXINGS & POWER TOOLS LTD,No
Http://opendatacommunities.org/id/metropolitan-district-council/leeds,Leeds City Council,30/09/2022,Resources,Leeds Building Services,Supplies and Services,Operational Furniture And Equipment,203,04/08/2022,2208-00605,0.00,131.00,R,AJM FIXINGS & POWER TOOLS LTD,No
Http://opendatacommunities.org/id/metropolitan-district-council/leeds,Leeds City Council,30/09/2022,Resources,Leeds Building Services,Supplies and Services,Operational Furniture And Equipment,203,04/08/2022,2208-00606,0.00,192.46,R,AJM FIXINGS & POWER TOOLS LTD,No
Http://opendatacommunities.org/id/metropolitan-district-council/leeds,Leeds City Council,30/09/2022,Resources,Leeds Building Services,Supplies and Services,Operational Furniture And Equipment,203,04/08/2022,2208-00607,0.00,231.12,R,AJM FIXINGS & POWER TOOLS LTD,No
Http://opendatacommunities.org/id/metropolitan-district-council/leeds,Leeds City Council,30/09/2022,Resources,Leeds Building Services,Supplies and Services,Operational Furniture And Equipment,203,08/08/2022,2208-00608,0.00,131.00,R,AJM FIXINGS & POWER TOOLS LTD,No
Http://opendatacommunities.org/id/metropolitan-district-council/leeds,Leeds City Council,30/09/2022,Resources,Leeds Building Services,Premises,Cleaning Maintenance & Toiletries,127,12/08/2022,2208-00609,0.00,199.00,R,AJM FIXINGS & POWER TOOLS LTD,No
Http://opendatacommunities.org/id/metropolitan-district-council/leeds,Leeds City Council,30/09/2022,Resources,Leeds Building Services,Premises,Cleaning Maintenance & Toiletries,127,12/08/2022,2208-00610,0.00,13.36,R,AJM FIXINGS & POWER TOOLS LTD,No
Http://opendatacommunities.org/id/metropolitan-district-council/leeds,Leeds City Council,30/09/2022,Resources,Leeds Building Services,Supplies and Services,Operational Furniture And Equipment,203,12/08/2022,2208-00611,0.00,113.00,R,AJM FIXINGS & POWER TOOLS LTD,No
Http://opendatacommunities.org/id/metropolitan-district-council/leeds,Leeds City Council,30/09/2022,Resources,Leeds Building Services,Supplies and Services,STORES - CENTRAL AND OTHER DEPOTS,5,17/08/2022,2208-00612,0.00,349.90,R,AJM FIXINGS & POWER TOOLS LTD,No
Http://opendatacommunities.org/id/metropolitan-district-council/leeds,Leeds City Council,30/09/2022,Resources,Leeds Building Services,Supplies and Services,Operational Furniture And Equipment,203,17/08/2022,2208-00613,0.00,93.18,R,AJM FIXINGS & POWER TOOLS LTD,No
Http://opendatacommunities.org/id/metropolitan-district-council/leeds,Leeds City Council,30/09/2022,Resources,Leeds Building Services,Supplies and Services,Operational Furniture And Equipment,203,17/08/2022,2208-00614,0.00,222.36,R,AJM FIXINGS & POWER TOOLS LTD,No
Http://opendatacommunities.org/id/metropolitan-district-council/leeds,Leeds City Council,30/09/2022,Resources,Leeds Building Services,Premises,Cleaning Maintenance & Toiletries,127,19/08/2022,2208-00615,0.00,364.80,R,AJM FIXINGS & POWER TOOLS LTD,No
Http://opendatacommunities.org/id/metropolitan-district-council/leeds,Leeds City Council,30/09/2022,Resources,Leeds Building Services,Supplies and Services,Operational Furniture And Equipment,203,19/08/2022,2208-00616,0.00,7.20,R,AJM FIXINGS & POWER TOOLS LTD,No
Http://opendatacommunities.org/id/metropolitan-district-council/leeds,Leeds City Council,30/09/2022,Resources,Leeds Building Services,Premises,Cleaning Maintenance & Toiletries,127,19/08/2022,2208-00617,0.00,485.55,R,AJM FIXINGS & POWER TOOLS LTD,No
Http://opendatacommunities.org/id/metropolitan-district-council/leeds,Leeds City Council,30/09/2022,Resources,Leeds Building Services,Supplies and Services,Operational Furniture And Equipment,203,19/08/2022,2208-00618,0.00,16.08,R,AJM FIXINGS & POWER TOOLS LTD,No
Http://opendatacommunities.org/id/metropolitan-district-council/leeds,Leeds City Council,30/09/2022,Resources,Leeds Building Services,Supplies and Services,Operational Furniture And Equipment,203,19/08/2022,2208-00619,0.00,284.97,R,AJM FIXINGS & POWER TOOLS LTD,No
Http://opendatacommunities.org/id/metropolitan-district-council/leeds,Leeds City Council,30/09/2022,Resources,Leeds Building Services,Supplies and Services,Operational Furniture And Equipment,203,19/08/2022,2208-00620,0.00,618.16,R,AJM FIXINGS & POWER TOOLS LTD,No
Http://opendatacommunities.org/id/metropolitan-district-council/leeds,Leeds City Council,30/09/2022,Resources,Leeds Building Services,Supplies and Services,Operational Furniture And Equipment,203,19/08/2022,2208-00621,0.00,260.00,R,AJM FIXINGS & POWER TOOLS LTD,No
Http://opendatacommunities.org/id/metropolitan-district-council/leeds,Leeds City Council,30/09/2022,Resources,Leeds Building Services,Supplies and Services,Operational Furniture And Equipment,203,24/08/2022,2208-00622,0.00,207.30,R,AJM FIXINGS & POWER TOOLS LTD,No
Http://opendatacommunities.org/id/metropolitan-district-council/leeds,Leeds City Council,30/09/2022,Resources,Leeds Building Services,Supplies and Services,Operational Furniture And Equipment,203,24/08/2022,2208-00623,0.00,1281.61,R,AJM FIXINGS & POWER TOOLS LTD,No
Http://opendatacommunities.org/id/metropolitan-district-council/leeds,Leeds City Council,30/09/2022,Resources,Leeds Building Services,Premises,Cleaning Maintenance & Toiletries,127,24/08/2022,2208-00624,0.00,43.47,R,AJM FIXINGS & POWER TOOLS LTD,No
Http://opendatacommunities.org/id/metropolitan-district-council/leeds,Leeds City Council,30/09/2022,Resources,Leeds Building Services,Supplies and Services,Operational Materials,205,26/08/2022,2208-00625,0.00,179.94,R,AJM FIXINGS & POWER TOOLS LTD,No
Http://opendatacommunities.org/id/metropolitan-district-council/leeds,Leeds City Council,30/09/2022,Resources,Leeds Building Services,Supplies and Services,Operational Furniture And Equipment,203,26/08/2022,2208-00626,0.00,426.27,R,AJM FIXINGS & POWER TOOLS LTD,No
Http://opendatacommunities.org/id/metropolitan-district-council/leeds,Leeds City Council,30/09/2022,Resources,Leeds Building Services,Premises,Cleaning Maintenance & Toiletries,127,26/08/2022,2208-00627,0.00,359.16,R,AJM FIXINGS & POWER TOOLS LTD,No
Http://opendatacommunities.org/id/metropolitan-district-council/leeds,Leeds City Council,30/09/2022,Resources,Leeds Building Services,Supplies and Services,Operational Furniture And Equipment,203,26/08/2022,2208-00628,0.00,1054.79,R,AJM FIXINGS & POWER TOOLS LTD,No
Http://opendatacommunities.org/id/metropolitan-district-council/leeds,Leeds City Council,30/09/2022,Resources,Leeds Building Services,Premises,Cleaning Maintenance & Toiletries,127,30/08/2022,2208-00629,0.00,37.98,R,AJM FIXINGS & POWER TOOLS LTD,No
Http://opendatacommunities.org/id/metropolitan-district-council/leeds,Leeds City Council,30/09/2022,Resources,Leeds Building Services,Premises,Cleaning Maintenance & Toiletries,127,30/08/2022,2208-00630,0.00,325.00,R,AJM FIXINGS & POWER TOOLS LTD,No
Http://opendatacommunities.org/id/metropolitan-district-council/leeds,Leeds City Council,30/09/2022,Resources,Leeds Building Services,Premises,Cleaning Maintenance & Toiletries,127,31/08/2022,2208-00631,0.00,54.90,R,AJM FIXINGS & POWER TOOLS LTD,No
Http://opendatacommunities.org/id/metropolitan-district-council/leeds,Leeds City Council,30/09/2022,Resources,Leeds Building Services,Premises,Cleaning Maintenance & Toiletries,127,31/08/2022,2208-00632,0.00,150.00,R,AJM FIXINGS & POWER TOOLS LTD,No
Http://opendatacommunities.org/id/metropolitan-district-council/leeds,Leeds City Council,30/09/2022,Resources,Leeds Building Services,Premises,Cleaning Maintenance & Toiletries,127,31/08/2022,2208-00633,0.00,742.60,R,AJM FIXINGS & POWER TOOLS LTD,No
Http://opendatacommunities.org/id/metropolitan-district-council/leeds,Leeds City Council,30/09/2022,Communities Housing and Environment,Communities,Supplies and Services,Childcare Vouchers Service Charge,258,17/08/2022,2208-00634,0.00,69.40,R,REDACTED PERSONAL DATA,No
Http://opendatacommunities.org/id/metropolitan-district-council/leeds,Leeds City Council,30/09/2022,Communities Housing and Environment,Communities,Transport,Public Transport Expenses,310,17/08/2022,2208-00635,0.00,18.60,R,REDACTED PERSONAL DATA,No
Http://opendatacommunities.org/id/metropolitan-district-council/leeds,Leeds City Council,30/09/2022,Communities Housing and Environment,Strategic Housing Partnership & Support,Capital,CONSTRUCTION,3,25/08/2022,2208-00636,0.00,2500.00,C,AKR Construction Ltd,No
Http://opendatacommunities.org/id/metropolitan-district-council/leeds,Leeds City Council,30/09/2022,Communities Housing and Environment,Strategic Housing Partnership & Support,Capital,CONSTRUCTION,3,25/08/2022,2208-00637,0.00,10000.00,C,AKR Construction Ltd,No
Http://opendatacommunities.org/id/metropolitan-district-council/leeds,Leeds City Council,30/09/2022,Communities Housing and Environment,Strategic Housing Partnership & Support,Capital,CONSTRUCTION,3,25/08/2022,2208-00638,0.00,10000.00,C,AKR Construction Ltd,No
Http://opendatacommunities.org/id/metropolitan-district-council/leeds,Leeds City Council,30/09/2022,City Development,Libraries Arts & Heritage,Supplies and Services,Other Hired And Contracted Services,265,05/08/2022,2208-00639,0.00,62.22,R,ALAA Enterprises,No
Http://opendatacommunities.org/id/metropolitan-district-council/leeds,Leeds City Council,30/09/2022,Resources,Democratic Services ,Appropriations,Civic Allowances,651,06/07/2022,2208-00640,0.00,60.00,R,Alan Brown Flowers,Yes
Http://opendatacommunities.org/id/metropolitan-district-council/leeds,Leeds City Council,30/09/2022,Communities Housing and Environment,Benefits Wlefare and Poverty,Supplies and Services,Grant Related Expenditure,290,08/08/2022,2208-00641,0.00,50.00,R,REDACTED PERSONAL DATA,No
Http://opendatacommunities.org/id/metropolitan-district-council/leeds,Leeds City Council,30/09/2022,Communities Housing and Environment,Benefits Wlefare and Poverty,Supplies and Services,Grant Related Expenditure,290,03/08/2022,2208-00642,0.00,100.00,R,REDACTED PERSONAL DATA,No
Http://opendatacommunities.org/id/metropolitan-district-council/leeds,Leeds City Council,30/09/2022,Children and Families,Social Care,Appropriations,Leaving Care Allowances,634,05/08/2022,2208-00643,0.00,51.05,R,REDACTED PERSONAL DATA,No
Http://opendatacommunities.org/id/metropolitan-district-council/leeds,Leeds City Council,30/09/2022,Children and Families,Social Care,Appropriations,Leaving Care Allowances,634,12/08/2022,2208-00644,0.00,51.05,R,REDACTED PERSONAL DATA,No
Http://opendatacommunities.org/id/metropolitan-district-council/leeds,Leeds City Council,30/09/2022,Children and Families,Social Care,Appropriations,Leaving Care Allowances,634,19/08/2022,2208-00645,0.00,51.05,R,REDACTED PERSONAL DATA,No
Http://opendatacommunities.org/id/metropolitan-district-council/leeds,Leeds City Council,30/09/2022,Children and Families,Social Care,Appropriations,Leaving Care Allowances,634,26/08/2022,2208-00646,0.00,51.05,R,REDACTED PERSONAL DATA,No
Http://opendatacommunities.org/id/metropolitan-district-council/leeds,Leeds City Council,30/09/2022,Children and Families,Social Care,Agency Payments,Services Rendered By Other Organisations,511,05/08/2022,2208-00647,0.00,372.84,R,REDACTED PERSONAL DATA,No
Http://opendatacommunities.org/id/metropolitan-district-council/leeds,Leeds City Council,30/09/2022,Children and Families,Social Care,Agency Payments,Services Rendered By Other Organisations,511,05/08/2022,2208-00648,0.00,93.60,R,REDACTED PERSONAL DATA,No
Http://opendatacommunities.org/id/metropolitan-district-council/leeds,Leeds City Council,30/09/2022,City Development,Recreation,Supplies and Services,Operational Furniture And Equipment,203,19/08/2022,2208-00649,0.00,190.00,R,Alb Bounce,No
Http://opendatacommunities.org/id/metropolitan-district-council/leeds,Leeds City Council as Accountable Body,30/09/2022,Social Services Pooled Budgets,Leeds Community Equip Store Pooled Budgt,Supplies and Services,Other Equipment,203,12/08/2022,2208-00650,0.00,34.00,R,ALBION ELECTRIC STORES LTD,No
Http://opendatacommunities.org/id/metropolitan-district-council/leeds,Leeds City Council,30/09/2022,Children and Families,Learning Places,Capital,OTHER COSTS,7,25/08/2022,2208-00651,0.00,2990.00,C,ALBION ELECTRIC STORES LTD,No
Http://opendatacommunities.org/id/metropolitan-district-council/leeds,Leeds City Council,30/09/2022,Communities Housing and Environment,Communities,Supplies and Services,Other Hired And Contracted Services,265,04/08/2022,2208-00652,0.00,1228.33,R,Alcium Software Ltd,No
Http://opendatacommunities.org/id/metropolitan-district-council/leeds,Leeds City Council,30/09/2022,Communities Housing and Environment,Communities,Supplies and Services,Other Hired And Contracted Services,265,26/08/2022,2208-00653,0.00,1228.33,R,Alcium Software Ltd,No
Http://opendatacommunities.org/id/metropolitan-district-council/leeds,Leeds City Council,30/09/2022,Children and Families,Social Care ,Supplies and Services,Food & Drink,231,02/07/2022,2208-00654,0.00,10.96,R,Aldi,Yes
Http://opendatacommunities.org/id/metropolitan-district-council/leeds,Leeds City Council,30/09/2022,Children and Families,Social Care ,Appropriations,Leaving Care Allowances,634,29/06/2022,2208-00655,0.00,10.00,R,Aldi 40 779,Yes
Http://opendatacommunities.org/id/metropolitan-district-council/leeds,Leeds City Council,30/09/2022,Children and Families,Social Care ,Supplies and Services,Food & Drink,231,05/07/2022,2208-00656,0.00,14.84,R,Aldi 40 779,Yes
Http://opendatacommunities.org/id/metropolitan-district-council/leeds,Leeds City Council,30/09/2022,Children and Families,Social Care ,Supplies and Services,Food & Drink,231,12/07/2022,2208-00657,0.00,25.33,R,Aldi 40 779,Yes
Http://opendatacommunities.org/id/metropolitan-district-council/leeds,Leeds City Council,30/09/2022,Children and Families,Social Care ,Appropriations,Leaving Care Allowances,634,25/07/2022,2208-00658,0.00,19.00,R,Aldi 40 779,Yes
Http://opendatacommunities.org/id/metropolitan-district-council/leeds,Leeds City Council,30/09/2022,Children and Families,Social Care ,Supplies and Services,Food & Drink,231,12/07/2022,2208-00659,0.00,37.62,R,Aldi 49 779,Yes
Http://opendatacommunities.org/id/metropolitan-district-council/leeds,Leeds City Council,30/09/2022,Children and Families,Social Care ,Supplies and Services,Food & Drink,231,18/07/2022,2208-00660,0.00,39.64,R,Aldi 49 779,Yes
Http://opendatacommunities.org/id/metropolitan-district-council/leeds,Leeds City Council,30/09/2022,Children and Families,Social Care ,Supplies and Services,Food & Drink,231,29/06/2022,2208-00661,0.00,17.40,R,Aldi 5 779,Yes
Http://opendatacommunities.org/id/metropolitan-district-council/leeds,Leeds City Council,30/09/2022,Communities Housing and Environment,Parks and Countryside ,Supplies and Services,Operational Furniture And Equipment,203,04/07/2022,2208-00662,0.00,14.97,R,Aldi 63779,Yes
Http://opendatacommunities.org/id/metropolitan-district-council/leeds,Leeds City Council,30/09/2022,Communities Housing and Environment,Parks and Countryside ,Supplies and Services,Food & Drink,231,18/07/2022,2208-00663,0.00,2.20,R,Aldi 63779,Yes
Http://opendatacommunities.org/id/metropolitan-district-council/leeds,Leeds City Council,30/09/2022,City Development,Recreation ,Supplies and Services,Food & Drink,231,19/07/2022,2208-00664,0.00,3.83,R,Aldi 71 779,Yes
Http://opendatacommunities.org/id/metropolitan-district-council/leeds,Leeds City Council,30/09/2022,Children and Families,Social Care ,Supplies and Services,Food & Drink,231,09/07/2022,2208-00665,0.00,56.05,R,Aldi 779117,Yes
Http://opendatacommunities.org/id/metropolitan-district-council/leeds,Leeds City Council,30/09/2022,Children and Families,Social Care ,Appropriations,Leaving Care Allowances,634,12/07/2022,2208-00666,0.00,51.24,R,Aldi 779-126,Yes
Http://opendatacommunities.org/id/metropolitan-district-council/leeds,Leeds City Council,30/09/2022,City Development,Recreation ,Supplies and Services,Operational Furniture And Equipment,203,12/07/2022,2208-00667,0.00,104.82,R,Aldi 779-126,Yes
Http://opendatacommunities.org/id/metropolitan-district-council/leeds,Leeds City Council,30/09/2022,Children and Families,Social Care ,Supplies and Services,Food & Drink,231,28/06/2022,2208-00668,0.00,9.32,R,Aldi 85 779,Yes
Http://opendatacommunities.org/id/metropolitan-district-council/leeds,Leeds City Council,30/09/2022,Children and Families,Social Care ,Supplies and Services,Food & Drink,231,28/06/2022,2208-00669,0.00,6.72,R,Aldi 85 779,Yes
Http://opendatacommunities.org/id/metropolitan-district-council/leeds,Leeds City Council,30/09/2022,Children and Families,Social Care ,Supplies and Services,Food & Drink,231,28/06/2022,2208-00670,0.00,16.38,R,Aldi 85 779,Yes
Http://opendatacommunities.org/id/metropolitan-district-council/leeds,Leeds City Council,30/09/2022,Children and Families,Social Care ,Premises,Cleaning Maintenance & Toiletries,127,29/06/2022,2208-00671,0.00,4.40,R,Aldi 85 779,Yes
Http://opendatacommunities.org/id/metropolitan-district-council/leeds,Leeds City Council,30/09/2022,Children and Families,Social Care ,Supplies and Services,Food & Drink,231,01/07/2022,2208-00672,0.00,21.15,R,Aldi 85 779,Yes
Http://opendatacommunities.org/id/metropolitan-district-council/leeds,Leeds City Council,30/09/2022,Children and Families,Social Care ,Supplies and Services,Food & Drink,231,05/07/2022,2208-00673,0.00,27.70,R,Aldi 85 779,Yes
Http://opendatacommunities.org/id/metropolitan-district-council/leeds,Leeds City Council,30/09/2022,Children and Families,Social Care ,Supplies and Services,Crockery Cutlery & Utensils,221,05/07/2022,2208-00674,0.00,9.46,R,Aldi 85 779,Yes
Http://opendatacommunities.org/id/metropolitan-district-council/leeds,Leeds City Council,30/09/2022,Children and Families,Social Care ,Appropriations,Leaving Care Allowances,634,14/07/2022,2208-00675,0.00,20.54,R,Aldi 85 779,Yes
Http://opendatacommunities.org/id/metropolitan-district-council/leeds,Leeds City Council,30/09/2022,Children and Families,Social Care ,Appropriations,Leaving Care Allowances,634,13/07/2022,2208-00676,0.00,7.61,R,Aldi 88 779,Yes
Http://opendatacommunities.org/id/metropolitan-district-council/leeds,Leeds City Council,30/09/2022,Children and Families,Social Care ,Supplies and Services,Food & Drink,231,13/07/2022,2208-00677,0.00,6.34,R,Aldi 88 779,Yes
Http://opendatacommunities.org/id/metropolitan-district-council/leeds,Leeds City Council,30/09/2022,Children and Families,Social Care ,Supplies and Services,Food & Drink,231,27/06/2022,2208-00678,0.00,183.87,R,Aldi 89 779,Yes
Http://opendatacommunities.org/id/metropolitan-district-council/leeds,Leeds City Council,30/09/2022,Children and Families,Social Care ,Supplies and Services,Food & Drink,231,04/07/2022,2208-00679,0.00,126.60,R,Aldi 89 779,Yes
Http://opendatacommunities.org/id/metropolitan-district-council/leeds,Leeds City Council,30/09/2022,Children and Families,Social Care ,Supplies and Services,Food & Drink,231,11/07/2022,2208-00680,0.00,152.64,R,Aldi 89 779,Yes
Http://opendatacommunities.org/id/metropolitan-district-council/leeds,Leeds City Council,30/09/2022,Children and Families,Social Care ,Supplies and Services,Food & Drink,231,25/07/2022,2208-00681,0.00,192.04,R,Aldi 89 779,Yes
Http://opendatacommunities.org/id/metropolitan-district-council/leeds,Leeds City Council,30/09/2022,Children and Families,Social Care ,Supplies and Services,Food & Drink,231,22/06/2022,2208-00682,0.00,7.48,R,Aldi Stores,Yes
Http://opendatacommunities.org/id/metropolitan-district-council/leeds,Leeds City Council,30/09/2022,Children and Families,Social Care ,Appropriations,Leaving Care Allowances,634,04/07/2022,2208-00683,0.00,40.64,R,Aldi Stores,Yes
Http://opendatacommunities.org/id/metropolitan-district-council/leeds,Leeds City Council,30/09/2022,Children and Families,Social Care ,Appropriations,Leaving Care Allowances,634,04/07/2022,2208-00684,0.00,0.99,R,Aldi Stores,Yes
Http://opendatacommunities.org/id/metropolitan-district-council/leeds,Leeds City Council,30/09/2022,Children and Families,Social Care ,Supplies and Services,Food & Drink,231,06/07/2022,2208-00685,0.00,8.39,R,Aldi Stores,Yes
Http://opendatacommunities.org/id/metropolitan-district-council/leeds,Leeds City Council,30/09/2022,City Development,Recreation ,Supplies and Services,Food & Drink,231,08/07/2022,2208-00686,0.00,2.28,R,Aldi Stores,Yes
Http://opendatacommunities.org/id/metropolitan-district-council/leeds,Leeds City Council,30/09/2022,Children and Families,Social Care ,Agency Payments,Placement Support,550,14/07/2022,2208-00687,0.00,1.96,R,Aldi Stores,Yes
Http://opendatacommunities.org/id/metropolitan-district-council/leeds,Leeds City Council,30/09/2022,Children and Families,Social Care ,Supplies and Services,Food & Drink,231,14/07/2022,2208-00688,0.00,17.90,R,Aldi Stores,Yes
Http://opendatacommunities.org/id/metropolitan-district-council/leeds,Leeds City Council,30/09/2022,Children and Families,Social Care ,Supplies and Services,Food & Drink,231,20/07/2022,2208-00689,0.00,8.84,R,Aldi Stores,Yes
Http://opendatacommunities.org/id/metropolitan-district-council/leeds,Leeds City Council,30/09/2022,Children and Families,Social Care,Agency Payments,Contact,548,01/08/2022,2208-00690,0.00,36.90,R,REDACTED PERSONAL DATA,No
Http://opendatacommunities.org/id/metropolitan-district-council/leeds,Leeds City Council,30/09/2022,Children and Families,Social Care,Agency Payments,Contact,548,08/08/2022,2208-00691,0.00,36.90,R,REDACTED PERSONAL DATA,No
Http://opendatacommunities.org/id/metropolitan-district-council/leeds,Leeds City Council,30/09/2022,Children and Families,Social Care,Agency Payments,Contact,548,15/08/2022,2208-00692,0.00,36.90,R,REDACTED PERSONAL DATA,No
Http://opendatacommunities.org/id/metropolitan-district-council/leeds,Leeds City Council,30/09/2022,Children and Families,Social Care,Agency Payments,Contact,548,22/08/2022,2208-00693,0.00,36.90,R,REDACTED PERSONAL DATA,No
Http://opendatacommunities.org/id/metropolitan-district-council/leeds,Leeds City Council,30/09/2022,Children and Families,Social Care,Agency Payments,Contact,548,31/08/2022,2208-00694,0.00,36.90,R,REDACTED PERSONAL DATA,No
Http://opendatacommunities.org/id/metropolitan-district-council/leeds,Leeds City Council,30/09/2022,Communities Housing and Environment,Customer Access,Supplies and Services,Bought In Professional Services,277,17/08/2022,2208-00695,0.00,18.00,R,Alena Zueva,No
Http://opendatacommunities.org/id/metropolitan-district-council/leeds,Leeds City Council,30/09/2022,Children and Families,Social Care,Internal Recharges,Legal Disbursements,411,08/08/2022,2208-00696,0.00,11070.00,R,Alex Taylor,No
Http://opendatacommunities.org/id/metropolitan-district-council/leeds,Leeds City Council,30/09/2022,Children and Families,Social Care,Internal Recharges,Legal Disbursements,411,10/08/2022,2208-00697,0.00,1227.00,R,Alex Taylor,No
Http://opendatacommunities.org/id/metropolitan-district-council/leeds,Leeds City Council,30/09/2022,Resources,Commercial Services,Supplies and Services,Other Hired And Contracted Services,265,04/08/2022,2208-00698,0.00,80.00,R,ALEX WAGG,No
Http://opendatacommunities.org/id/metropolitan-district-council/leeds,Leeds City Council,30/09/2022,Resources,Commercial Services,Supplies and Services,Other Hired And Contracted Services,265,04/08/2022,2208-00699,0.00,70.00,R,ALEX WAGG,No
Http://opendatacommunities.org/id/metropolitan-district-council/leeds,Leeds City Council,30/09/2022,Resources,Commercial Services,Supplies and Services,Other Hired And Contracted Services,265,12/08/2022,2208-00700,0.00,320.00,R,ALEX WAGG,No
Http://opendatacommunities.org/id/metropolitan-district-council/leeds,Leeds City Council,30/09/2022,Resources,Commercial Services,Supplies and Services,Other Hired And Contracted Services,265,12/08/2022,2208-00701,0.00,70.00,R,ALEX WAGG,No
Http://opendatacommunities.org/id/metropolitan-district-council/leeds,Leeds City Council,30/09/2022,Resources,Commercial Services,Supplies and Services,Other Hired And Contracted Services,265,12/08/2022,2208-00702,0.00,120.00,R,ALEX WAGG,No
Http://opendatacommunities.org/id/metropolitan-district-council/leeds,Leeds City Council,30/09/2022,Resources,Commercial Services,Supplies and Services,Other Hired And Contracted Services,265,19/08/2022,2208-00703,0.00,270.00,R,ALEX WAGG,No
Http://opendatacommunities.org/id/metropolitan-district-council/leeds,Leeds City Council,30/09/2022,Resources,Commercial Services,Supplies and Services,Other Hired And Contracted Services,265,19/08/2022,2208-00704,0.00,100.00,R,ALEX WAGG,No
Http://opendatacommunities.org/id/metropolitan-district-council/leeds,Leeds City Council,30/09/2022,Resources,Commercial Services,Supplies and Services,Other Hired And Contracted Services,265,19/08/2022,2208-00705,0.00,120.00,R,ALEX WAGG,No
Http://opendatacommunities.org/id/metropolitan-district-council/leeds,Leeds City Council,30/09/2022,Adults and Health,Assessment And Care Management,Agency Payments,Residential Care Dementia,571,17/08/2022,2208-00706,0.00,1957.56,R,ALEXANDER RESIDENTIAL HOME,No
Http://opendatacommunities.org/id/metropolitan-district-council/leeds,Leeds City Council,30/09/2022,Adults and Health,Services For Older People - 65 And Over,Agency Payments,Residential Care Dementia,571,17/08/2022,2208-00707,0.00,11403.51,R,ALEXANDER RESIDENTIAL HOME,No
Http://opendatacommunities.org/id/metropolitan-district-council/leeds,Leeds City Council,30/09/2022,Adults and Health,Services For Older People - 65 And Over,Agency Payments,Residential,580,17/08/2022,2208-00708,0.00,29058.30,R,ALEXANDER RESIDENTIAL HOME,No
Http://opendatacommunities.org/id/metropolitan-district-council/leeds,Leeds City Council,30/09/2022,Children and Families,Social Care,Supplies and Services,General Amenity For Clients/Residents,285,04/08/2022,2208-00709,0.00,14.00,R,REDACTED PERSONAL DATA,No
Http://opendatacommunities.org/id/metropolitan-district-council/leeds,Leeds City Council,30/09/2022,Children and Families,Social Care,Transport,Public Transport Expenses,310,04/08/2022,2208-00710,0.00,29.20,R,REDACTED PERSONAL DATA,No
Http://opendatacommunities.org/id/metropolitan-district-council/leeds,Leeds City Council,30/09/2022,Children and Families,Social Care,Appropriations,Leaving Care Allowances,634,18/08/2022,2208-00711,0.00,8.99,R,REDACTED PERSONAL DATA,No
Http://opendatacommunities.org/id/metropolitan-district-council/leeds,Leeds City Council,30/09/2022,Children and Families,Social Care,Supplies and Services,Food & Drink,231,12/08/2022,2208-00712,0.00,66.45,R,REDACTED PERSONAL DATA,No
Http://opendatacommunities.org/id/metropolitan-district-council/leeds,Leeds City Council,30/09/2022,Children and Families,Social Care,Supplies and Services,Food & Drink,231,17/08/2022,2208-00713,0.00,20.80,R,REDACTED PERSONAL DATA,No
Http://opendatacommunities.org/id/metropolitan-district-council/leeds,Leeds City Council,30/09/2022,Communities Housing and Environment,Customer Access,Supplies and Services,Bought In Professional Services,277,03/08/2022,2208-00714,0.00,63.00,R,Alexandra Costenco,No
Http://opendatacommunities.org/id/metropolitan-district-council/leeds,Leeds City Council,30/09/2022,Communities Housing and Environment,Customer Access,Supplies and Services,Bought In Professional Services,277,10/08/2022,2208-00715,0.00,63.00,R,Alexandra Costenco,No
Http://opendatacommunities.org/id/metropolitan-district-council/leeds,Leeds City Council,30/09/2022,Communities Housing and Environment,Customer Access,Supplies and Services,Bought In Professional Services,277,10/08/2022,2208-00716,0.00,18.00,R,Alexandra Costenco,No
Http://opendatacommunities.org/id/metropolitan-district-council/leeds,Leeds City Council,30/09/2022,Adults and Health,Services For Older People - 65 And Over,Agency Payments,Residential Care Dementia,571,17/08/2022,2208-00717,0.00,6738.60,R,ALEXANDRA COURT,No
Http://opendatacommunities.org/id/metropolitan-district-council/leeds,Leeds City Council,30/09/2022,Adults and Health,Services For Older People - 65 And Over,Agency Payments,Residential,580,17/08/2022,2208-00718,0.00,7181.72,R,ALEXANDRA COURT,No
Http://opendatacommunities.org/id/metropolitan-district-council/leeds,Leeds City Council,30/09/2022,Children and Families,Social Care,Appropriations,Leaving Care Allowances,634,25/08/2022,2208-00719,0.00,100.00,R,REDACTED PERSONAL DATA,No
Http://opendatacommunities.org/id/metropolitan-district-council/leeds,Leeds City Council,30/09/2022,Children and Families,Social Care,Agency Payments,Services Rendered By Other Organisations,511,05/08/2022,2208-00720,0.00,2097.22,R,REDACTED PERSONAL DATA,No
Http://opendatacommunities.org/id/metropolitan-district-council/leeds,Leeds City Council,30/09/2022,Children and Families,Social Care,Agency Payments,Services Rendered By Other Organisations,511,05/08/2022,2208-00721,0.00,397.80,R,REDACTED PERSONAL DATA,No
Http://opendatacommunities.org/id/metropolitan-district-council/leeds,Leeds City Council,30/09/2022,Adults and Health,Services For Older People - 65 And Over ,Supplies and Services,Clothing & Uniforms,241,10/05/2022,2208-00722,0.00,-32.98,R,Alexandra Website,Yes
Http://opendatacommunities.org/id/metropolitan-district-council/leeds,Leeds City Council,30/09/2022,Adults and Health,Services For Older People - 65 And Over ,Supplies and Services,Clothing & Uniforms,241,07/07/2022,2208-00723,0.00,111.82,R,Alexandra Website,Yes
Http://opendatacommunities.org/id/metropolitan-district-council/leeds,Leeds City Council,30/09/2022,Adults and Health,Services For Older People - 65 And Over ,Supplies and Services,Clothing & Uniforms,241,12/07/2022,2208-00724,0.00,17.48,R,Alexandra Website,Yes
Http://opendatacommunities.org/id/metropolitan-district-council/leeds,Leeds City Council,30/09/2022,Adults and Health,Services For Older People - 65 And Over ,Supplies and Services,Clothing & Uniforms,241,20/07/2022,2208-00725,0.00,17.48,R,Alexandra Website,Yes
Http://opendatacommunities.org/id/metropolitan-district-council/leeds,Leeds City Council,30/09/2022,Communities Housing and Environment,Car Parking Services,External Income,Penalties Fines & Car Parking Charges,934,04/08/2022,2208-00726,0.00,114.00,R,REDACTED PERSONAL DATA,No
Http://opendatacommunities.org/id/metropolitan-district-council/leeds,Leeds City Council,30/09/2022,Resources,Leeds Building Services,Supplies and Services,Other Hired And Contracted Services,265,05/08/2022,2208-00727,0.00,250.00,R,Alfred Bagnall & Sons (Leeds) Ltd,No
Http://opendatacommunities.org/id/metropolitan-district-council/leeds,Leeds City Council,30/09/2022,Resources,Leeds Building Services,Supplies and Services,Other Hired And Contracted Services,265,05/08/2022,2208-00728,0.00,25.00,R,Alfred Bagnall & Sons (Leeds) Ltd,No
Http://opendatacommunities.org/id/metropolitan-district-council/leeds,Leeds City Council,30/09/2022,City Development,Libraries Arts & Heritage,Supplies and Services,Other Hired And Contracted Services,265,11/08/2022,2208-00729,0.00,2980.00,R,Alfred Bagnall & Sons (Leeds) Ltd,No
Http://opendatacommunities.org/id/metropolitan-district-council/leeds,Leeds City Council,30/09/2022,Resources,Leeds Building Services,Supplies and Services,Other Hired And Contracted Services,265,17/08/2022,2208-00730,0.00,485.82,R,Alfred Bagnall & Sons (Leeds) Ltd,No
Http://opendatacommunities.org/id/metropolitan-district-council/leeds,Leeds City Council,30/09/2022,Resources,Leeds Building Services,Supplies and Services,Other Hired And Contracted Services,265,17/08/2022,2208-00731,0.00,1500.00,R,Alfred Bagnall & Sons (Leeds) Ltd,No
Http://opendatacommunities.org/id/metropolitan-district-council/leeds,Leeds City Council,30/09/2022,Resources,Leeds Building Services,Supplies and Services,Other Hired And Contracted Services,265,17/08/2022,2208-00732,0.00,191.90,R,Alfred Bagnall & Sons (Leeds) Ltd,No
Http://opendatacommunities.org/id/metropolitan-district-council/leeds,Leeds City Council,30/09/2022,Resources,Leeds Building Services,Supplies and Services,Other Hired And Contracted Services,265,18/08/2022,2208-00733,0.00,29614.05,R,Alfred Bagnall & Sons (Leeds) Ltd,No
Http://opendatacommunities.org/id/metropolitan-district-council/leeds,Leeds City Council,30/09/2022,Resources,Leeds Building Services,Supplies and Services,Other Hired And Contracted Services,265,18/08/2022,2208-00734,0.00,1102.10,R,Alfred Bagnall & Sons (Leeds) Ltd,No
Http://opendatacommunities.org/id/metropolitan-district-council/leeds,Leeds City Council,30/09/2022,Resources,Leeds Building Services,Supplies and Services,Other Hired And Contracted Services,265,19/08/2022,2208-00735,0.00,1400.00,R,Alfred Bagnall & Sons (Leeds) Ltd,No
Http://opendatacommunities.org/id/metropolitan-district-council/leeds,Leeds City Council,30/09/2022,Resources,Leeds Building Services,Supplies and Services,Other Hired And Contracted Services,265,19/08/2022,2208-00736,0.00,1618.50,R,Alfred Bagnall & Sons (Leeds) Ltd,No
Http://opendatacommunities.org/id/metropolitan-district-council/leeds,Leeds City Council,30/09/2022,Resources,Leeds Building Services,Supplies and Services,Other Hired And Contracted Services,265,26/08/2022,2208-00737,0.00,6475.95,R,Alfred Bagnall & Sons (Leeds) Ltd,No
Http://opendatacommunities.org/id/metropolitan-district-council/leeds,Leeds City Council,30/09/2022,Resources,Facilities Management,Premises,Maintenance Of Buildings,101,30/08/2022,2208-00738,0.00,570.00,R,Alfred Bagnall & Sons (Leeds) Ltd,No
Http://opendatacommunities.org/id/metropolitan-district-council/leeds,Leeds City Council,30/09/2022,Communities Housing and Environment,Parks and Countryside,Supplies and Services,Operational Materials,205,30/08/2022,2208-00739,0.00,350.00,R,Alfred Bagnall & Sons (Leeds) Ltd,No
Http://opendatacommunities.org/id/metropolitan-district-council/leeds,Leeds City Council,30/09/2022,Communities Housing and Environment,Customer Access,Supplies and Services,Bought In Professional Services,277,03/08/2022,2208-00740,0.00,18.00,R,Ali Pourakaberian,No
Http://opendatacommunities.org/id/metropolitan-district-council/leeds,Leeds City Council,30/09/2022,Communities Housing and Environment,Customer Access,Supplies and Services,Bought In Professional Services,277,10/08/2022,2208-00741,0.00,10.00,R,Ali Pourakaberian,No
Http://opendatacommunities.org/id/metropolitan-district-council/leeds,Leeds City Council,30/09/2022,Communities Housing and Environment,Customer Access,Supplies and Services,Bought In Professional Services,277,10/08/2022,2208-00742,0.00,18.00,R,Ali Pourakaberian,No
Http://opendatacommunities.org/id/metropolitan-district-council/leeds,Leeds City Council,30/09/2022,Communities Housing and Environment,Customer Access,Supplies and Services,Bought In Professional Services,277,10/08/2022,2208-00743,0.00,13.50,R,Ali Pourakaberian,No
Http://opendatacommunities.org/id/metropolitan-district-council/leeds,Leeds City Council,30/09/2022,Communities Housing and Environment,Customer Access,Supplies and Services,Bought In Professional Services,277,10/08/2022,2208-00744,0.00,18.00,R,Ali Pourakaberian,No
Http://opendatacommunities.org/id/metropolitan-district-council/leeds,Leeds City Council,30/09/2022,Communities Housing and Environment,Customer Access,Supplies and Services,Bought In Professional Services,277,17/08/2022,2208-00745,0.00,18.00,R,Ali Pourakaberian,No
Http://opendatacommunities.org/id/metropolitan-district-council/leeds,Leeds City Council,30/09/2022,Communities Housing and Environment,Customer Access,Supplies and Services,Bought In Professional Services,277,17/08/2022,2208-00746,0.00,27.00,R,Ali Pourakaberian,No
Http://opendatacommunities.org/id/metropolitan-district-council/leeds,Leeds City Council,30/09/2022,Communities Housing and Environment,Customer Access,Supplies and Services,Bought In Professional Services,277,24/08/2022,2208-00747,0.00,9.00,R,Ali Pourakaberian,No
Http://opendatacommunities.org/id/metropolitan-district-council/leeds,Leeds City Council,30/09/2022,Communities Housing and Environment,Customer Access,Supplies and Services,Bought In Professional Services,277,24/08/2022,2208-00748,0.00,27.00,R,Ali Pourakaberian,No
Http://opendatacommunities.org/id/metropolitan-district-council/leeds,Leeds City Council,30/09/2022,Communities Housing and Environment,Customer Access,Supplies and Services,Bought In Professional Services,277,24/08/2022,2208-00749,0.00,18.00,R,Ali Pourakaberian,No
Http://opendatacommunities.org/id/metropolitan-district-council/leeds,Leeds City Council,30/09/2022,Communities Housing and Environment,Customer Access,Supplies and Services,Bought In Professional Services,277,24/08/2022,2208-00750,0.00,27.00,R,Ali Pourakaberian,No
Http://opendatacommunities.org/id/metropolitan-district-council/leeds,Leeds City Council,30/09/2022,Children and Families,Social Care,Agency Payments,Placement Support,550,08/08/2022,2208-00751,0.00,105.65,R,REDACTED PERSONAL DATA,No
Http://opendatacommunities.org/id/metropolitan-district-council/leeds,Leeds City Council,30/09/2022,City Development,Recreation,Supplies and Services,Bought In Professional Services,277,26/08/2022,2208-00752,0.00,80.00,R,Alice M Richardson,No
Http://opendatacommunities.org/id/metropolitan-district-council/leeds,Leeds City Council,30/09/2022,City Development,Recreation,Supplies and Services,Bought In Professional Services,277,26/08/2022,2208-00753,0.00,100.00,R,Alice M Richardson,No
Http://opendatacommunities.org/id/metropolitan-district-council/leeds,Leeds City Council,30/09/2022,City Development,Recreation,Supplies and Services,Bought In Professional Services,277,26/08/2022,2208-00754,0.00,20.00,R,Alice M Richardson,No
Http://opendatacommunities.org/id/metropolitan-district-council/leeds,Leeds City Council,30/09/2022,Adults and Health,Assessment And Care Management,Supplies and Services,Other Hired And Contracted Services,265,19/08/2022,2208-00755,0.00,9.32,R,REDACTED PERSONAL DATA,No
Http://opendatacommunities.org/id/metropolitan-district-council/leeds,Leeds City Council,30/09/2022,Children and Families,Social Care,External Income,Nursery Fees Income,926,01/08/2022,2208-00756,0.00,652.68,R,REDACTED PERSONAL DATA,No
Http://opendatacommunities.org/id/metropolitan-district-council/leeds,Leeds City Council,30/09/2022,Communities Housing and Environment,Customer Access,Supplies and Services,Bought In Professional Services,277,03/08/2022,2208-00757,0.00,108.00,R,Alina Maksakova,No
Http://opendatacommunities.org/id/metropolitan-district-council/leeds,Leeds City Council,30/09/2022,Children and Families,Social Care,Agency Payments,Contact,548,05/08/2022,2208-00758,0.00,10.40,R,REDACTED PERSONAL DATA,No
Http://opendatacommunities.org/id/metropolitan-district-council/leeds,Leeds City Council,30/09/2022,Children and Families,Social Care,Agency Payments,Contact,548,12/08/2022,2208-00759,0.00,10.40,R,REDACTED PERSONAL DATA,No
Http://opendatacommunities.org/id/metropolitan-district-council/leeds,Leeds City Council,30/09/2022,Children and Families,Social Care,Agency Payments,Contact,548,19/08/2022,2208-00760,0.00,10.40,R,REDACTED PERSONAL DATA,No
Http://opendatacommunities.org/id/metropolitan-district-council/leeds,Leeds City Council,30/09/2022,Children and Families,Social Care,Agency Payments,Contact,548,26/08/2022,2208-00761,0.00,10.40,R,REDACTED PERSONAL DATA,No
Http://opendatacommunities.org/id/metropolitan-district-council/leeds,Leeds City Council,30/09/2022,Children and Families,Social Care,Appropriations,Leaving Care Allowances,634,02/08/2022,2208-00762,0.00,50.00,R,REDACTED PERSONAL DATA,No
Http://opendatacommunities.org/id/metropolitan-district-council/leeds,Leeds City Council,30/09/2022,Children and Families,Social Care,Appropriations,Leaving Care Allowances,634,12/08/2022,2208-00763,0.00,40.00,R,REDACTED PERSONAL DATA,No
Http://opendatacommunities.org/id/metropolitan-district-council/leeds,Leeds City Council,30/09/2022,Children and Families,Social Care,Appropriations,Leaving Care Allowances,634,19/08/2022,2208-00764,0.00,40.00,R,REDACTED PERSONAL DATA,No
Http://opendatacommunities.org/id/metropolitan-district-council/leeds,Leeds City Council,30/09/2022,Children and Families,Social Care,Appropriations,Leaving Care Allowances,634,26/08/2022,2208-00765,0.00,40.00,R,REDACTED PERSONAL DATA,No
Http://opendatacommunities.org/id/metropolitan-district-council/leeds,Leeds City Council,30/09/2022,Children and Families,Social Care,Agency Payments,Services Rendered By Other Organisations,511,05/08/2022,2208-00766,0.00,372.84,R,REDACTED PERSONAL DATA,No
Http://opendatacommunities.org/id/metropolitan-district-council/leeds,Leeds City Council,30/09/2022,Children and Families,Social Care,Agency Payments,Contact,548,02/08/2022,2208-00767,0.00,11.40,R,REDACTED PERSONAL DATA,No
Http://opendatacommunities.org/id/metropolitan-district-council/leeds,Leeds City Council,30/09/2022,Strategic Landlord,Property and Contracts,Supplies and Services,Insurance Claims,248,09/08/2022,2208-00768,0.00,7000.00,R,Alison Law Solicitors,No
Http://opendatacommunities.org/id/metropolitan-district-council/leeds,Leeds City Council,30/09/2022,Strategic Landlord,Property and Contracts,Supplies and Services,Insurance Claims,248,09/08/2022,2208-00769,0.00,6000.00,R,Alison Law Solicitors,No
Http://opendatacommunities.org/id/metropolitan-district-council/leeds,Leeds City Council,30/09/2022,Strategic Landlord,Property and Contracts,Supplies and Services,Insurance Claims,248,09/08/2022,2208-00770,0.00,6000.00,R,Alison Law Solicitors,No
Http://opendatacommunities.org/id/metropolitan-district-council/leeds,Leeds City Council,30/09/2022,City Development,Libraries Arts & Heritage,Supplies and Services,Bought In Professional Services,277,26/08/2022,2208-00771,0.00,200.00,R,Alison Rowley,No
Http://opendatacommunities.org/id/metropolitan-district-council/leeds,Leeds City Council,30/09/2022,Communities Housing and Environment,Benefits Wlefare and Poverty,Supplies and Services,Grant Related Expenditure,290,12/08/2022,2208-00772,0.00,50.00,R,REDACTED PERSONAL DATA,No
Http://opendatacommunities.org/id/metropolitan-district-council/leeds,Leeds City Council,30/09/2022,City Development,Libraries Arts & Heritage,Supplies and Services,Other Hired And Contracted Services,265,26/08/2022,2208-00773,0.00,280.00,R,ALIVE AND KICKING THEATRE COMPANY LTD,No
Http://opendatacommunities.org/id/metropolitan-district-council/leeds,Leeds City Council,30/09/2022,Children and Families,Social Care,Agency Payments,Services Rendered By Other Organisations,511,03/08/2022,2208-00774,0.00,3308.58,R,All Stars Childcare,No
Http://opendatacommunities.org/id/metropolitan-district-council/leeds,Leeds City Council,30/09/2022,Children and Families,Social Care,Agency Payments,Services Rendered By Other Organisations,511,05/08/2022,2208-00775,0.00,17337.06,R,All Stars Childcare,No
Http://opendatacommunities.org/id/metropolitan-district-council/leeds,Leeds City Council,30/09/2022,Children and Families,Social Care,Agency Payments,Services Rendered By Other Organisations,511,05/08/2022,2208-00776,0.00,1276.60,R,All Stars Childcare,No
Http://opendatacommunities.org/id/metropolitan-district-council/leeds,Leeds City Council,30/09/2022,Strategic Landlord,HRA Housing Leeds,Capital,OTHER COSTS,7,05/08/2022,2208-00777,0.00,100.00,C,REDACTED PERSONAL DATA,No
Http://opendatacommunities.org/id/metropolitan-district-council/leeds,Leeds City Council,30/09/2022,Resources,Commercial Services ,Transport,Miscellaneous Transport Related Costs,324,30/06/2022,2208-00778,0.00,91.08,R,Allanda,Yes
Http://opendatacommunities.org/id/metropolitan-district-council/leeds,Leeds City Council,30/09/2022,Resources,Leeds Building Services,Supplies and Services,Other Hired And Contracted Services,265,17/08/2022,2208-00779,0.00,2034.22,R,Allerton Damp-Proofing Ltd,No
Http://opendatacommunities.org/id/metropolitan-district-council/leeds,Leeds City Council,30/09/2022,Adults and Health,Public Health,Agency Payments,Public Health Commissioned Services,526,05/08/2022,2208-00780,0.00,1754.76,R,Allerton Medical Centre,No
Http://opendatacommunities.org/id/metropolitan-district-council/leeds,Leeds City Council,30/09/2022,Adults and Health,Services For Older People - 65 And Over,Agency Payments,Nursing Care Dementia,574,17/08/2022,2208-00781,0.00,17332.00,R,ALLERTON PARK N H,No
Http://opendatacommunities.org/id/metropolitan-district-council/leeds,Leeds City Council,30/09/2022,Resources,Finance,Supplies and Services,Bank Charges,263,04/08/2022,2208-00782,0.00,259.14,R,ALLIANCE & LEICESTER COMMERCIAL BANK,No
Http://opendatacommunities.org/id/metropolitan-district-council/leeds,Leeds City Council,30/09/2022,Resources,Finance,Supplies and Services,Bank Charges,263,04/08/2022,2208-00783,0.00,100.00,R,ALLIANCE & LEICESTER COMMERCIAL BANK,No
Http://opendatacommunities.org/id/metropolitan-district-council/leeds,Leeds City Council,30/09/2022,Resources,Commercial Services,Supplies and Services,Operational Materials,205,03/08/2022,2208-00784,0.00,-77.65,R,ALLIANCE DISPOSABLES LTD,No
Http://opendatacommunities.org/id/metropolitan-district-council/leeds,Leeds City Council,30/09/2022,Resources,Commercial Services,Supplies and Services,Operational Materials,205,03/08/2022,2208-00785,0.00,332.98,R,ALLIANCE DISPOSABLES LTD,No
Http://opendatacommunities.org/id/metropolitan-district-council/leeds,Leeds City Council,30/09/2022,Resources,Commercial Services,Supplies and Services,Operational Materials,205,03/08/2022,2208-00786,0.00,110.85,R,ALLIANCE DISPOSABLES LTD,No
Http://opendatacommunities.org/id/metropolitan-district-council/leeds,Leeds City Council,30/09/2022,Resources,Commercial Services,Supplies and Services,Operational Materials,205,03/08/2022,2208-00787,0.00,44.89,R,ALLIANCE DISPOSABLES LTD,No
Http://opendatacommunities.org/id/metropolitan-district-council/leeds,Leeds City Council,30/09/2022,Resources,Commercial Services,Supplies and Services,Operational Materials,205,03/08/2022,2208-00788,0.00,44.89,R,ALLIANCE DISPOSABLES LTD,No
